BODY,BODY NAME,SERVICE CODE,ORGANISATIONAL UNIT,ORGANISATIONAL UNIT CODE,EXPENDITURE CATEGORY,EXPENDITURE CODE,DATE (POSTING DATE),TRANSACTION NUMBER,AMOUNT,SUPPLIER NAME,SUPPLIER ID
WARRINGTON BOROUGH COUNCIL,http://opendatacommunities.org/id/unitary-authority/warrington ,RSC,ICT Centralised Budget,23100,Computer Software - Maintenance,450850,23-Oct-15,1700012899,6620,Swift Data Pro Software Ltd,100376
WARRINGTON BOROUGH COUNCIL,http://opendatacommunities.org/id/unitary-authority/warrington ,FWB,Care Purchase - Learning Disability,54450,CP-Nursing Care-External,441200,01-Oct-15,1900183215,10016,The David Lewis Centre,104879
WARRINGTON BOROUGH COUNCIL,http://opendatacommunities.org/id/unitary-authority/warrington ,FWB,Care Purchase - Learning Disability,54450,CP-LongStayExternal,441150,01-Oct-15,1900183216,9448,The David Lewis Centre,104879
WARRINGTON BOROUGH COUNCIL,http://opendatacommunities.org/id/unitary-authority/warrington ,FWB,Care Purchase - Learning Disability,54450,CP-Domicil.External,440950,01-Oct-15,1900183218,6926,Autism Initiatives,104503
WARRINGTON BOROUGH COUNCIL,http://opendatacommunities.org/id/unitary-authority/warrington ,FWB,Care Purchase - Learning Disability,54450,CP-Day Care-External,441100,01-Oct-15,1900183219,2785,Autism Initiatives,104503
WARRINGTON BOROUGH COUNCIL,http://opendatacommunities.org/id/unitary-authority/warrington ,FWB,Care Purchase - IC,54290,CP - Intermediate Care - External,441300,01-Oct-15,1900183220,38166,CareConcepts (Appleton) Ltd,105804
WARRINGTON BOROUGH COUNCIL,http://opendatacommunities.org/id/unitary-authority/warrington ,FWB,Older Peoples South Team,54421,CP-Domicil.External,440950,01-Oct-15,1900183221,1344,Caring Hands,102486
WARRINGTON BOROUGH COUNCIL,http://opendatacommunities.org/id/unitary-authority/warrington ,FWB,Care Purchase Budget,54490,CP ExternalOther Exp,440800,01-Oct-15,1900183222,1121,Heathfield Residental Home,100059
WARRINGTON BOROUGH COUNCIL,http://opendatacommunities.org/id/unitary-authority/warrington ,FWB,Care Purchase - Learning Disability,54450,CP-Domicil.External,440950,01-Oct-15,1900183223,8450,Autism Initiatives,104503
WARRINGTON BOROUGH COUNCIL,http://opendatacommunities.org/id/unitary-authority/warrington ,FWB,Care Purchase Budget,54490,CP - Cont Care - External,441350,01-Oct-15,1900183224,10356,Craegmoor Oxen Barn Priory,112933
WARRINGTON BOROUGH COUNCIL,http://opendatacommunities.org/id/unitary-authority/warrington ,FWB,Care Purchase - Learning Disability,54450,CP-Day Care-External,441100,01-Oct-15,1900183225,2785,Autism Initiatives,104503
WARRINGTON BOROUGH COUNCIL,http://opendatacommunities.org/id/unitary-authority/warrington ,FWB,Care Purchase - Learning Disability,54450,CP-LongStayExternal,441150,01-Oct-15,1900183226,19951,Craegmoor Oxen Barn Priory,112933
WARRINGTON BOROUGH COUNCIL,http://opendatacommunities.org/id/unitary-authority/warrington ,FWB,Older Peoples North Team,54422,CP-Nursing Care-External,441200,01-Oct-15,1900183227,1600,Bowerfield House MMCG,111713
WARRINGTON BOROUGH COUNCIL,http://opendatacommunities.org/id/unitary-authority/warrington ,FWB,Older Peoples South Team,54421,CP-LongStayExternal,441150,01-Oct-15,1900183228,3600,Cotebrook,104638
WARRINGTON BOROUGH COUNCIL,http://opendatacommunities.org/id/unitary-authority/warrington ,FWB,Care Purchase - PD,54440,CP-LongStayExternal,441150,01-Oct-15,1900183228,7200,Cotebrook,104638
WARRINGTON BOROUGH COUNCIL,http://opendatacommunities.org/id/unitary-authority/warrington ,FWB,Care Purchase Budget,54490,CP Free Nursing Care External,443500,01-Oct-15,1900183229,4480,CareConcepts (Appleton) Ltd,105804
WARRINGTON BOROUGH COUNCIL,http://opendatacommunities.org/id/unitary-authority/warrington ,FWB,Care Purchase AMH,54135,CP-Domicil.External,440950,01-Oct-15,1900183230,7736,Continuum Support Ltd,112065
WARRINGTON BOROUGH COUNCIL,http://opendatacommunities.org/id/unitary-authority/warrington ,FWB,Older Peoples North Team,54422,CP-LongStayExternal,441150,01-Oct-15,1900183231,2700,Chase House Limited,110786
WARRINGTON BOROUGH COUNCIL,http://opendatacommunities.org/id/unitary-authority/warrington ,FWB,Care Purchase - Learning Disability,54450,CP-Domicil.External,440950,01-Oct-15,1900183232,5918,Alternative Futures Group,104468
WARRINGTON BOROUGH COUNCIL,http://opendatacommunities.org/id/unitary-authority/warrington ,FWB,Care Purchase - PD,54440,CP-Nursing Care-External,441200,01-Oct-15,1900183233,4136,Abbey Lawns Care Home Ltd,101816
WARRINGTON BOROUGH COUNCIL,http://opendatacommunities.org/id/unitary-authority/warrington ,FWB,Older Peoples South Team,54421,CP-LongStayExternal,441150,01-Oct-15,1900183235,1540,Alexandra Care Home,100708
WARRINGTON BOROUGH COUNCIL,http://opendatacommunities.org/id/unitary-authority/warrington ,FWB,Care Purchase - Learning Disability,54450,CP-LongStayExternal,441150,01-Oct-15,1900183236,12348,Griffin Care Ltd,101672
WARRINGTON BOROUGH COUNCIL,http://opendatacommunities.org/id/unitary-authority/warrington ,FWB,Older Peoples South Team,54421,CP-LongStayExternal,441150,01-Oct-15,1900183237,10200,CareConcepts (Appleton) Ltd,105804
WARRINGTON BOROUGH COUNCIL,http://opendatacommunities.org/id/unitary-authority/warrington ,FWB,Older Peoples South Team,54421,CP-Nursing Care-External,441200,01-Oct-15,1900183237,18812,CareConcepts (Appleton) Ltd,105804
WARRINGTON BOROUGH COUNCIL,http://opendatacommunities.org/id/unitary-authority/warrington ,FWB,Older Peoples North Team,54422,CP-Nursing Care-External,441200,01-Oct-15,1900183237,4576,CareConcepts (Appleton) Ltd,105804
WARRINGTON BOROUGH COUNCIL,http://opendatacommunities.org/id/unitary-authority/warrington ,FWB,Care Purchase Budget,54490,CP Free Nursing Care External,443500,01-Oct-15,1900183237,4480,CareConcepts (Appleton) Ltd,105804
WARRINGTON BOROUGH COUNCIL,http://opendatacommunities.org/id/unitary-authority/warrington ,FWB,Older Peoples South Team,54421,CP-LongStayExternal,441150,01-Oct-15,1900183238,1788,Simonsfield Care Home,110134
WARRINGTON BOROUGH COUNCIL,http://opendatacommunities.org/id/unitary-authority/warrington ,FWB,Care Purchase - PD,54440,CP-Domicil.External,440950,01-Oct-15,1900183239,2524,Homelife Leeds Ltd,101794
WARRINGTON BOROUGH COUNCIL,http://opendatacommunities.org/id/unitary-authority/warrington ,ENO,Housing Projects,82008,Disabled Facilities Safe & Secure Grants,554300,01-Oct-15,1900183240,3625,The Excellent Ramp System,100407
WARRINGTON BOROUGH COUNCIL,http://opendatacommunities.org/id/unitary-authority/warrington ,FWB,Care Purchase AMH,54135,CP-Domicil.External,440950,01-Oct-15,1900183242,3352,Alternative Futures Group,104468
WARRINGTON BOROUGH COUNCIL,http://opendatacommunities.org/id/unitary-authority/warrington ,FWB,Care Purchase - Learning Disability,54450,CP-Day Care-External,441100,01-Oct-15,1900183244,1173,Autism Initiatives,104503
WARRINGTON BOROUGH COUNCIL,http://opendatacommunities.org/id/unitary-authority/warrington ,FWB,Care Purchase - Learning Disability,54450,CP-Day Care-External,441100,01-Oct-15,1900183245,3468,Autism Initiatives,104503
WARRINGTON BOROUGH COUNCIL,http://opendatacommunities.org/id/unitary-authority/warrington ,FWB,Care Purchase - Learning Disability,54450,CP-Day Care-External,441100,01-Oct-15,1900183246,1759,Autism Initiatives,104503
WARRINGTON BOROUGH COUNCIL,http://opendatacommunities.org/id/unitary-authority/warrington ,FWB,Care Purchase Budget,54490,CP ExternalOther Exp,440800,01-Oct-15,1900183247,37873,HC-One Limited Callands,109640
WARRINGTON BOROUGH COUNCIL,http://opendatacommunities.org/id/unitary-authority/warrington ,FWB,Older Peoples North Team,54422,CP-Day Care-External,441100,01-Oct-15,1900183249,4380,CareConcepts (Appleton) Ltd,105804
WARRINGTON BOROUGH COUNCIL,http://opendatacommunities.org/id/unitary-authority/warrington ,FWB,Older Peoples South Team,54421,CP-Day Care-External,441100,01-Oct-15,1900183249,4070,CareConcepts (Appleton) Ltd,105804
WARRINGTON BOROUGH COUNCIL,http://opendatacommunities.org/id/unitary-authority/warrington ,FWB,Care Purchase Budget,54490,CP - Cont Care - External,441350,01-Oct-15,1900183249,504,CareConcepts (Appleton) Ltd,105804
WARRINGTON BOROUGH COUNCIL,http://opendatacommunities.org/id/unitary-authority/warrington ,FWB,Care Purchase Budget,54490,Voids,515150,01-Oct-15,1900183249,10646,CareConcepts (Appleton) Ltd,105804
WARRINGTON BOROUGH COUNCIL,http://opendatacommunities.org/id/unitary-authority/warrington ,FWB,Care Purchase - Learning Disability,54450,CP-LongStayExternal,441150,01-Oct-15,1900183252,1482,Inclusive Lifestyles Ltd,101840
WARRINGTON BOROUGH COUNCIL,http://opendatacommunities.org/id/unitary-authority/warrington ,FWB,Older Peoples South Team,54421,CP-Nursing Care-External,441200,01-Oct-15,1900183253,1960,Four Seasons Health Care,100629
WARRINGTON BOROUGH COUNCIL,http://opendatacommunities.org/id/unitary-authority/warrington ,FWB,Care Purchase - Learning Disability,54450,CP-LongStayExternal,441150,01-Oct-15,1900183311,12348,Griffin Care Ltd,101672
WARRINGTON BOROUGH COUNCIL,http://opendatacommunities.org/id/unitary-authority/warrington ,FWB,Care Purchase - Learning Disability,54450,Supporting People - External,441250,01-Oct-15,1900183312,4584,Warrington Mencap,102670
WARRINGTON BOROUGH COUNCIL,http://opendatacommunities.org/id/unitary-authority/warrington ,FWB,Older Peoples North Team,54422,CP-Nursing Care-External,441200,01-Oct-15,1900183316,2095,Pendine Park Care Organisation,112763
WARRINGTON BOROUGH COUNCIL,http://opendatacommunities.org/id/unitary-authority/warrington ,FWB,Care Purchase - Learning Disability,54450,Supporting People - External,441250,01-Oct-15,1900183317,4263,Warrington Mencap,102670
WARRINGTON BOROUGH COUNCIL,http://opendatacommunities.org/id/unitary-authority/warrington ,FWB,Care Purchase - Learning Disability,54450,CP-LongStayExternal,441150,01-Oct-15,1900183318,12744,Inclusive Lifestyles Ltd,101840
WARRINGTON BOROUGH COUNCIL,http://opendatacommunities.org/id/unitary-authority/warrington ,FWB,Care Purchase - Learning Disability,54450,CP-Domicil.External,440950,01-Oct-15,1900183319,4859,Warrington Mencap,102670
WARRINGTON BOROUGH COUNCIL,http://opendatacommunities.org/id/unitary-authority/warrington ,FWB,Care Purchase - Learning Disability,54450,Supporting People - External,441250,01-Oct-15,1900183320,6280,Warrington Mencap,102670
WARRINGTON BOROUGH COUNCIL,http://opendatacommunities.org/id/unitary-authority/warrington ,FWB,Care Purchase - PD,54440,CP-LongStayExternal,441150,01-Oct-15,1900183321,4584,Scope,105109
WARRINGTON BOROUGH COUNCIL,http://opendatacommunities.org/id/unitary-authority/warrington ,FWB,Care Purchase - Learning Disability,54450,CP-Domicil.External,440950,01-Oct-15,1900183322,3325,Progress Adult Services Ltd,101817
WARRINGTON BOROUGH COUNCIL,http://opendatacommunities.org/id/unitary-authority/warrington ,FWB,Care Purchase - Learning Disability,54450,CP-LongStayExternal,441150,01-Oct-15,1900183322,11238,Progress Adult Services Ltd,101817
WARRINGTON BOROUGH COUNCIL,http://opendatacommunities.org/id/unitary-authority/warrington ,FWB,Care Purchase Budget,54490,CP ExternalOther Exp,440800,01-Oct-15,1900183323,655,Rosevilla Residential Home,105084
WARRINGTON BOROUGH COUNCIL,http://opendatacommunities.org/id/unitary-authority/warrington ,FWB,Care Purchase - Learning Disability,54450,CP-LongStayExternal,441150,01-Oct-15,1900183324,11896,Progress Care and Education Ltd,108888
WARRINGTON BOROUGH COUNCIL,http://opendatacommunities.org/id/unitary-authority/warrington ,FWB,Care Purchase - PD,54440,CP-LongStayExternal,441150,01-Oct-15,1900183325,6652,Voyage Care,100099
WARRINGTON BOROUGH COUNCIL,http://opendatacommunities.org/id/unitary-authority/warrington ,FWB,Care Purchase - ABI,54260,CP-LongStayExternal,441150,01-Oct-15,1900183326,6467,Voyage Care,100099
WARRINGTON BOROUGH COUNCIL,http://opendatacommunities.org/id/unitary-authority/warrington ,FWB,Care Purchase - PD,54440,CP-Nursing Care-External,441200,01-Oct-15,1900183327,5680,Voyage Care,100099
WARRINGTON BOROUGH COUNCIL,http://opendatacommunities.org/id/unitary-authority/warrington ,FWB,Care Purchase - Learning Disability,54450,CP-LongStayExternal,441150,01-Oct-15,1900183328,8418,Voyage Care,100099
WARRINGTON BOROUGH COUNCIL,http://opendatacommunities.org/id/unitary-authority/warrington ,FWB,Older Peoples South Team,54421,CP-LongStayExternal,441150,01-Oct-15,1900183329,5800,Voyage Care,100099
WARRINGTON BOROUGH COUNCIL,http://opendatacommunities.org/id/unitary-authority/warrington ,FWB,Care Purchase - Learning Disability,54450,CP-Nursing Care-External,441200,01-Oct-15,1900183331,2576,Chadderton Total-Care Unit Ltd,100425
WARRINGTON BOROUGH COUNCIL,http://opendatacommunities.org/id/unitary-authority/warrington ,FWB,Older Peoples South Team,54421,CP-LongStayExternal,441150,01-Oct-15,1900183332,1954,Bondcare (Spinney),102023
WARRINGTON BOROUGH COUNCIL,http://opendatacommunities.org/id/unitary-authority/warrington ,FWB,Care Purchase Budget,54490,CP - Cont Care - External,441350,01-Oct-15,1900183333,2393,Extracare Charitable Trust Service,114725
WARRINGTON BOROUGH COUNCIL,http://opendatacommunities.org/id/unitary-authority/warrington ,FWB,Older Peoples South Team,54421,CP - Housing with Care - External,494450,01-Oct-15,1900183333,20273,Extracare Charitable Trust Service,114725
WARRINGTON BOROUGH COUNCIL,http://opendatacommunities.org/id/unitary-authority/warrington ,FWB,Care Purchase - PD,54440,CP - Housing with Care - External,494450,01-Oct-15,1900183333,1196,Extracare Charitable Trust Service,114725
WARRINGTON BOROUGH COUNCIL,http://opendatacommunities.org/id/unitary-authority/warrington ,FWB,Older Peoples South Team,54421,CP-LongStayExternal,441150,01-Oct-15,1900183334,1728,The Belmont Care Home,110487
WARRINGTON BOROUGH COUNCIL,http://opendatacommunities.org/id/unitary-authority/warrington ,FWB,Homelessness,43650,B.& B.Allowances,525050,01-Oct-15,1900183335,790,REDACTED PERSONAL DATA,110456
WARRINGTON BOROUGH COUNCIL,http://opendatacommunities.org/id/unitary-authority/warrington ,FWB,Older Peoples South Team,54421,CP-Nursing Care-External,441200,01-Oct-15,1900183336,2064,St Monica Trust,104021
WARRINGTON BOROUGH COUNCIL,http://opendatacommunities.org/id/unitary-authority/warrington ,FWB,Older Peoples South Team,54421,CP-Domicil.External,440950,01-Oct-15,1900183337,3654,St Monica Trust,104021
WARRINGTON BOROUGH COUNCIL,http://opendatacommunities.org/id/unitary-authority/warrington ,FWB,Care Purchase - ABI,54260,CP-Nursing Care-External,441200,01-Oct-15,1900183338,5075,St Marys Care Centre,101503
WARRINGTON BOROUGH COUNCIL,http://opendatacommunities.org/id/unitary-authority/warrington ,FWB,Homelessness,43650,B.& B.Allowances,525050,01-Oct-15,1900183339,1635,REDACTED PERSONAL DATA,110456
WARRINGTON BOROUGH COUNCIL,http://opendatacommunities.org/id/unitary-authority/warrington ,FWB,Older Peoples North Team,54422,CP-LongStayExternal,441150,01-Oct-15,1900183340,2012,St Georges Residential Care Home,110495
WARRINGTON BOROUGH COUNCIL,http://opendatacommunities.org/id/unitary-authority/warrington ,FWB,Older Peoples South Team,54421,CP-LongStayExternal,441150,01-Oct-15,1900183341,1788,Simonsfield Care Home,110134
WARRINGTON BOROUGH COUNCIL,http://opendatacommunities.org/id/unitary-authority/warrington ,FWB,Older Peoples South Team,54421,CP-LongStayExternal,441150,01-Oct-15,1900183344,1912,Sanctuary Care Limited,109765
WARRINGTON BOROUGH COUNCIL,http://opendatacommunities.org/id/unitary-authority/warrington ,FWB,Care Purchase - Learning Disability,54450,CP-LongStayExternal,441150,01-Oct-15,1900183346,7036,Sense,440092
WARRINGTON BOROUGH COUNCIL,http://opendatacommunities.org/id/unitary-authority/warrington ,FWB,Care Purchase - Learning Disability,54450,CP-LongStayExternal,441150,01-Oct-15,1900183347,11238,Progress Adult Services Ltd,101817
WARRINGTON BOROUGH COUNCIL,http://opendatacommunities.org/id/unitary-authority/warrington ,FWB,Private Sector Hsg.,43660,Postages,450000,01-Oct-15,1900183348,610,Pitney Bowes Postage By Phone,101079
WARRINGTON BOROUGH COUNCIL,http://opendatacommunities.org/id/unitary-authority/warrington ,FWB,Older Peoples North Team,54422,CP-LongStayExternal,441150,01-Oct-15,1900183349,2400,Peel Moat Harbour Healthcare,114680
WARRINGTON BOROUGH COUNCIL,http://opendatacommunities.org/id/unitary-authority/warrington ,FWB,Older Peoples North Team,54422,CP-LongStayExternal,441150,01-Oct-15,1900183351,1700,Orchard Care Homes,102524
WARRINGTON BOROUGH COUNCIL,http://opendatacommunities.org/id/unitary-authority/warrington ,FWB,Care Purchase - Learning Disability,54450,CP-LongStayExternal,441150,01-Oct-15,1900183352,12000,Nugent Care,111375
WARRINGTON BOROUGH COUNCIL,http://opendatacommunities.org/id/unitary-authority/warrington ,FWB,Care Purchase AMH,54135,CP-LongStayExternal,441150,01-Oct-15,1900183354,7470,Mental Health Care UK Ltd,114128
WARRINGTON BOROUGH COUNCIL,http://opendatacommunities.org/id/unitary-authority/warrington ,FWB,Care Purchase - Learning Disability,54450,CP-LongStayExternal,441150,01-Oct-15,1900183355,3606,Manor Care Centre,103831
WARRINGTON BOROUGH COUNCIL,http://opendatacommunities.org/id/unitary-authority/warrington ,FWB,Care Purchase - Learning Disability,54450,CP-LongStayExternal,441150,01-Oct-15,1900183356,12613,Inclusive Lifestyles Ltd,101840
WARRINGTON BOROUGH COUNCIL,http://opendatacommunities.org/id/unitary-authority/warrington ,FWB,Care Purchase AMH,54135,CP-Domicil.External,440950,01-Oct-15,1900183357,5230,SLC Raglin Ltd,111037
WARRINGTON BOROUGH COUNCIL,http://opendatacommunities.org/id/unitary-authority/warrington ,FWB,Care Purchase - PD,54440,CP-Domicil.External,440950,01-Oct-15,1900183358,2524,Homelife Leeds Ltd,101794
WARRINGTON BOROUGH COUNCIL,http://opendatacommunities.org/id/unitary-authority/warrington ,FWB,Care Purchase - Learning Disability,54450,CP-Day Care-External,441100,01-Oct-15,1900183359,660,Great Opportunities Together CIC,110076
WARRINGTON BOROUGH COUNCIL,http://opendatacommunities.org/id/unitary-authority/warrington ,FWB,Care Purchase Budget,54490,CP ExternalOther Exp,440800,01-Oct-15,1900183360,6524,GNR Care Limited,114127
WARRINGTON BOROUGH COUNCIL,http://opendatacommunities.org/id/unitary-authority/warrington ,RSC,Coroners Service,11100,Hire Of Mortuaries,220200,01-Oct-15,1900183361,2207,Mid Cheshire Hospitals,440149
WARRINGTON BOROUGH COUNCIL,http://opendatacommunities.org/id/unitary-authority/warrington ,RSC,Coroners Service,11100,Hire Of Mortuaries,220200,01-Oct-15,1900183361,1778,Mid Cheshire Hospitals,440149
WARRINGTON BOROUGH COUNCIL,http://opendatacommunities.org/id/unitary-authority/warrington ,RSC,Coroners Service,11100,Post Mortem Fees-Rep,440250,01-Oct-15,1900183362,756,Dr Cheng Li,107950
WARRINGTON BOROUGH COUNCIL,http://opendatacommunities.org/id/unitary-authority/warrington ,RSC,Coroners Service,11100,Removal Bodies & Exc,440350,01-Oct-15,1900183363,1989,Roar Forensics Ltd,105295
WARRINGTON BOROUGH COUNCIL,http://opendatacommunities.org/id/unitary-authority/warrington ,RSC,Coroners Service,11100,Hire Of Mortuaries,220200,01-Oct-15,1900183364,5192,Warrington And Halton Nhs Ft,440132
WARRINGTON BOROUGH COUNCIL,http://opendatacommunities.org/id/unitary-authority/warrington ,RSC,Coroners Service,11100,Hire Of Mortuaries,220200,01-Oct-15,1900183367,6968,Warrington And Halton Nhs Ft,440132
WARRINGTON BOROUGH COUNCIL,http://opendatacommunities.org/id/unitary-authority/warrington ,RSC,Coroners Service,11100,Post Mortem Fees-Rep,440250,01-Oct-15,1900183368,3295,Dr A Nicol,104970
WARRINGTON BOROUGH COUNCIL,http://opendatacommunities.org/id/unitary-authority/warrington ,RSC,Coroners Service,11100,Post Mortem Fees-Rep,440250,01-Oct-15,1900183372,706,Dr M S Al-Jafari,104464
WARRINGTON BOROUGH COUNCIL,http://opendatacommunities.org/id/unitary-authority/warrington ,FWB,Care Purchase - Learning Disability,54450,CP-Domicil.External,440950,01-Oct-15,1900183373,9534,Zeno Limited,111080
WARRINGTON BOROUGH COUNCIL,http://opendatacommunities.org/id/unitary-authority/warrington ,FWB,Care Purchase - Learning Disability,54450,CP-Domicil.External,440950,01-Oct-15,1900183374,11824,Zeno Limited,111080
WARRINGTON BOROUGH COUNCIL,http://opendatacommunities.org/id/unitary-authority/warrington ,FWB,Care Purchase Budget,54490,CP ExternalOther Exp,440800,01-Oct-15,1900183375,9692,W H Investments Ltd,111422
WARRINGTON BOROUGH COUNCIL,http://opendatacommunities.org/id/unitary-authority/warrington ,FWB,Care Purchase - Learning Disability,54450,CP ExternalOther Exp,440800,01-Oct-15,1900183376,900,Walton Lea Project,102953
WARRINGTON BOROUGH COUNCIL,http://opendatacommunities.org/id/unitary-authority/warrington ,FWB,Care Purchase - Learning Disability,54450,CP-Day Care-External,441100,01-Oct-15,1900183376,25939,Walton Lea Project,102953
WARRINGTON BOROUGH COUNCIL,http://opendatacommunities.org/id/unitary-authority/warrington ,FWB,Older Peoples South Team,54421,CP-Nursing Care-External,441200,01-Oct-15,1900183377,3600,Cherry Hinton Care Home,112195
WARRINGTON BOROUGH COUNCIL,http://opendatacommunities.org/id/unitary-authority/warrington ,FWB,Care Purchase - Learning Disability,54450,CP-LongStayExternal,441150,01-Oct-15,1900183378,10471,Pendleton Care Limited,101213
WARRINGTON BOROUGH COUNCIL,http://opendatacommunities.org/id/unitary-authority/warrington ,RSC,Coroners Service,11100,Post Mortem Fees-Rep,440250,01-Oct-15,1900183386,596,Dr Jo McPartland,106129
WARRINGTON BOROUGH COUNCIL,http://opendatacommunities.org/id/unitary-authority/warrington ,RSC,Coroners Service,11100,Post Mortem Fees-Rep,440250,01-Oct-15,1900183387,1481,Dr M S Al-Jafari,104464
WARRINGTON BOROUGH COUNCIL,http://opendatacommunities.org/id/unitary-authority/warrington ,RSC,Coroners Service,11100,Post Mortem Fees-Rep,440250,01-Oct-15,1900183390,1602,Dr W E Kenyon,104851
WARRINGTON BOROUGH COUNCIL,http://opendatacommunities.org/id/unitary-authority/warrington ,RSC,Coroners Service,11100,Post Mortem Fees-Rep,440250,01-Oct-15,1900183391,783,Dr S A Hales,100988
WARRINGTON BOROUGH COUNCIL,http://opendatacommunities.org/id/unitary-authority/warrington ,RSC,Coroners Service,11100,Removal Bodies & Exc,440350,01-Oct-15,1900183396,1327,REDACTED PERSONAL DATA,105133
WARRINGTON BOROUGH COUNCIL,http://opendatacommunities.org/id/unitary-authority/warrington ,RSC,Coroners Service,11100,Reimbursement for Deputy Coroner,440400,01-Oct-15,1900183397,5148,REDACTED PERSONAL DATA,111176
WARRINGTON BOROUGH COUNCIL,http://opendatacommunities.org/id/unitary-authority/warrington ,RSC,ICT Networks,23400,ICT Comms - Line Rental,450200,01-Oct-15,1900183398,547,Vodafone,100023
WARRINGTON BOROUGH COUNCIL,http://opendatacommunities.org/id/unitary-authority/warrington ,RSC,Coroners Service,11100,Postages,450000,01-Oct-15,1900183404,1022,Neopost Finance Ltd Supplies/Top up,100694
WARRINGTON BOROUGH COUNCIL,http://opendatacommunities.org/id/unitary-authority/warrington ,CYP,Childrens Other,81004,Furniture & Fittings,400150,01-Oct-15,1900183408,2600,Newton Le Willows Blinds,104968
WARRINGTON BOROUGH COUNCIL,http://opendatacommunities.org/id/unitary-authority/warrington ,EE0,Public Conveniences,43510,Rent Of Premises,220000,01-Oct-15,1900183412,9713,Jcdecaux Uk Ltd,104827
WARRINGTON BOROUGH COUNCIL,http://opendatacommunities.org/id/unitary-authority/warrington ,EE0,Public Conveniences,43510,Rent Of Premises,220000,01-Oct-15,1900183413,9713,Jcdecaux Uk Ltd,104827
WARRINGTON BOROUGH COUNCIL,http://opendatacommunities.org/id/unitary-authority/warrington ,EE0,Public Conveniences,43510,Rent Of Premises,220000,01-Oct-15,1900183414,18181,Jcdecaux Uk Ltd,104827
WARRINGTON BOROUGH COUNCIL,http://opendatacommunities.org/id/unitary-authority/warrington ,EE0,Hatters Row,43710,Consult.& Prof. Serv,440000,01-Oct-15,1900183415,585,Debt Squared Group Limited,114593
WARRINGTON BOROUGH COUNCIL,http://opendatacommunities.org/id/unitary-authority/warrington ,EE0,Hatters Row,43710,Consult.& Prof. Serv,440000,01-Oct-15,1900183417,694,Debt Squared Group Limited,114593
WARRINGTON BOROUGH COUNCIL,http://opendatacommunities.org/id/unitary-authority/warrington ,FWB,Livewire Traded Services,32071,Mainstream Pupil Transport,300800,01-Oct-15,1900183420,17930,Frontline Data,112598
WARRINGTON BOROUGH COUNCIL,http://opendatacommunities.org/id/unitary-authority/warrington ,CYP,Childrens Other,81004,Stationery,430150,01-Oct-15,1900183421,2546,Madeleine Lindley Ltd,104908
WARRINGTON BOROUGH COUNCIL,http://opendatacommunities.org/id/unitary-authority/warrington ,CYP,Childrens Other,81004,ICT Comms - Equipment Purchase,450100,01-Oct-15,1900183422,3150,Edac Solutions North West,100899
WARRINGTON BOROUGH COUNCIL,http://opendatacommunities.org/id/unitary-authority/warrington ,FWB,Care Purchase AMH,54135,CP-Domicil.External,440950,02-Oct-15,1900183423,756,Alternative Futures Group,104468
WARRINGTON BOROUGH COUNCIL,http://opendatacommunities.org/id/unitary-authority/warrington ,FWB,Care Purchase AMH,54135,CP-Domicil.External,440950,02-Oct-15,1900183424,1890,Alternative Futures Group,104468
WARRINGTON BOROUGH COUNCIL,http://opendatacommunities.org/id/unitary-authority/warrington ,FWB,Care Purchase AMH,54135,CP-Domicil.External,440950,02-Oct-15,1900183425,756,Alternative Futures Group,104468
WARRINGTON BOROUGH COUNCIL,http://opendatacommunities.org/id/unitary-authority/warrington ,FWB,Older Peoples South Team,54421,CP-LongStayExternal,441150,02-Oct-15,1900183426,1796,Barchester Healthcare Brookfield,104548
WARRINGTON BOROUGH COUNCIL,http://opendatacommunities.org/id/unitary-authority/warrington ,FWB,Care Purchase - ABI,54260,CP-Domicil.External,440950,02-Oct-15,1900183428,11378,Aspirations Care Limited,113707
WARRINGTON BOROUGH COUNCIL,http://opendatacommunities.org/id/unitary-authority/warrington ,FWB,Older Peoples South Team,54421,CP-Nursing Care-External,441200,02-Oct-15,1900183429,1527,Barton Brook Residential Nursing Ho,111874
WARRINGTON BOROUGH COUNCIL,http://opendatacommunities.org/id/unitary-authority/warrington ,FWB,Older Peoples South Team,54421,CP-Nursing Care-External,441200,02-Oct-15,1900183430,1628,BUPA - Bedford Res,104569
WARRINGTON BOROUGH COUNCIL,http://opendatacommunities.org/id/unitary-authority/warrington ,FWB,Care Purchase AMH,54135,CP-LongStayExternal,441150,02-Oct-15,1900183431,1960,Hilton Residential Homes Ltd,104783
WARRINGTON BOROUGH COUNCIL,http://opendatacommunities.org/id/unitary-authority/warrington ,FWB,Care Purchase AMH,54135,CP-Domicil.External,440950,02-Oct-15,1900183432,756,Alternative Futures Group,104468
WARRINGTON BOROUGH COUNCIL,http://opendatacommunities.org/id/unitary-authority/warrington ,FWB,Older Peoples South Team,54421,CP-LongStayExternal,441150,02-Oct-15,1900183433,1764,Bupa Care Homes - Broadoak Manor,104546
WARRINGTON BOROUGH COUNCIL,http://opendatacommunities.org/id/unitary-authority/warrington ,FWB,Care Purchase AMH,54135,CP-Domicil.External,440950,02-Oct-15,1900183434,756,Alternative Futures Group,104468
WARRINGTON BOROUGH COUNCIL,http://opendatacommunities.org/id/unitary-authority/warrington ,FWB,Older Peoples South Team,54421,CP-LongStayExternal,441150,02-Oct-15,1900183435,2000,Nethermoor House Ltd,114660
WARRINGTON BOROUGH COUNCIL,http://opendatacommunities.org/id/unitary-authority/warrington ,FWB,Care Purchase Budget,54490,CP ExternalOther Exp,440800,02-Oct-15,1900183436,3101,Keate House Residential Home,104849
WARRINGTON BOROUGH COUNCIL,http://opendatacommunities.org/id/unitary-authority/warrington ,FWB,Older Peoples South Team,54421,CP-LongStayExternal,441150,02-Oct-15,1900183437,1798,Stonedale Lodge Residential & Nursi,113173
WARRINGTON BOROUGH COUNCIL,http://opendatacommunities.org/id/unitary-authority/warrington ,FWB,Older Peoples North Team,54422,CP-Nursing Care-External,441200,02-Oct-15,1900183438,1679,BUPA - Bedford Res,104569
WARRINGTON BOROUGH COUNCIL,http://opendatacommunities.org/id/unitary-authority/warrington ,FWB,Care Purchase - PD,54440,CP-Nursing Care-External,441200,02-Oct-15,1900183439,2780,Leonard Cheshire Disability,100370
WARRINGTON BOROUGH COUNCIL,http://opendatacommunities.org/id/unitary-authority/warrington ,FWB,Older Peoples South Team,54421,CP-LongStayExternal,441150,02-Oct-15,1900183440,1796,Barchester Healthcare Brookfield,104548
WARRINGTON BOROUGH COUNCIL,http://opendatacommunities.org/id/unitary-authority/warrington ,FWB,Care Purchase AMH,54135,CP-Domicil.External,440950,02-Oct-15,1900183441,42738,Next Stage A Way Forward Ltd,101217
WARRINGTON BOROUGH COUNCIL,http://opendatacommunities.org/id/unitary-authority/warrington ,FWB,Care Purchase - Learning Disability,54450,CP-Domicil.External,440950,02-Oct-15,1900183441,5196,Next Stage A Way Forward Ltd,101217
WARRINGTON BOROUGH COUNCIL,http://opendatacommunities.org/id/unitary-authority/warrington ,FWB,Care Purchase Budget,54490,CP - Cont Care - External,441350,02-Oct-15,1900183441,1437,Next Stage A Way Forward Ltd,101217
WARRINGTON BOROUGH COUNCIL,http://opendatacommunities.org/id/unitary-authority/warrington ,FWB,Care Purchase - Learning Disability,54450,CP-Day Care-External,441100,02-Oct-15,1900183442,2217,Deafness Support Network,104657
WARRINGTON BOROUGH COUNCIL,http://opendatacommunities.org/id/unitary-authority/warrington ,FWB,Older Peoples South Team,54421,CP-LongStayExternal,441150,02-Oct-15,1900183443,1640,Ideal Carehomes (Number One) Ltd,108328
WARRINGTON BOROUGH COUNCIL,http://opendatacommunities.org/id/unitary-authority/warrington ,EE0,Estates & Valuation,43520,Agency Supply - GF,180000,02-Oct-15,1900183445,598,Anderselite,100563
WARRINGTON BOROUGH COUNCIL,http://opendatacommunities.org/id/unitary-authority/warrington ,FWB,Care Purchase - ABI,54260,CP-Domicil.External,440950,02-Oct-15,1900183446,11378,Aspirations Care Limited,113707
WARRINGTON BOROUGH COUNCIL,http://opendatacommunities.org/id/unitary-authority/warrington ,EE0,Local Bus Contracts,44430,Payments To Operator,530150,02-Oct-15,1900183447,5000,Warrington Borough Transport Ltd,105226
WARRINGTON BOROUGH COUNCIL,http://opendatacommunities.org/id/unitary-authority/warrington ,EE0,Local Bus Contracts,44430,Payments To Operator,530150,02-Oct-15,1900183449,5000,Warrington Borough Transport Ltd,105226
WARRINGTON BOROUGH COUNCIL,http://opendatacommunities.org/id/unitary-authority/warrington ,FWB,Care Purchase AMH,54135,CP-Domicil.External,440950,02-Oct-15,1900183450,2092,Alternative Futures Group,104468
WARRINGTON BOROUGH COUNCIL,http://opendatacommunities.org/id/unitary-authority/warrington ,EE0,Local Bus Contracts,44430,Payments To Operator,530150,02-Oct-15,1900183451,5000,Warrington Borough Transport Ltd,105226
WARRINGTON BOROUGH COUNCIL,http://opendatacommunities.org/id/unitary-authority/warrington ,RSC,Coroners Service,11100,Post Mortem Fees-Rep,440250,02-Oct-15,1900183452,758,Dr D S Shareef,105121
WARRINGTON BOROUGH COUNCIL,http://opendatacommunities.org/id/unitary-authority/warrington ,CYP,Childrens Other,81004,Materials,400500,02-Oct-15,1900183453,2324,Early Excellence Ltd,400007
WARRINGTON BOROUGH COUNCIL,http://opendatacommunities.org/id/unitary-authority/warrington ,FWB,Older Peoples North Team,54422,CP-Nursing Care-External,441200,02-Oct-15,1900183454,2088,Tabley House Nursing Home,112807
WARRINGTON BOROUGH COUNCIL,http://opendatacommunities.org/id/unitary-authority/warrington ,FWB,Care Purchase - Learning Disability,54450,CP-Nursing Care-External,441200,02-Oct-15,1900183455,3588,Stocks Hall Care Homes Ltd,102512
WARRINGTON BOROUGH COUNCIL,http://opendatacommunities.org/id/unitary-authority/warrington ,FWB,Care Purchase - Learning Disability,54450,CP-Domicil.External,440950,02-Oct-15,1900183456,1820,Potens Ltd TA Heath Lodge,102481
WARRINGTON BOROUGH COUNCIL,http://opendatacommunities.org/id/unitary-authority/warrington ,FWB,Care Purchase - Learning Disability,54450,CP-LongStayExternal,441150,02-Oct-15,1900183456,2580,Potens Ltd TA Heath Lodge,102481
WARRINGTON BOROUGH COUNCIL,http://opendatacommunities.org/id/unitary-authority/warrington ,EE0,Local Bus Contracts,44430,Payments To Operator,530150,02-Oct-15,1900183457,5000,Warrington Borough Transport Ltd,105226
WARRINGTON BOROUGH COUNCIL,http://opendatacommunities.org/id/unitary-authority/warrington ,EE0,Local Bus Contracts,44430,Payments To Operator,530150,02-Oct-15,1900183458,18000,Warrington Borough Transport Ltd,105226
WARRINGTON BOROUGH COUNCIL,http://opendatacommunities.org/id/unitary-authority/warrington ,RSC,Coroners Service,11100,Hire Of Mortuaries,220200,02-Oct-15,1900183459,3734,East Cheshire Nhs Trust,440130
WARRINGTON BOROUGH COUNCIL,http://opendatacommunities.org/id/unitary-authority/warrington ,FWB,Care Purchase - PD,54440,Direct Payments,552000,02-Oct-15,1900183460,1116,REDACTED PERSONAL DATA,101147
WARRINGTON BOROUGH COUNCIL,http://opendatacommunities.org/id/unitary-authority/warrington ,CYP,Childrens Other,81004,Furniture & Fittings,400150,02-Oct-15,1900183462,3600,Foundation Furniture Ltd,105839
WARRINGTON BOROUGH COUNCIL,http://opendatacommunities.org/id/unitary-authority/warrington ,FWB,Care Purchase - PD,54440,CP-Nursing Care-External,441200,02-Oct-15,1900183463,4899,Leonard Cheshire Disability,100370
WARRINGTON BOROUGH COUNCIL,http://opendatacommunities.org/id/unitary-authority/warrington ,RSC,Accountancy and Financial Planning,10100,Computer Software - Purchase,450800,02-Oct-15,1900183472,950,Creditsafe,102227
WARRINGTON BOROUGH COUNCIL,http://opendatacommunities.org/id/unitary-authority/warrington ,HOL,Insurance Fund,91100,Insurance Claims,443400,02-Oct-15,1900183473,2500,Zurich Insurance Company,105263
WARRINGTON BOROUGH COUNCIL,http://opendatacommunities.org/id/unitary-authority/warrington ,FWB,Care Purchase - Learning Disability,54450,CP-LongStayExternal,441150,02-Oct-15,1900183475,13811,The David Lewis Centre,104879
WARRINGTON BOROUGH COUNCIL,http://opendatacommunities.org/id/unitary-authority/warrington ,FWB,Care Purchase - Learning Disability,54450,CP-LongStayExternal,441150,02-Oct-15,1900183481,5622,WCL - Warrington Community Living,105230
WARRINGTON BOROUGH COUNCIL,http://opendatacommunities.org/id/unitary-authority/warrington ,FWB,Older Peoples South Team,54421,CP-Nursing Care-External,441200,13-Oct-15,1900183957,1976,Barchester Homes Westvale House,105246
WARRINGTON BOROUGH COUNCIL,http://opendatacommunities.org/id/unitary-authority/warrington ,FWB,Care Purchase - PD,54440,CP-Nursing Care-External,441200,13-Oct-15,1900183957,1976,Barchester Homes Westvale House,105246
WARRINGTON BOROUGH COUNCIL,http://opendatacommunities.org/id/unitary-authority/warrington ,FWB,Carers Co-ordinator,53240,CP - Cont Care - External,441350,13-Oct-15,1900183957,1336,Barchester Homes Westvale House,105246
WARRINGTON BOROUGH COUNCIL,http://opendatacommunities.org/id/unitary-authority/warrington ,FWB,Older Peoples North Team,54422,CP-Nursing Care-External,441200,13-Oct-15,1900183958,832,Barchester Homes Westvale House,105246
WARRINGTON BOROUGH COUNCIL,http://opendatacommunities.org/id/unitary-authority/warrington ,FWB,Older Peoples South Team,54421,CP-LongStayExternal,441150,13-Oct-15,1900183959,1615,Burrswood House Nursing & Residenti,109619
WARRINGTON BOROUGH COUNCIL,http://opendatacommunities.org/id/unitary-authority/warrington ,FWB,Care Purchase AMH,54135,CP-Domicil.External,440950,13-Oct-15,1900183960,1394,Caring Alternatives limited,110164
WARRINGTON BOROUGH COUNCIL,http://opendatacommunities.org/id/unitary-authority/warrington ,FWB,Care Purchase Budget,54490,CP ExternalOther Exp,440800,13-Oct-15,1900183961,1296,Cls Care Services Ltd,104615
WARRINGTON BOROUGH COUNCIL,http://opendatacommunities.org/id/unitary-authority/warrington ,FWB,Older Peoples South Team,54421,CP-LongStayExternal,441150,13-Oct-15,1900183963,1800,Copperdown Rest Home,113179
WARRINGTON BOROUGH COUNCIL,http://opendatacommunities.org/id/unitary-authority/warrington ,RSC,CRB Checks,52122,CRB Checks,190050,13-Oct-15,1900183965,20266,Disclosure & Barring Service,440085
WARRINGTON BOROUGH COUNCIL,http://opendatacommunities.org/id/unitary-authority/warrington ,FWB,Older Peoples South Team,54421,CP-Domicil.External,440950,13-Oct-15,1900183966,21429,Dh Homecare,101961
WARRINGTON BOROUGH COUNCIL,http://opendatacommunities.org/id/unitary-authority/warrington ,FWB,Older Peoples North Team,54422,CP-Domicil.External,440950,13-Oct-15,1900183966,929,Dh Homecare,101961
WARRINGTON BOROUGH COUNCIL,http://opendatacommunities.org/id/unitary-authority/warrington ,FWB,Care Purchase - Learning Disability,54450,CP-Domicil.External,440950,13-Oct-15,1900183966,943,Dh Homecare,101961
WARRINGTON BOROUGH COUNCIL,http://opendatacommunities.org/id/unitary-authority/warrington ,FWB,Care Purchase - PD,54440,CP-Domicil.External,440950,13-Oct-15,1900183966,6384,Dh Homecare,101961
WARRINGTON BOROUGH COUNCIL,http://opendatacommunities.org/id/unitary-authority/warrington ,FWB,Care Purchase AMH,54135,CP-Domicil.External,440950,13-Oct-15,1900183967,2000,East Cheshire Housing Consortium,110170
WARRINGTON BOROUGH COUNCIL,http://opendatacommunities.org/id/unitary-authority/warrington ,FWB,Care Purchase AMH,54135,CP-Domicil.External,440950,13-Oct-15,1900183968,1200,East Cheshire Housing Consortium,110170
WARRINGTON BOROUGH COUNCIL,http://opendatacommunities.org/id/unitary-authority/warrington ,FWB,Care Purchase AMH,54135,CP-Domicil.External,440950,13-Oct-15,1900183969,4000,East Cheshire Housing Consortium,110170
WARRINGTON BOROUGH COUNCIL,http://opendatacommunities.org/id/unitary-authority/warrington ,FWB,Care Purchase Budget,54490,CP ExternalOther Exp,440800,13-Oct-15,1900183970,42000,Embrace Group,109675
WARRINGTON BOROUGH COUNCIL,http://opendatacommunities.org/id/unitary-authority/warrington ,FWB,Care Purchase AMH,54135,CP-Domicil.External,440950,13-Oct-15,1900183971,502,Focus on Care,108343
WARRINGTON BOROUGH COUNCIL,http://opendatacommunities.org/id/unitary-authority/warrington ,FWB,Care Purchase AMH,54135,CP-Domicil.External,440950,13-Oct-15,1900183975,1256,Focus on Care,108343
WARRINGTON BOROUGH COUNCIL,http://opendatacommunities.org/id/unitary-authority/warrington ,FWB,Care Purchase Budget,54490,CP ExternalOther Exp,440800,13-Oct-15,1900183977,1936,Harbour Healthcare 1 Ltd,110527
WARRINGTON BOROUGH COUNCIL,http://opendatacommunities.org/id/unitary-authority/warrington ,FWB,Care Purchase Budget,54490,CP ExternalOther Exp,440800,13-Oct-15,1900183978,18000,GNR Care Limited,114127
WARRINGTON BOROUGH COUNCIL,http://opendatacommunities.org/id/unitary-authority/warrington ,FWB,Care Purchase Budget,54490,CP ExternalOther Exp,440800,13-Oct-15,1900183979,23000,Harbour Healthcare 1 Ltd,110527
WARRINGTON BOROUGH COUNCIL,http://opendatacommunities.org/id/unitary-authority/warrington ,FWB,Care Purchase Budget,54490,CP ExternalOther Exp,440800,13-Oct-15,1900183980,12000,Heathfield Residental Home,100059
WARRINGTON BOROUGH COUNCIL,http://opendatacommunities.org/id/unitary-authority/warrington ,FWB,Care Purchase Budget,54490,CP ExternalOther Exp,440800,13-Oct-15,1900183981,33000,Wcl - Heathside Mews,101742
WARRINGTON BOROUGH COUNCIL,http://opendatacommunities.org/id/unitary-authority/warrington ,FWB,Care Purchase Budget,54490,CP ExternalOther Exp,440800,13-Oct-15,1900183982,30000,Heathside Elderly Persons Home,104777
WARRINGTON BOROUGH COUNCIL,http://opendatacommunities.org/id/unitary-authority/warrington ,FWB,Care Purchase - Learning Disability,54450,CP-LongStayExternal,441150,13-Oct-15,1900183983,8936,Icare Service Limited,110435
WARRINGTON BOROUGH COUNCIL,http://opendatacommunities.org/id/unitary-authority/warrington ,FWB,Care Purchase - Learning Disability,54450,CP-Domicil.External,440950,13-Oct-15,1900183984,3480,Icare Service Limited,110435
WARRINGTON BOROUGH COUNCIL,http://opendatacommunities.org/id/unitary-authority/warrington ,FWB,Care Purchase - Learning Disability,54450,CP-Day Care-External,441100,13-Oct-15,1900183984,5133,Icare Service Limited,110435
WARRINGTON BOROUGH COUNCIL,http://opendatacommunities.org/id/unitary-authority/warrington ,FWB,Care Purchase Budget,54490,CP ExternalOther Exp,440800,13-Oct-15,1900183986,30000,Keate House Residential Home,104849
WARRINGTON BOROUGH COUNCIL,http://opendatacommunities.org/id/unitary-authority/warrington ,FWB,Older Peoples South Team,54421,CP-LongStayExternal,441150,13-Oct-15,1900183987,1964,Lancashire County Council,410062
WARRINGTON BOROUGH COUNCIL,http://opendatacommunities.org/id/unitary-authority/warrington ,FWB,Care Purchase - Learning Disability,54450,CP-Domicil.External,440950,13-Oct-15,1900183988,6069,Macintyre Care,104907
WARRINGTON BOROUGH COUNCIL,http://opendatacommunities.org/id/unitary-authority/warrington ,FWB,Care Purchase Budget,54490,CP - Cont Care - External,441350,13-Oct-15,1900183988,510,Macintyre Care,104907
WARRINGTON BOROUGH COUNCIL,http://opendatacommunities.org/id/unitary-authority/warrington ,FWB,Care Purchase - Learning Disability,54450,CP-Domicil.External,440950,13-Oct-15,1900183989,18082,Macintyre Care,104907
WARRINGTON BOROUGH COUNCIL,http://opendatacommunities.org/id/unitary-authority/warrington ,FWB,Older Peoples North Team,54422,CP-Domicil.External,440950,13-Oct-15,1900183990,1817,Macintyre Care,104907
WARRINGTON BOROUGH COUNCIL,http://opendatacommunities.org/id/unitary-authority/warrington ,FWB,Care Purchase - Learning Disability,54450,CP-Domicil.External,440950,13-Oct-15,1900183990,112335,Macintyre Care,104907
WARRINGTON BOROUGH COUNCIL,http://opendatacommunities.org/id/unitary-authority/warrington ,FWB,Care Purchase - Learning Disability,54450,Supporting People - External,441250,13-Oct-15,1900183990,25780,Macintyre Care,104907
WARRINGTON BOROUGH COUNCIL,http://opendatacommunities.org/id/unitary-authority/warrington ,FWB,Care Purchase Budget,54490,Voids,515150,13-Oct-15,1900183990,1469,Macintyre Care,104907
WARRINGTON BOROUGH COUNCIL,http://opendatacommunities.org/id/unitary-authority/warrington ,FWB,Care Purchase Budget,54490,CP ExternalOther Exp,440800,13-Oct-15,1900183993,20000,Minster Care Management Ltd,105179
WARRINGTON BOROUGH COUNCIL,http://opendatacommunities.org/id/unitary-authority/warrington ,ENO,Highways Other,82005,Consult.& Prof. Serv,440000,13-Oct-15,1900183995,5542,Mott Macdonald Ltd,104950
WARRINGTON BOROUGH COUNCIL,http://opendatacommunities.org/id/unitary-authority/warrington ,FWB,Care Purchase Budget,54490,CP ExternalOther Exp,440800,13-Oct-15,1900183998,20000,Old Rectory Private Nursing Home,104990
WARRINGTON BOROUGH COUNCIL,http://opendatacommunities.org/id/unitary-authority/warrington ,FWB,Care Purchase Budget,54490,CP ExternalOther Exp,440800,13-Oct-15,1900183999,16000,Rosevilla Residential Home,105084
WARRINGTON BOROUGH COUNCIL,http://opendatacommunities.org/id/unitary-authority/warrington ,FWB,Older Peoples North Team,54422,CP-Domicil.External,440950,13-Oct-15,1900184000,9194,Select Community Support Services,112799
WARRINGTON BOROUGH COUNCIL,http://opendatacommunities.org/id/unitary-authority/warrington ,FWB,Older Peoples South Team,54421,CP-Domicil.External,440950,13-Oct-15,1900184000,2868,Select Community Support Services,112799
WARRINGTON BOROUGH COUNCIL,http://opendatacommunities.org/id/unitary-authority/warrington ,FWB,Care Purchase - Learning Disability,54450,CP-Domicil.External,440950,13-Oct-15,1900184000,580,Select Community Support Services,112799
WARRINGTON BOROUGH COUNCIL,http://opendatacommunities.org/id/unitary-authority/warrington ,FWB,Care Purchase - PD,54440,CP-Domicil.External,440950,13-Oct-15,1900184000,5960,Select Community Support Services,112799
WARRINGTON BOROUGH COUNCIL,http://opendatacommunities.org/id/unitary-authority/warrington ,FWB,Care Purchase Budget,54490,CP ExternalOther Exp,440800,13-Oct-15,1900184002,40000,St Marys Care Centre,101503
WARRINGTON BOROUGH COUNCIL,http://opendatacommunities.org/id/unitary-authority/warrington ,FWB,Care Purchase Budget,54490,CP ExternalOther Exp,440800,13-Oct-15,1900184003,25000,Four Seasons ta St Oswalds Care Hom,109422
WARRINGTON BOROUGH COUNCIL,http://opendatacommunities.org/id/unitary-authority/warrington ,FWB,Care Purchase Budget,54490,CP ExternalOther Exp,440800,13-Oct-15,1900184004,40000,Summerville Nursing Home -Private C,105162
WARRINGTON BOROUGH COUNCIL,http://opendatacommunities.org/id/unitary-authority/warrington ,FWB,Care Purchase Budget,54490,CP ExternalOther Exp,440800,13-Oct-15,1900184005,30000,Thelwall Grange Nursing Home,105174
WARRINGTON BOROUGH COUNCIL,http://opendatacommunities.org/id/unitary-authority/warrington ,FWB,Care Purchase - Learning Disability,54450,CP-Domicil.External,440950,13-Oct-15,1900184009,924,Icare Service Limited,110435
WARRINGTON BOROUGH COUNCIL,http://opendatacommunities.org/id/unitary-authority/warrington ,FWB,Care Purchase - Learning Disability,54450,CP-Day Care-External,441100,13-Oct-15,1900184009,2310,Icare Service Limited,110435
WARRINGTON BOROUGH COUNCIL,http://opendatacommunities.org/id/unitary-authority/warrington ,FWB,Care Purchase - Learning Disability,54450,CP-Domicil.External,440950,13-Oct-15,1900184010,3658,Icare Service Limited,110435
WARRINGTON BOROUGH COUNCIL,http://opendatacommunities.org/id/unitary-authority/warrington ,FWB,Care Purchase - Learning Disability,54450,CP-Day Care-External,441100,13-Oct-15,1900184010,5133,Icare Service Limited,110435
WARRINGTON BOROUGH COUNCIL,http://opendatacommunities.org/id/unitary-authority/warrington ,FWB,Care Purchase Budget,54490,CP ExternalOther Exp,440800,13-Oct-15,1900184012,26000,W H Investments Ltd,111422
WARRINGTON BOROUGH COUNCIL,http://opendatacommunities.org/id/unitary-authority/warrington ,FWB,Care Purchase - Learning Disability,54450,CP-Domicil.External,440950,13-Oct-15,1900184013,2622,Wirral Autistic Society,105251
WARRINGTON BOROUGH COUNCIL,http://opendatacommunities.org/id/unitary-authority/warrington ,FWB,Care Purchase - Learning Disability,54450,CP-Day Care-External,441100,13-Oct-15,1900184013,1180,Wirral Autistic Society,105251
WARRINGTON BOROUGH COUNCIL,http://opendatacommunities.org/id/unitary-authority/warrington ,FWB,Care Purchase Budget,54490,CP ExternalOther Exp,440800,13-Oct-15,1900184015,51000,Ashberry Healthcare,101061
WARRINGTON BOROUGH COUNCIL,http://opendatacommunities.org/id/unitary-authority/warrington ,FWB,Care Purchase - Learning Disability,54450,CP-Domicil.External,440950,13-Oct-15,1900184016,63643,Alternative Futures Group,104468
WARRINGTON BOROUGH COUNCIL,http://opendatacommunities.org/id/unitary-authority/warrington ,FWB,Care Purchase - Learning Disability,54450,Supporting People - External,441250,13-Oct-15,1900184016,6850,Alternative Futures Group,104468
WARRINGTON BOROUGH COUNCIL,http://opendatacommunities.org/id/unitary-authority/warrington ,FWB,Care Purchase Budget,54490,Voids,515150,13-Oct-15,1900184016,5745,Alternative Futures Group,104468
WARRINGTON BOROUGH COUNCIL,http://opendatacommunities.org/id/unitary-authority/warrington ,FWB,Care Purchase Budget,54490,CP ExternalOther Exp,440800,13-Oct-15,1900184017,120000,HC-One Limited Callands,109640
WARRINGTON BOROUGH COUNCIL,http://opendatacommunities.org/id/unitary-authority/warrington ,FWB,Care Purchase Budget,54490,CP ExternalOther Exp,440800,13-Oct-15,1900184018,65000,Cls Care Services Ltd,104615
WARRINGTON BOROUGH COUNCIL,http://opendatacommunities.org/id/unitary-authority/warrington ,FWB,Care Purchase Budget,54490,CP ExternalOther Exp,440800,13-Oct-15,1900184019,152000,Bupa Care Homes,104572
WARRINGTON BOROUGH COUNCIL,http://opendatacommunities.org/id/unitary-authority/warrington ,FWB,Care Purchase Budget,54490,CP ExternalOther Exp,440800,13-Oct-15,1900184020,75000,Leyton Healthcare Limited,108970
WARRINGTON BOROUGH COUNCIL,http://opendatacommunities.org/id/unitary-authority/warrington ,FWB,Care Purchase Budget,54490,CP ExternalOther Exp,440800,13-Oct-15,1900184021,75000,WCL - Warrington Community Living,105230
WARRINGTON BOROUGH COUNCIL,http://opendatacommunities.org/id/unitary-authority/warrington ,FWB,Care Purchase Budget,54490,CP ExternalOther Exp,440800,13-Oct-15,1900184022,70000,London & Manchester Healthcare Ltd,109185
WARRINGTON BOROUGH COUNCIL,http://opendatacommunities.org/id/unitary-authority/warrington ,FWB,Care Purchase Budget,54490,CP ExternalOther Exp,440800,13-Oct-15,1900184023,65000,Bondcare St Andrews,109634
WARRINGTON BOROUGH COUNCIL,http://opendatacommunities.org/id/unitary-authority/warrington ,FWB,Care Purchase Budget,54490,CP ExternalOther Exp,440800,13-Oct-15,1900184024,114000,Ashberry Healthcare Ltd,104776
WARRINGTON BOROUGH COUNCIL,http://opendatacommunities.org/id/unitary-authority/warrington ,FWB,Sankey,31313,Water & Sewerage Chg,240000,13-Oct-15,1900184025,525,United Utilities Water Limited,104982
WARRINGTON BOROUGH COUNCIL,http://opendatacommunities.org/id/unitary-authority/warrington ,ENO,Housing Projects,82008,Specific Work,200200,13-Oct-15,1900184026,3052,Complete Home Energy Systems,111861
WARRINGTON BOROUGH COUNCIL,http://opendatacommunities.org/id/unitary-authority/warrington ,ENO,Housing Projects,82008,Specific Work,200200,13-Oct-15,1900184027,2672,Complete Home Energy Systems,111861
WARRINGTON BOROUGH COUNCIL,http://opendatacommunities.org/id/unitary-authority/warrington ,EE0,Transport Holding Account,41311,Road Fund Licences,300200,13-Oct-15,1900184028,1325,Post Office Counters Ltd,100004
WARRINGTON BOROUGH COUNCIL,http://opendatacommunities.org/id/unitary-authority/warrington ,FWB,Neighbourhood Co-o Central,51309,Payment of Grants,470050,13-Oct-15,1900184038,794,Friends of Westy Hall,114841
WARRINGTON BOROUGH COUNCIL,http://opendatacommunities.org/id/unitary-authority/warrington ,FWB,Care Purchase - Learning Disability,54450,CP-Domicil.External,440950,13-Oct-15,1900184043,63643,Alternative Futures Group,104468
WARRINGTON BOROUGH COUNCIL,http://opendatacommunities.org/id/unitary-authority/warrington ,FWB,Care Purchase - Learning Disability,54450,Supporting People - External,441250,13-Oct-15,1900184043,6850,Alternative Futures Group,104468
WARRINGTON BOROUGH COUNCIL,http://opendatacommunities.org/id/unitary-authority/warrington ,FWB,Care Purchase Budget,54490,Voids,515150,13-Oct-15,1900184043,5745,Alternative Futures Group,104468
WARRINGTON BOROUGH COUNCIL,http://opendatacommunities.org/id/unitary-authority/warrington ,ENO,Housing Projects,82008,Disabled Persons Grant 1996,554000,13-Oct-15,1900184047,10000,Gt Builders,104761
WARRINGTON BOROUGH COUNCIL,http://opendatacommunities.org/id/unitary-authority/warrington ,HOL,Single Billing Holding Account,91130,Agency Supply - GF,180000,14-Oct-15,1900184048,64013,Hays Specialist Recruitment Ltd,107512
WARRINGTON BOROUGH COUNCIL,http://opendatacommunities.org/id/unitary-authority/warrington ,FWB,Care Purchase - PD,54440,Direct Payments,552000,14-Oct-15,1900184049,5374,REDACTED PERSONAL DATA,100049
WARRINGTON BOROUGH COUNCIL,http://opendatacommunities.org/id/unitary-authority/warrington ,FWB,Care Purchase - Learning Disability,54450,Direct Payments,552000,14-Oct-15,1900184051,717,REDACTED PERSONAL DATA,100270
WARRINGTON BOROUGH COUNCIL,http://opendatacommunities.org/id/unitary-authority/warrington ,FWB,Care Purchase - PD,54440,Direct Payments,552000,14-Oct-15,1900184052,5092,REDACTED PERSONAL DATA,100338
WARRINGTON BOROUGH COUNCIL,http://opendatacommunities.org/id/unitary-authority/warrington ,FWB,Care Purchase - PD,54440,Direct Payments,552000,14-Oct-15,1900184053,1273,REDACTED PERSONAL DATA,100340
WARRINGTON BOROUGH COUNCIL,http://opendatacommunities.org/id/unitary-authority/warrington ,FWB,Care Purchase - Learning Disability,54450,Direct Payments,552000,14-Oct-15,1900184055,720,REDACTED PERSONAL DATA,100452
WARRINGTON BOROUGH COUNCIL,http://opendatacommunities.org/id/unitary-authority/warrington ,FWB,Care Purchase - PD,54440,Direct Payments,552000,14-Oct-15,1900184056,1501,REDACTED PERSONAL DATA,100508
WARRINGTON BOROUGH COUNCIL,http://opendatacommunities.org/id/unitary-authority/warrington ,FWB,Care Purchase - Learning Disability,54450,Direct Payments,552000,14-Oct-15,1900184057,678,REDACTED PERSONAL DATA,100607
WARRINGTON BOROUGH COUNCIL,http://opendatacommunities.org/id/unitary-authority/warrington ,FWB,Care Purchase - PD,54440,Direct Payments,552000,14-Oct-15,1900184059,1907,REDACTED PERSONAL DATA,100666
WARRINGTON BOROUGH COUNCIL,http://opendatacommunities.org/id/unitary-authority/warrington ,FWB,Care Purchase - PD,54440,Direct Payments,552000,14-Oct-15,1900184060,1778,REDACTED PERSONAL DATA,100667
WARRINGTON BOROUGH COUNCIL,http://opendatacommunities.org/id/unitary-authority/warrington ,FWB,Care Purchase - PD,54440,Direct Payments,552000,14-Oct-15,1900184061,851,REDACTED PERSONAL DATA,100766
WARRINGTON BOROUGH COUNCIL,http://opendatacommunities.org/id/unitary-authority/warrington ,FWB,Care Purchase - PD,54440,Direct Payments,552000,14-Oct-15,1900184062,6513,REDACTED PERSONAL DATA,100879
WARRINGTON BOROUGH COUNCIL,http://opendatacommunities.org/id/unitary-authority/warrington ,FWB,Care Purchase - PD,54440,Direct Payments,552000,14-Oct-15,1900184063,1867,REDACTED PERSONAL DATA,100890
WARRINGTON BOROUGH COUNCIL,http://opendatacommunities.org/id/unitary-authority/warrington ,FWB,Older Peoples North Team,54422,Direct Payments,552000,14-Oct-15,1900184064,1351,REDACTED PERSONAL DATA,100907
WARRINGTON BOROUGH COUNCIL,http://opendatacommunities.org/id/unitary-authority/warrington ,FWB,Older Peoples South Team,54421,Direct Payments,552000,14-Oct-15,1900184066,1492,REDACTED PERSONAL DATA,100934
WARRINGTON BOROUGH COUNCIL,http://opendatacommunities.org/id/unitary-authority/warrington ,FWB,Care Purchase - Learning Disability,54450,Direct Payments,552000,14-Oct-15,1900184067,2817,REDACTED PERSONAL DATA,100945
WARRINGTON BOROUGH COUNCIL,http://opendatacommunities.org/id/unitary-authority/warrington ,FWB,Care Purchase - Learning Disability,54450,Direct Payments,552000,14-Oct-15,1900184068,3353,REDACTED PERSONAL DATA,100954
WARRINGTON BOROUGH COUNCIL,http://opendatacommunities.org/id/unitary-authority/warrington ,FWB,Care Purchase - Learning Disability,54450,Supporting People - External,441250,14-Oct-15,1900184069,1485,REDACTED PERSONAL DATA,100959
WARRINGTON BOROUGH COUNCIL,http://opendatacommunities.org/id/unitary-authority/warrington ,FWB,Care Purchase - Learning Disability,54450,Direct Payments,552000,14-Oct-15,1900184069,3835,REDACTED PERSONAL DATA,100959
WARRINGTON BOROUGH COUNCIL,http://opendatacommunities.org/id/unitary-authority/warrington ,FWB,Care Purchase - PD,54440,Direct Payments,552000,14-Oct-15,1900184070,934,REDACTED PERSONAL DATA,101007
WARRINGTON BOROUGH COUNCIL,http://opendatacommunities.org/id/unitary-authority/warrington ,FWB,Care Purchase - Learning Disability,54450,Direct Payments,552000,14-Oct-15,1900184071,5450,REDACTED PERSONAL DATA,101016
WARRINGTON BOROUGH COUNCIL,http://opendatacommunities.org/id/unitary-authority/warrington ,FWB,Care Purchase - PD,54440,Direct Payments,552000,14-Oct-15,1900184072,855,REDACTED PERSONAL DATA,101030
WARRINGTON BOROUGH COUNCIL,http://opendatacommunities.org/id/unitary-authority/warrington ,FWB,Care Purchase - Learning Disability,54450,Direct Payments,552000,14-Oct-15,1900184073,2546,REDACTED PERSONAL DATA,101045
WARRINGTON BOROUGH COUNCIL,http://opendatacommunities.org/id/unitary-authority/warrington ,FWB,Care Purchase - Learning Disability,54450,Direct Payments,552000,14-Oct-15,1900184075,14300,REDACTED PERSONAL DATA,101104
WARRINGTON BOROUGH COUNCIL,http://opendatacommunities.org/id/unitary-authority/warrington ,FWB,Care Purchase - PD,54440,Direct Payments,552000,14-Oct-15,1900184076,1873,REDACTED PERSONAL DATA,101147
WARRINGTON BOROUGH COUNCIL,http://opendatacommunities.org/id/unitary-authority/warrington ,FWB,Older Peoples North Team,54422,Direct Payments,552000,14-Oct-15,1900184078,812,REDACTED PERSONAL DATA,101174
WARRINGTON BOROUGH COUNCIL,http://opendatacommunities.org/id/unitary-authority/warrington ,FWB,Care Purchase - Learning Disability,54450,Direct Payments,552000,14-Oct-15,1900184079,4173,REDACTED PERSONAL DATA,101246
WARRINGTON BOROUGH COUNCIL,http://opendatacommunities.org/id/unitary-authority/warrington ,FWB,Care Purchase - Learning Disability,54450,Direct Payments,552000,14-Oct-15,1900184080,965,REDACTED PERSONAL DATA,101261
WARRINGTON BOROUGH COUNCIL,http://opendatacommunities.org/id/unitary-authority/warrington ,FWB,Care Purchase - PD,54440,CP - Cont Care - External,441350,14-Oct-15,1900184081,1797,REDACTED PERSONAL DATA,101276
WARRINGTON BOROUGH COUNCIL,http://opendatacommunities.org/id/unitary-authority/warrington ,FWB,Care Purchase - PD,54440,Direct Payments,552000,14-Oct-15,1900184081,1797,REDACTED PERSONAL DATA,101276
WARRINGTON BOROUGH COUNCIL,http://opendatacommunities.org/id/unitary-authority/warrington ,FWB,Child Disability,32212,Direct Payments,552000,14-Oct-15,1900184082,666,REDACTED PERSONAL DATA,101322
WARRINGTON BOROUGH COUNCIL,http://opendatacommunities.org/id/unitary-authority/warrington ,FWB,Care Purchase - PD,54440,Direct Payments,552000,14-Oct-15,1900184083,594,REDACTED PERSONAL DATA,101323
WARRINGTON BOROUGH COUNCIL,http://opendatacommunities.org/id/unitary-authority/warrington ,FWB,Care Purchase - PD,54440,Direct Payments,552000,14-Oct-15,1900184084,1358,REDACTED PERSONAL DATA,101336
WARRINGTON BOROUGH COUNCIL,http://opendatacommunities.org/id/unitary-authority/warrington ,FWB,Care Purchase - Learning Disability,54450,Direct Payments,552000,14-Oct-15,1900184085,4063,REDACTED PERSONAL DATA,101341
WARRINGTON BOROUGH COUNCIL,http://opendatacommunities.org/id/unitary-authority/warrington ,FWB,Care Purchase - PD,54440,Direct Payments,552000,14-Oct-15,1900184086,3154,REDACTED PERSONAL DATA,101354
WARRINGTON BOROUGH COUNCIL,http://opendatacommunities.org/id/unitary-authority/warrington ,FWB,Care Purchase - Learning Disability,54450,Direct Payments,552000,14-Oct-15,1900184087,800,REDACTED PERSONAL DATA,101396
WARRINGTON BOROUGH COUNCIL,http://opendatacommunities.org/id/unitary-authority/warrington ,FWB,Care Purchase - Learning Disability,54450,Direct Payments,552000,14-Oct-15,1900184088,1370,REDACTED PERSONAL DATA,101420
WARRINGTON BOROUGH COUNCIL,http://opendatacommunities.org/id/unitary-authority/warrington ,FWB,Care Purchase - PD,54440,Supporting People - External,441250,14-Oct-15,1900184089,637,REDACTED PERSONAL DATA,101431
WARRINGTON BOROUGH COUNCIL,http://opendatacommunities.org/id/unitary-authority/warrington ,FWB,Care Purchase - PD,54440,Direct Payments,552000,14-Oct-15,1900184089,764,REDACTED PERSONAL DATA,101431
WARRINGTON BOROUGH COUNCIL,http://opendatacommunities.org/id/unitary-authority/warrington ,FWB,Care Purchase - PD,54440,Direct Payments,552000,14-Oct-15,1900184091,637,REDACTED PERSONAL DATA,101483
WARRINGTON BOROUGH COUNCIL,http://opendatacommunities.org/id/unitary-authority/warrington ,FWB,Care Purchase - PD,54440,Direct Payments,552000,14-Oct-15,1900184092,729,REDACTED PERSONAL DATA,101515
WARRINGTON BOROUGH COUNCIL,http://opendatacommunities.org/id/unitary-authority/warrington ,FWB,Care Purchase - Learning Disability,54450,Direct Payments,552000,14-Oct-15,1900184093,2401,REDACTED PERSONAL DATA,101516
WARRINGTON BOROUGH COUNCIL,http://opendatacommunities.org/id/unitary-authority/warrington ,FWB,Care Purchase - ABI,54260,Direct Payments,552000,14-Oct-15,1900184095,5701,REDACTED PERSONAL DATA,101542
WARRINGTON BOROUGH COUNCIL,http://opendatacommunities.org/id/unitary-authority/warrington ,FWB,Care Purchase - Learning Disability,54450,Direct Payments,552000,14-Oct-15,1900184096,1019,REDACTED PERSONAL DATA,101547
WARRINGTON BOROUGH COUNCIL,http://opendatacommunities.org/id/unitary-authority/warrington ,FWB,Care Purchase - PD,54440,Direct Payments,552000,14-Oct-15,1900184098,849,REDACTED PERSONAL DATA,101558
WARRINGTON BOROUGH COUNCIL,http://opendatacommunities.org/id/unitary-authority/warrington ,FWB,Care Purchase - Learning Disability,54450,Direct Payments,552000,14-Oct-15,1900184099,2462,REDACTED PERSONAL DATA,101568
WARRINGTON BOROUGH COUNCIL,http://opendatacommunities.org/id/unitary-authority/warrington ,FWB,Care Purchase - Learning Disability,54450,Direct Payments,552000,14-Oct-15,1900184100,1698,REDACTED PERSONAL DATA,101584
WARRINGTON BOROUGH COUNCIL,http://opendatacommunities.org/id/unitary-authority/warrington ,FWB,Older Peoples North Team,54422,Direct Payments,552000,14-Oct-15,1900184101,509,REDACTED PERSONAL DATA,101592
WARRINGTON BOROUGH COUNCIL,http://opendatacommunities.org/id/unitary-authority/warrington ,FWB,Care Purchase - Learning Disability,54450,Direct Payments,552000,14-Oct-15,1900184102,1925,REDACTED PERSONAL DATA,101595
WARRINGTON BOROUGH COUNCIL,http://opendatacommunities.org/id/unitary-authority/warrington ,FWB,Care Purchase - Learning Disability,54450,Direct Payments,552000,14-Oct-15,1900184103,1629,REDACTED PERSONAL DATA,101614
WARRINGTON BOROUGH COUNCIL,http://opendatacommunities.org/id/unitary-authority/warrington ,FWB,Care Purchase - Learning Disability,54450,Direct Payments,552000,14-Oct-15,1900184104,1019,REDACTED PERSONAL DATA,101625
WARRINGTON BOROUGH COUNCIL,http://opendatacommunities.org/id/unitary-authority/warrington ,FWB,Child Disability,32212,Direct Payments,552000,14-Oct-15,1900184105,600,REDACTED PERSONAL DATA,101630
WARRINGTON BOROUGH COUNCIL,http://opendatacommunities.org/id/unitary-authority/warrington ,FWB,Care Purchase - Learning Disability,54450,Direct Payments,552000,14-Oct-15,1900184106,917,REDACTED PERSONAL DATA,101661
WARRINGTON BOROUGH COUNCIL,http://opendatacommunities.org/id/unitary-authority/warrington ,FWB,Child Disability,32212,Direct Payments,552000,14-Oct-15,1900184107,640,REDACTED PERSONAL DATA,101669
WARRINGTON BOROUGH COUNCIL,http://opendatacommunities.org/id/unitary-authority/warrington ,FWB,Care Purchase - PD,54440,Direct Payments,552000,14-Oct-15,1900184108,560,REDACTED PERSONAL DATA,101677
WARRINGTON BOROUGH COUNCIL,http://opendatacommunities.org/id/unitary-authority/warrington ,FWB,Care Purchase - Learning Disability,54450,Direct Payments,552000,14-Oct-15,1900184109,2290,REDACTED PERSONAL DATA,101686
WARRINGTON BOROUGH COUNCIL,http://opendatacommunities.org/id/unitary-authority/warrington ,FWB,Care Purchase - Learning Disability,54450,Direct Payments,552000,14-Oct-15,1900184110,3533,REDACTED PERSONAL DATA,101701
WARRINGTON BOROUGH COUNCIL,http://opendatacommunities.org/id/unitary-authority/warrington ,FWB,Care Purchase - Learning Disability,54450,Direct Payments,552000,14-Oct-15,1900184111,3533,REDACTED PERSONAL DATA,101704
WARRINGTON BOROUGH COUNCIL,http://opendatacommunities.org/id/unitary-authority/warrington ,FWB,Care Purchase - Learning Disability,54450,Direct Payments,552000,14-Oct-15,1900184112,1828,REDACTED PERSONAL DATA,101730
WARRINGTON BOROUGH COUNCIL,http://opendatacommunities.org/id/unitary-authority/warrington ,FWB,Care Purchase - Learning Disability,54450,Direct Payments,552000,14-Oct-15,1900184113,687,REDACTED PERSONAL DATA,101748
WARRINGTON BOROUGH COUNCIL,http://opendatacommunities.org/id/unitary-authority/warrington ,FWB,Child Disability,32212,Direct Payments,552000,14-Oct-15,1900184114,1154,REDACTED PERSONAL DATA,101758
WARRINGTON BOROUGH COUNCIL,http://opendatacommunities.org/id/unitary-authority/warrington ,FWB,Care Purchase - Learning Disability,54450,Direct Payments,552000,14-Oct-15,1900184115,509,REDACTED PERSONAL DATA,101759
WARRINGTON BOROUGH COUNCIL,http://opendatacommunities.org/id/unitary-authority/warrington ,FWB,Care Purchase AMH,54135,Direct Payments,552000,14-Oct-15,1900184116,1949,REDACTED PERSONAL DATA,101808
WARRINGTON BOROUGH COUNCIL,http://opendatacommunities.org/id/unitary-authority/warrington ,FWB,Older Peoples South Team,54421,Direct Payments,552000,14-Oct-15,1900184117,912,REDACTED PERSONAL DATA,101825
WARRINGTON BOROUGH COUNCIL,http://opendatacommunities.org/id/unitary-authority/warrington ,FWB,Older Peoples South Team,54421,Direct Payments,552000,14-Oct-15,1900184123,610,REDACTED PERSONAL DATA,102183
WARRINGTON BOROUGH COUNCIL,http://opendatacommunities.org/id/unitary-authority/warrington ,FWB,Care Purchase - Learning Disability,54450,Direct Payments,552000,14-Oct-15,1900184124,542,REDACTED PERSONAL DATA,102225
WARRINGTON BOROUGH COUNCIL,http://opendatacommunities.org/id/unitary-authority/warrington ,FWB,Care Purchase - Learning Disability,54450,Direct Payments,552000,14-Oct-15,1900184125,1103,REDACTED PERSONAL DATA,102348
WARRINGTON BOROUGH COUNCIL,http://opendatacommunities.org/id/unitary-authority/warrington ,FWB,Care Purchase - Learning Disability,54450,Direct Payments,552000,14-Oct-15,1900184126,1011,REDACTED PERSONAL DATA,102547
WARRINGTON BOROUGH COUNCIL,http://opendatacommunities.org/id/unitary-authority/warrington ,FWB,Care Purchase - Learning Disability,54450,Direct Payments,552000,14-Oct-15,1900184131,721,REDACTED PERSONAL DATA,102667
WARRINGTON BOROUGH COUNCIL,http://opendatacommunities.org/id/unitary-authority/warrington ,FWB,Care Purchase - Learning Disability,54450,Direct Payments,552000,14-Oct-15,1900184132,1273,REDACTED PERSONAL DATA,102710
WARRINGTON BOROUGH COUNCIL,http://opendatacommunities.org/id/unitary-authority/warrington ,FWB,Care Purchase - Learning Disability,54450,Direct Payments,552000,14-Oct-15,1900184133,849,REDACTED PERSONAL DATA,102718
WARRINGTON BOROUGH COUNCIL,http://opendatacommunities.org/id/unitary-authority/warrington ,FWB,Care Purchase - PD,54440,Direct Payments,552000,14-Oct-15,1900184141,935,REDACTED PERSONAL DATA,103320
WARRINGTON BOROUGH COUNCIL,http://opendatacommunities.org/id/unitary-authority/warrington ,FWB,Care Purchase - PD,54440,CP - Cont Care - External,441350,14-Oct-15,1900184142,1584,REDACTED PERSONAL DATA,103372
WARRINGTON BOROUGH COUNCIL,http://opendatacommunities.org/id/unitary-authority/warrington ,FWB,Care Purchase - PD,54440,Direct Payments,552000,14-Oct-15,1900184142,3822,REDACTED PERSONAL DATA,103372
WARRINGTON BOROUGH COUNCIL,http://opendatacommunities.org/id/unitary-authority/warrington ,FWB,Care Purchase - PD,54440,CP - Cont Care - External,441350,14-Oct-15,1900184143,918,REDACTED PERSONAL DATA,103404
WARRINGTON BOROUGH COUNCIL,http://opendatacommunities.org/id/unitary-authority/warrington ,FWB,Care Purchase - PD,54440,Direct Payments,552000,14-Oct-15,1900184143,918,REDACTED PERSONAL DATA,103404
WARRINGTON BOROUGH COUNCIL,http://opendatacommunities.org/id/unitary-authority/warrington ,FWB,Care Purchase - Learning Disability,54450,Direct Payments,552000,14-Oct-15,1900184147,696,REDACTED PERSONAL DATA,103573
WARRINGTON BOROUGH COUNCIL,http://opendatacommunities.org/id/unitary-authority/warrington ,FWB,Care Purchase - PD,54440,Direct Payments,552000,14-Oct-15,1900184151,1594,REDACTED PERSONAL DATA,103613
WARRINGTON BOROUGH COUNCIL,http://opendatacommunities.org/id/unitary-authority/warrington ,FWB,Care Purchase - Learning Disability,54450,Direct Payments,552000,14-Oct-15,1900184152,1401,REDACTED PERSONAL DATA,103614
WARRINGTON BOROUGH COUNCIL,http://opendatacommunities.org/id/unitary-authority/warrington ,FWB,Care Purchase - Learning Disability,54450,Direct Payments,552000,14-Oct-15,1900184154,2515,REDACTED PERSONAL DATA,103660
WARRINGTON BOROUGH COUNCIL,http://opendatacommunities.org/id/unitary-authority/warrington ,FWB,Care Purchase - PD,54440,Direct Payments,552000,14-Oct-15,1900184155,887,REDACTED PERSONAL DATA,103674
WARRINGTON BOROUGH COUNCIL,http://opendatacommunities.org/id/unitary-authority/warrington ,FWB,Care Purchase - Learning Disability,54450,Direct Payments,552000,14-Oct-15,1900184156,3862,REDACTED PERSONAL DATA,103696
WARRINGTON BOROUGH COUNCIL,http://opendatacommunities.org/id/unitary-authority/warrington ,FWB,Care Purchase - Learning Disability,54450,Direct Payments,552000,14-Oct-15,1900184157,1378,REDACTED PERSONAL DATA,103697
WARRINGTON BOROUGH COUNCIL,http://opendatacommunities.org/id/unitary-authority/warrington ,FWB,Care Purchase - Learning Disability,54450,Supporting People - External,441250,14-Oct-15,1900184163,810,REDACTED PERSONAL DATA,103771
WARRINGTON BOROUGH COUNCIL,http://opendatacommunities.org/id/unitary-authority/warrington ,FWB,Care Purchase - Learning Disability,54450,Direct Payments,552000,14-Oct-15,1900184163,9814,REDACTED PERSONAL DATA,103771
WARRINGTON BOROUGH COUNCIL,http://opendatacommunities.org/id/unitary-authority/warrington ,FWB,Care Purchase - PD,54440,Supporting People - External,441250,14-Oct-15,1900184164,849,REDACTED PERSONAL DATA,103794
WARRINGTON BOROUGH COUNCIL,http://opendatacommunities.org/id/unitary-authority/warrington ,FWB,Care Purchase - PD,54440,Direct Payments,552000,14-Oct-15,1900184172,1179,REDACTED PERSONAL DATA,104205
WARRINGTON BOROUGH COUNCIL,http://opendatacommunities.org/id/unitary-authority/warrington ,FWB,Care Purchase - PD,54440,Direct Payments,552000,14-Oct-15,1900184174,797,REDACTED PERSONAL DATA,104327
WARRINGTON BOROUGH COUNCIL,http://opendatacommunities.org/id/unitary-authority/warrington ,FWB,Care Purchase - Learning Disability,54450,Direct Payments,552000,14-Oct-15,1900184176,1240,REDACTED PERSONAL DATA,105576
WARRINGTON BOROUGH COUNCIL,http://opendatacommunities.org/id/unitary-authority/warrington ,FWB,Care Purchase - Learning Disability,54450,Direct Payments,552000,14-Oct-15,1900184177,538,REDACTED PERSONAL DATA,105598
WARRINGTON BOROUGH COUNCIL,http://opendatacommunities.org/id/unitary-authority/warrington ,FWB,Care Purchase - Learning Disability,54450,Direct Payments,552000,14-Oct-15,1900184178,956,REDACTED PERSONAL DATA,105621
WARRINGTON BOROUGH COUNCIL,http://opendatacommunities.org/id/unitary-authority/warrington ,FWB,Care Purchase - Learning Disability,54450,CP - Cont Care - External,441350,14-Oct-15,1900184181,638,REDACTED PERSONAL DATA,105625
WARRINGTON BOROUGH COUNCIL,http://opendatacommunities.org/id/unitary-authority/warrington ,FWB,Care Purchase - Learning Disability,54450,Direct Payments,552000,14-Oct-15,1900184186,726,REDACTED PERSONAL DATA,105641
WARRINGTON BOROUGH COUNCIL,http://opendatacommunities.org/id/unitary-authority/warrington ,FWB,Care Purchase - PD,54440,Direct Payments,552000,14-Oct-15,1900184187,597,REDACTED PERSONAL DATA,105665
WARRINGTON BOROUGH COUNCIL,http://opendatacommunities.org/id/unitary-authority/warrington ,FWB,Older Peoples South Team,54421,Direct Payments,552000,14-Oct-15,1900184188,576,REDACTED PERSONAL DATA,105666
WARRINGTON BOROUGH COUNCIL,http://opendatacommunities.org/id/unitary-authority/warrington ,FWB,Care Purchase AMH,54135,Direct Payments,552000,14-Oct-15,1900184190,1570,REDACTED PERSONAL DATA,105687
WARRINGTON BOROUGH COUNCIL,http://opendatacommunities.org/id/unitary-authority/warrington ,FWB,Care Purchase - PD,54440,Direct Payments,552000,14-Oct-15,1900184193,849,REDACTED PERSONAL DATA,105758
WARRINGTON BOROUGH COUNCIL,http://opendatacommunities.org/id/unitary-authority/warrington ,FWB,Older Peoples South Team,54421,Direct Payments,552000,14-Oct-15,1900184194,636,REDACTED PERSONAL DATA,105861
WARRINGTON BOROUGH COUNCIL,http://opendatacommunities.org/id/unitary-authority/warrington ,FWB,Care Purchase - Learning Disability,54450,Direct Payments,552000,14-Oct-15,1900184197,637,REDACTED PERSONAL DATA,106066
WARRINGTON BOROUGH COUNCIL,http://opendatacommunities.org/id/unitary-authority/warrington ,FWB,Care Purchase - PD,54440,Direct Payments,552000,14-Oct-15,1900184199,538,REDACTED PERSONAL DATA,106145
WARRINGTON BOROUGH COUNCIL,http://opendatacommunities.org/id/unitary-authority/warrington ,FWB,Older Peoples North Team,54422,Direct Payments,552000,14-Oct-15,1900184201,706,REDACTED PERSONAL DATA,106441
WARRINGTON BOROUGH COUNCIL,http://opendatacommunities.org/id/unitary-authority/warrington ,FWB,Care Purchase - PD,54440,Direct Payments,552000,14-Oct-15,1900184203,855,REDACTED PERSONAL DATA,106630
WARRINGTON BOROUGH COUNCIL,http://opendatacommunities.org/id/unitary-authority/warrington ,FWB,Child Disability,32212,Direct Payments,552000,14-Oct-15,1900184205,687,REDACTED PERSONAL DATA,106708
WARRINGTON BOROUGH COUNCIL,http://opendatacommunities.org/id/unitary-authority/warrington ,FWB,Care Purchase - Learning Disability,54450,Direct Payments,552000,14-Oct-15,1900184208,668,REDACTED PERSONAL DATA,106866
WARRINGTON BOROUGH COUNCIL,http://opendatacommunities.org/id/unitary-authority/warrington ,FWB,Care Purchase - PD,54440,Direct Payments,552000,14-Oct-15,1900184214,606,REDACTED PERSONAL DATA,107299
WARRINGTON BOROUGH COUNCIL,http://opendatacommunities.org/id/unitary-authority/warrington ,FWB,Older Peoples North Team,54422,Direct Payments,552000,14-Oct-15,1900184216,972,REDACTED PERSONAL DATA,107436
WARRINGTON BOROUGH COUNCIL,http://opendatacommunities.org/id/unitary-authority/warrington ,FWB,Care Purchase - Learning Disability,54450,Direct Payments,552000,14-Oct-15,1900184217,1414,REDACTED PERSONAL DATA,107437
WARRINGTON BOROUGH COUNCIL,http://opendatacommunities.org/id/unitary-authority/warrington ,FWB,Care Purchase - PD,54440,Direct Payments,552000,14-Oct-15,1900184220,1019,REDACTED PERSONAL DATA,107665
WARRINGTON BOROUGH COUNCIL,http://opendatacommunities.org/id/unitary-authority/warrington ,FWB,Older Peoples South Team,54421,Direct Payments,552000,14-Oct-15,1900184228,637,REDACTED PERSONAL DATA,107960
WARRINGTON BOROUGH COUNCIL,http://opendatacommunities.org/id/unitary-authority/warrington ,FWB,Care Purchase - PD,54440,Direct Payments,552000,14-Oct-15,1900184231,999,REDACTED PERSONAL DATA,112510
WARRINGTON BOROUGH COUNCIL,http://opendatacommunities.org/id/unitary-authority/warrington ,FWB,Older Peoples South Team,54421,Direct Payments,552000,14-Oct-15,1900184232,948,REDACTED PERSONAL DATA,114039
WARRINGTON BOROUGH COUNCIL,http://opendatacommunities.org/id/unitary-authority/warrington ,FWB,Older Peoples South Team,54421,Direct Payments,552000,14-Oct-15,1900184234,767,REDACTED PERSONAL DATA,114340
WARRINGTON BOROUGH COUNCIL,http://opendatacommunities.org/id/unitary-authority/warrington ,FWB,Care Purchase - PD,54440,Direct Payments,552000,14-Oct-15,1900184235,1249,REDACTED PERSONAL DATA,114446
WARRINGTON BOROUGH COUNCIL,http://opendatacommunities.org/id/unitary-authority/warrington ,FWB,Older Peoples North Team,54422,Direct Payments,552000,14-Oct-15,1900184236,1071,REDACTED PERSONAL DATA,114527
WARRINGTON BOROUGH COUNCIL,http://opendatacommunities.org/id/unitary-authority/warrington ,FWB,Care Purchase - PD,54440,Direct Payments,552000,14-Oct-15,1900184237,1122,REDACTED PERSONAL DATA,114697
WARRINGTON BOROUGH COUNCIL,http://opendatacommunities.org/id/unitary-authority/warrington ,FWB,Care Purchase - Learning Disability,54450,Direct Payments,552000,14-Oct-15,1900184239,697,REDACTED PERSONAL DATA,460054
WARRINGTON BOROUGH COUNCIL,http://opendatacommunities.org/id/unitary-authority/warrington ,FWB,Care Purchase - ABI,54260,Direct Payments,552000,14-Oct-15,1900184240,560,REDACTED PERSONAL DATA,460066
WARRINGTON BOROUGH COUNCIL,http://opendatacommunities.org/id/unitary-authority/warrington ,FWB,Care Purchase - Learning Disability,54450,CP - Cont Care - External,441350,14-Oct-15,1900184242,2889,REDACTED PERSONAL DATA,460091
WARRINGTON BOROUGH COUNCIL,http://opendatacommunities.org/id/unitary-authority/warrington ,FWB,Care Purchase - Learning Disability,54450,Direct Payments,552000,14-Oct-15,1900184242,2889,REDACTED PERSONAL DATA,460091
WARRINGTON BOROUGH COUNCIL,http://opendatacommunities.org/id/unitary-authority/warrington ,FWB,Care Purchase - PD,54440,Direct Payments,552000,14-Oct-15,1900184243,764,REDACTED PERSONAL DATA,460097
WARRINGTON BOROUGH COUNCIL,http://opendatacommunities.org/id/unitary-authority/warrington ,FWB,Child Disability,32212,Direct Payments,552000,14-Oct-15,1900184244,977,REDACTED PERSONAL DATA,460112
WARRINGTON BOROUGH COUNCIL,http://opendatacommunities.org/id/unitary-authority/warrington ,FWB,Care Purchase - Learning Disability,54450,Direct Payments,552000,14-Oct-15,1900184245,7185,REDACTED PERSONAL DATA,460113
WARRINGTON BOROUGH COUNCIL,http://opendatacommunities.org/id/unitary-authority/warrington ,FWB,Care Purchase - PD,54440,Direct Payments,552000,14-Oct-15,1900184246,1698,REDACTED PERSONAL DATA,460127
WARRINGTON BOROUGH COUNCIL,http://opendatacommunities.org/id/unitary-authority/warrington ,FWB,Child Disability,32212,Direct Payments,552000,14-Oct-15,1900184247,1510,REDACTED PERSONAL DATA,460139
WARRINGTON BOROUGH COUNCIL,http://opendatacommunities.org/id/unitary-authority/warrington ,FWB,Child Disability,32212,Direct Payments,552000,14-Oct-15,1900184250,666,REDACTED PERSONAL DATA,460160
WARRINGTON BOROUGH COUNCIL,http://opendatacommunities.org/id/unitary-authority/warrington ,FWB,Older Peoples North Team,54422,Direct Payments,552000,14-Oct-15,1900184252,820,REDACTED PERSONAL DATA,460165
WARRINGTON BOROUGH COUNCIL,http://opendatacommunities.org/id/unitary-authority/warrington ,FWB,Care Purchase - Learning Disability,54450,Direct Payments,552000,14-Oct-15,1900184255,2795,REDACTED PERSONAL DATA,460172
WARRINGTON BOROUGH COUNCIL,http://opendatacommunities.org/id/unitary-authority/warrington ,FWB,Care Purchase - Learning Disability,54450,Direct Payments,552000,14-Oct-15,1900184257,770,REDACTED PERSONAL DATA,460177
WARRINGTON BOROUGH COUNCIL,http://opendatacommunities.org/id/unitary-authority/warrington ,FWB,Care Purchase - Learning Disability,54450,Direct Payments,552000,14-Oct-15,1900184258,1976,REDACTED PERSONAL DATA,460182
WARRINGTON BOROUGH COUNCIL,http://opendatacommunities.org/id/unitary-authority/warrington ,FWB,Care Purchase - PD,54440,Direct Payments,552000,14-Oct-15,1900184261,539,REDACTED PERSONAL DATA,460192
WARRINGTON BOROUGH COUNCIL,http://opendatacommunities.org/id/unitary-authority/warrington ,FWB,Care Purchase - Learning Disability,54450,Direct Payments,552000,14-Oct-15,1900184262,1910,REDACTED PERSONAL DATA,460195
WARRINGTON BOROUGH COUNCIL,http://opendatacommunities.org/id/unitary-authority/warrington ,FWB,Care Purchase - Learning Disability,54450,Direct Payments,552000,14-Oct-15,1900184263,720,REDACTED PERSONAL DATA,460199
WARRINGTON BOROUGH COUNCIL,http://opendatacommunities.org/id/unitary-authority/warrington ,FWB,Care Purchase - Learning Disability,54450,Direct Payments,552000,14-Oct-15,1900184264,520,REDACTED PERSONAL DATA,460202
WARRINGTON BOROUGH COUNCIL,http://opendatacommunities.org/id/unitary-authority/warrington ,FWB,Care Purchase - Learning Disability,54450,Direct Payments,552000,14-Oct-15,1900184265,9978,REDACTED PERSONAL DATA,460210
WARRINGTON BOROUGH COUNCIL,http://opendatacommunities.org/id/unitary-authority/warrington ,FWB,Care Purchase - PD,54440,Direct Payments,552000,14-Oct-15,1900184267,915,REDACTED PERSONAL DATA,460214
WARRINGTON BOROUGH COUNCIL,http://opendatacommunities.org/id/unitary-authority/warrington ,FWB,Older Peoples South Team,54421,Direct Payments,552000,14-Oct-15,1900184269,1272,REDACTED PERSONAL DATA,460222
WARRINGTON BOROUGH COUNCIL,http://opendatacommunities.org/id/unitary-authority/warrington ,FWB,Child Disability,32212,Direct Payments,552000,14-Oct-15,1900184271,866,REDACTED PERSONAL DATA,460224
WARRINGTON BOROUGH COUNCIL,http://opendatacommunities.org/id/unitary-authority/warrington ,FWB,Care Purchase - PD,54440,Direct Payments,552000,14-Oct-15,1900184272,817,REDACTED PERSONAL DATA,460226
WARRINGTON BOROUGH COUNCIL,http://opendatacommunities.org/id/unitary-authority/warrington ,FWB,Care Purchase - Learning Disability,54450,Direct Payments,552000,14-Oct-15,1900184273,721,REDACTED PERSONAL DATA,460229
WARRINGTON BOROUGH COUNCIL,http://opendatacommunities.org/id/unitary-authority/warrington ,FWB,Older Peoples South Team,54421,Direct Payments,552000,14-Oct-15,1900184276,714,REDACTED PERSONAL DATA,460238
WARRINGTON BOROUGH COUNCIL,http://opendatacommunities.org/id/unitary-authority/warrington ,FWB,Care Purchase - PD,54440,Direct Payments,552000,14-Oct-15,1900184278,1554,REDACTED PERSONAL DATA,460243
WARRINGTON BOROUGH COUNCIL,http://opendatacommunities.org/id/unitary-authority/warrington ,FWB,Child Disability,32212,Direct Payments,552000,14-Oct-15,1900184279,680,REDACTED PERSONAL DATA,460248
WARRINGTON BOROUGH COUNCIL,http://opendatacommunities.org/id/unitary-authority/warrington ,FWB,Care Purchase - PD,54440,Direct Payments,552000,14-Oct-15,1900184284,2918,REDACTED PERSONAL DATA,460257
WARRINGTON BOROUGH COUNCIL,http://opendatacommunities.org/id/unitary-authority/warrington ,FWB,Care Purchase - Learning Disability,54450,Direct Payments,552000,14-Oct-15,1900184286,5131,REDACTED PERSONAL DATA,460263
WARRINGTON BOROUGH COUNCIL,http://opendatacommunities.org/id/unitary-authority/warrington ,FWB,Care Purchase - PD,54440,Direct Payments,552000,14-Oct-15,1900184287,509,REDACTED PERSONAL DATA,460264
WARRINGTON BOROUGH COUNCIL,http://opendatacommunities.org/id/unitary-authority/warrington ,FWB,Older Peoples South Team,54421,Direct Payments,552000,14-Oct-15,1900184288,661,REDACTED PERSONAL DATA,460265
WARRINGTON BOROUGH COUNCIL,http://opendatacommunities.org/id/unitary-authority/warrington ,FWB,Older Peoples South Team,54421,Direct Payments,552000,14-Oct-15,1900184289,829,REDACTED PERSONAL DATA,460266
WARRINGTON BOROUGH COUNCIL,http://opendatacommunities.org/id/unitary-authority/warrington ,FWB,Care Purchase - PD,54440,Direct Payments,552000,14-Oct-15,1900184291,2249,REDACTED PERSONAL DATA,460269
WARRINGTON BOROUGH COUNCIL,http://opendatacommunities.org/id/unitary-authority/warrington ,FWB,Care Purchase - PD,54440,Direct Payments,552000,14-Oct-15,1900184292,541,REDACTED PERSONAL DATA,460270
WARRINGTON BOROUGH COUNCIL,http://opendatacommunities.org/id/unitary-authority/warrington ,FWB,Care Purchase - PD,54440,Direct Payments,552000,14-Oct-15,1900184293,849,REDACTED PERSONAL DATA,460278
WARRINGTON BOROUGH COUNCIL,http://opendatacommunities.org/id/unitary-authority/warrington ,FWB,Care Purchase - Learning Disability,54450,Direct Payments,552000,14-Oct-15,1900184294,520,REDACTED PERSONAL DATA,460279
WARRINGTON BOROUGH COUNCIL,http://opendatacommunities.org/id/unitary-authority/warrington ,FWB,Care Purchase - Learning Disability,54450,Direct Payments,552000,14-Oct-15,1900184295,921,REDACTED PERSONAL DATA,460281
WARRINGTON BOROUGH COUNCIL,http://opendatacommunities.org/id/unitary-authority/warrington ,FWB,Older Peoples South Team,54421,Direct Payments,552000,14-Oct-15,1900184296,1304,REDACTED PERSONAL DATA,460283
WARRINGTON BOROUGH COUNCIL,http://opendatacommunities.org/id/unitary-authority/warrington ,FWB,Care Purchase - Learning Disability,54450,Direct Payments,552000,14-Oct-15,1900184298,1232,REDACTED PERSONAL DATA,460286
WARRINGTON BOROUGH COUNCIL,http://opendatacommunities.org/id/unitary-authority/warrington ,FWB,Care Purchase - Learning Disability,54450,Direct Payments,552000,14-Oct-15,1900184299,1889,REDACTED PERSONAL DATA,460290
WARRINGTON BOROUGH COUNCIL,http://opendatacommunities.org/id/unitary-authority/warrington ,FWB,Care Purchase - ABI,54260,Direct Payments,552000,14-Oct-15,1900184302,1273,REDACTED PERSONAL DATA,460295
WARRINGTON BOROUGH COUNCIL,http://opendatacommunities.org/id/unitary-authority/warrington ,FWB,Care Purchase - Learning Disability,54450,Direct Payments,552000,14-Oct-15,1900184306,1657,REDACTED PERSONAL DATA,460316
WARRINGTON BOROUGH COUNCIL,http://opendatacommunities.org/id/unitary-authority/warrington ,FWB,Care Purchase - PD,54440,Direct Payments,552000,14-Oct-15,1900184309,594,REDACTED PERSONAL DATA,460326
WARRINGTON BOROUGH COUNCIL,http://opendatacommunities.org/id/unitary-authority/warrington ,FWB,Care Purchase - PD,54440,Direct Payments,552000,14-Oct-15,1900184311,3040,REDACTED PERSONAL DATA,460329
WARRINGTON BOROUGH COUNCIL,http://opendatacommunities.org/id/unitary-authority/warrington ,FWB,Care Purchase - Learning Disability,54450,Direct Payments,552000,14-Oct-15,1900184314,1715,REDACTED PERSONAL DATA,460425
WARRINGTON BOROUGH COUNCIL,http://opendatacommunities.org/id/unitary-authority/warrington ,FWB,Care Purchase - PD,54440,Direct Payments,552000,14-Oct-15,1900184315,594,REDACTED PERSONAL DATA,460426
WARRINGTON BOROUGH COUNCIL,http://opendatacommunities.org/id/unitary-authority/warrington ,FWB,Care Purchase - PD,54440,Direct Payments,552000,14-Oct-15,1900184317,1443,REDACTED PERSONAL DATA,460430
WARRINGTON BOROUGH COUNCIL,http://opendatacommunities.org/id/unitary-authority/warrington ,FWB,Older Peoples North Team,54422,Direct Payments,552000,14-Oct-15,1900184321,774,REDACTED PERSONAL DATA,460454
WARRINGTON BOROUGH COUNCIL,http://opendatacommunities.org/id/unitary-authority/warrington ,FWB,Care Purchase - PD,54440,Direct Payments,552000,14-Oct-15,1900184323,798,REDACTED PERSONAL DATA,460457
WARRINGTON BOROUGH COUNCIL,http://opendatacommunities.org/id/unitary-authority/warrington ,FWB,Care Purchase - PD,54440,Direct Payments,552000,14-Oct-15,1900184324,1040,REDACTED PERSONAL DATA,460465
WARRINGTON BOROUGH COUNCIL,http://opendatacommunities.org/id/unitary-authority/warrington ,FWB,Care Purchase - PD,54440,Direct Payments,552000,14-Oct-15,1900184325,668,REDACTED PERSONAL DATA,460468
WARRINGTON BOROUGH COUNCIL,http://opendatacommunities.org/id/unitary-authority/warrington ,FWB,Child Disability,32212,Direct Payments,552000,14-Oct-15,1900184326,643,REDACTED PERSONAL DATA,460471
WARRINGTON BOROUGH COUNCIL,http://opendatacommunities.org/id/unitary-authority/warrington ,FWB,Care Purchase - PD,54440,Direct Payments,552000,14-Oct-15,1900184329,637,REDACTED PERSONAL DATA,460482
WARRINGTON BOROUGH COUNCIL,http://opendatacommunities.org/id/unitary-authority/warrington ,FWB,Care Purchase - PD,54440,Direct Payments,552000,14-Oct-15,1900184332,685,REDACTED PERSONAL DATA,460509
WARRINGTON BOROUGH COUNCIL,http://opendatacommunities.org/id/unitary-authority/warrington ,FWB,Care Purchase - Learning Disability,54450,Direct Payments,552000,14-Oct-15,1900184335,1616,REDACTED PERSONAL DATA,460514
WARRINGTON BOROUGH COUNCIL,http://opendatacommunities.org/id/unitary-authority/warrington ,FWB,Care Purchase - PD,54440,Direct Payments,552000,14-Oct-15,1900184336,1141,REDACTED PERSONAL DATA,460518
WARRINGTON BOROUGH COUNCIL,http://opendatacommunities.org/id/unitary-authority/warrington ,FWB,Care Purchase - Learning Disability,54450,Direct Payments,552000,14-Oct-15,1900184337,1188,REDACTED PERSONAL DATA,460519
WARRINGTON BOROUGH COUNCIL,http://opendatacommunities.org/id/unitary-authority/warrington ,FWB,Care Purchase AMH,54135,Direct Payments,552000,14-Oct-15,1900184338,978,REDACTED PERSONAL DATA,460520
WARRINGTON BOROUGH COUNCIL,http://opendatacommunities.org/id/unitary-authority/warrington ,FWB,Care Purchase - PD,54440,Direct Payments,552000,14-Oct-15,1900184342,678,REDACTED PERSONAL DATA,460545
WARRINGTON BOROUGH COUNCIL,http://opendatacommunities.org/id/unitary-authority/warrington ,FWB,Care Purchase - Learning Disability,54450,Direct Payments,552000,14-Oct-15,1900184344,2692,REDACTED PERSONAL DATA,460566
WARRINGTON BOROUGH COUNCIL,http://opendatacommunities.org/id/unitary-authority/warrington ,FWB,Care Purchase - PD,54440,Direct Payments,552000,14-Oct-15,1900184345,615,REDACTED PERSONAL DATA,460568
WARRINGTON BOROUGH COUNCIL,http://opendatacommunities.org/id/unitary-authority/warrington ,FWB,Care Purchase - PD,54440,Direct Payments,552000,14-Oct-15,1900184347,1591,REDACTED PERSONAL DATA,460576
WARRINGTON BOROUGH COUNCIL,http://opendatacommunities.org/id/unitary-authority/warrington ,FWB,Care Purchase - PD,54440,Direct Payments,552000,14-Oct-15,1900184350,997,REDACTED PERSONAL DATA,460581
WARRINGTON BOROUGH COUNCIL,http://opendatacommunities.org/id/unitary-authority/warrington ,FWB,Care Purchase - PD,54440,Direct Payments,552000,14-Oct-15,1900184356,1178,REDACTED PERSONAL DATA,460622
WARRINGTON BOROUGH COUNCIL,http://opendatacommunities.org/id/unitary-authority/warrington ,FWB,Care Purchase - PD,54440,Direct Payments,552000,14-Oct-15,1900184357,552,REDACTED PERSONAL DATA,460623
WARRINGTON BOROUGH COUNCIL,http://opendatacommunities.org/id/unitary-authority/warrington ,FWB,Care Purchase - Learning Disability,54450,Direct Payments,552000,14-Oct-15,1900184358,5443,REDACTED PERSONAL DATA,460625
WARRINGTON BOROUGH COUNCIL,http://opendatacommunities.org/id/unitary-authority/warrington ,FWB,Care Purchase - PD,54440,Direct Payments,552000,14-Oct-15,1900184360,902,REDACTED PERSONAL DATA,460638
WARRINGTON BOROUGH COUNCIL,http://opendatacommunities.org/id/unitary-authority/warrington ,FWB,Care Purchase - Learning Disability,54450,Direct Payments,552000,14-Oct-15,1900184361,2419,REDACTED PERSONAL DATA,460665
WARRINGTON BOROUGH COUNCIL,http://opendatacommunities.org/id/unitary-authority/warrington ,FWB,Care Purchase AMH,54135,Direct Payments,552000,14-Oct-15,1900184362,679,REDACTED PERSONAL DATA,460671
WARRINGTON BOROUGH COUNCIL,http://opendatacommunities.org/id/unitary-authority/warrington ,FWB,Care Purchase - PD,54440,Direct Payments,552000,14-Oct-15,1900184364,806,REDACTED PERSONAL DATA,460681
WARRINGTON BOROUGH COUNCIL,http://opendatacommunities.org/id/unitary-authority/warrington ,FWB,Care Purchase - PD,54440,Direct Payments,552000,14-Oct-15,1900184366,637,REDACTED PERSONAL DATA,460684
WARRINGTON BOROUGH COUNCIL,http://opendatacommunities.org/id/unitary-authority/warrington ,FWB,Care Purchase - PD,54440,Direct Payments,552000,14-Oct-15,1900184371,963,REDACTED PERSONAL DATA,460703
WARRINGTON BOROUGH COUNCIL,http://opendatacommunities.org/id/unitary-authority/warrington ,FWB,Care Purchase - Learning Disability,54450,Direct Payments,552000,14-Oct-15,1900184374,11453,REDACTED PERSONAL DATA,460725
WARRINGTON BOROUGH COUNCIL,http://opendatacommunities.org/id/unitary-authority/warrington ,FWB,Care Purchase - PD,54440,Direct Payments,552000,14-Oct-15,1900184375,866,REDACTED PERSONAL DATA,460726
WARRINGTON BOROUGH COUNCIL,http://opendatacommunities.org/id/unitary-authority/warrington ,FWB,Older Peoples South Team,54421,Direct Payments,552000,14-Oct-15,1900184376,646,REDACTED PERSONAL DATA,460727
WARRINGTON BOROUGH COUNCIL,http://opendatacommunities.org/id/unitary-authority/warrington ,FWB,Older Peoples South Team,54421,Direct Payments,552000,14-Oct-15,1900184378,956,REDACTED PERSONAL DATA,460737
WARRINGTON BOROUGH COUNCIL,http://opendatacommunities.org/id/unitary-authority/warrington ,FWB,Care Purchase AMH,54135,Direct Payments,552000,14-Oct-15,1900184380,763,REDACTED PERSONAL DATA,460748
WARRINGTON BOROUGH COUNCIL,http://opendatacommunities.org/id/unitary-authority/warrington ,FWB,Care Purchase - Learning Disability,54450,Direct Payments,552000,14-Oct-15,1900184381,790,REDACTED PERSONAL DATA,460749
WARRINGTON BOROUGH COUNCIL,http://opendatacommunities.org/id/unitary-authority/warrington ,FWB,Care Purchase - Learning Disability,54450,Direct Payments,552000,14-Oct-15,1900184387,1524,REDACTED PERSONAL DATA,460765
WARRINGTON BOROUGH COUNCIL,http://opendatacommunities.org/id/unitary-authority/warrington ,FWB,Care Purchase - Learning Disability,54450,Direct Payments,552000,14-Oct-15,1900184388,1629,REDACTED PERSONAL DATA,460779
WARRINGTON BOROUGH COUNCIL,http://opendatacommunities.org/id/unitary-authority/warrington ,FWB,Older Peoples North Team,54422,Direct Payments,552000,14-Oct-15,1900184390,704,REDACTED PERSONAL DATA,460785
WARRINGTON BOROUGH COUNCIL,http://opendatacommunities.org/id/unitary-authority/warrington ,FWB,Older Peoples North Team,54422,Direct Payments,552000,14-Oct-15,1900184397,784,REDACTED PERSONAL DATA,460818
WARRINGTON BOROUGH COUNCIL,http://opendatacommunities.org/id/unitary-authority/warrington ,FWB,Care Purchase - PD,54440,Direct Payments,552000,14-Oct-15,1900184399,976,REDACTED PERSONAL DATA,460850
WARRINGTON BOROUGH COUNCIL,http://opendatacommunities.org/id/unitary-authority/warrington ,FWB,Care Purchase - PD,54440,Direct Payments,552000,14-Oct-15,1900184400,1380,REDACTED PERSONAL DATA,460853
WARRINGTON BOROUGH COUNCIL,http://opendatacommunities.org/id/unitary-authority/warrington ,FWB,Older Peoples South Team,54421,Direct Payments,552000,14-Oct-15,1900184401,576,REDACTED PERSONAL DATA,460854
WARRINGTON BOROUGH COUNCIL,http://opendatacommunities.org/id/unitary-authority/warrington ,FWB,Care Purchase - Learning Disability,54450,CP - Cont Care - External,441350,14-Oct-15,1900184402,1973,REDACTED PERSONAL DATA,460859
WARRINGTON BOROUGH COUNCIL,http://opendatacommunities.org/id/unitary-authority/warrington ,FWB,Care Purchase - Learning Disability,54450,Direct Payments,552000,14-Oct-15,1900184402,1973,REDACTED PERSONAL DATA,460859
WARRINGTON BOROUGH COUNCIL,http://opendatacommunities.org/id/unitary-authority/warrington ,FWB,Care Purchase - Learning Disability,54450,Direct Payments,552000,14-Oct-15,1900184405,679,REDACTED PERSONAL DATA,460867
WARRINGTON BOROUGH COUNCIL,http://opendatacommunities.org/id/unitary-authority/warrington ,FWB,Care Purchase - Learning Disability,54450,Direct Payments,552000,14-Oct-15,1900184407,1875,REDACTED PERSONAL DATA,460879
WARRINGTON BOROUGH COUNCIL,http://opendatacommunities.org/id/unitary-authority/warrington ,FWB,Child Disability,32212,Direct Payments,552000,14-Oct-15,1900184409,560,REDACTED PERSONAL DATA,460905
WARRINGTON BOROUGH COUNCIL,http://opendatacommunities.org/id/unitary-authority/warrington ,FWB,Older Peoples South Team,54421,CP - Cont Care - External,441350,14-Oct-15,1900184412,772,REDACTED PERSONAL DATA,460918
WARRINGTON BOROUGH COUNCIL,http://opendatacommunities.org/id/unitary-authority/warrington ,FWB,Older Peoples South Team,54421,Direct Payments,552000,14-Oct-15,1900184412,772,REDACTED PERSONAL DATA,460918
WARRINGTON BOROUGH COUNCIL,http://opendatacommunities.org/id/unitary-authority/warrington ,FWB,Care Purchase - PD,54440,Direct Payments,552000,14-Oct-15,1900184413,721,REDACTED PERSONAL DATA,460919
WARRINGTON BOROUGH COUNCIL,http://opendatacommunities.org/id/unitary-authority/warrington ,FWB,Care Purchase - PD,54440,Direct Payments,552000,14-Oct-15,1900184416,1075,REDACTED PERSONAL DATA,460933
WARRINGTON BOROUGH COUNCIL,http://opendatacommunities.org/id/unitary-authority/warrington ,FWB,Care Purchase - PD,54440,Direct Payments,552000,14-Oct-15,1900184418,1167,REDACTED PERSONAL DATA,460939
WARRINGTON BOROUGH COUNCIL,http://opendatacommunities.org/id/unitary-authority/warrington ,FWB,Care Purchase - PD,54440,Direct Payments,552000,14-Oct-15,1900184419,572,REDACTED PERSONAL DATA,460951
WARRINGTON BOROUGH COUNCIL,http://opendatacommunities.org/id/unitary-authority/warrington ,FWB,Care Purchase - PD,54440,Direct Payments,552000,14-Oct-15,1900184422,1347,REDACTED PERSONAL DATA,460973
WARRINGTON BOROUGH COUNCIL,http://opendatacommunities.org/id/unitary-authority/warrington ,FWB,Care Purchase - Learning Disability,54450,Direct Payments,552000,14-Oct-15,1900184423,7182,REDACTED PERSONAL DATA,460974
WARRINGTON BOROUGH COUNCIL,http://opendatacommunities.org/id/unitary-authority/warrington ,FWB,Care Purchase - PD,54440,Direct Payments,552000,14-Oct-15,1900184424,1061,REDACTED PERSONAL DATA,460976
WARRINGTON BOROUGH COUNCIL,http://opendatacommunities.org/id/unitary-authority/warrington ,FWB,Care Purchase - PD,54440,Direct Payments,552000,14-Oct-15,1900184425,1677,REDACTED PERSONAL DATA,460977
WARRINGTON BOROUGH COUNCIL,http://opendatacommunities.org/id/unitary-authority/warrington ,FWB,Care Purchase - PD,54440,Direct Payments,552000,14-Oct-15,1900184427,753,REDACTED PERSONAL DATA,460993
WARRINGTON BOROUGH COUNCIL,http://opendatacommunities.org/id/unitary-authority/warrington ,FWB,Older Peoples South Team,54421,Direct Payments,552000,14-Oct-15,1900184428,636,REDACTED PERSONAL DATA,461008
WARRINGTON BOROUGH COUNCIL,http://opendatacommunities.org/id/unitary-authority/warrington ,FWB,Care Purchase - Learning Disability,54450,Direct Payments,552000,14-Oct-15,1900184431,3621,REDACTED PERSONAL DATA,461031
WARRINGTON BOROUGH COUNCIL,http://opendatacommunities.org/id/unitary-authority/warrington ,FWB,Older Peoples North Team,54422,Direct Payments,552000,14-Oct-15,1900184433,753,REDACTED PERSONAL DATA,461033
WARRINGTON BOROUGH COUNCIL,http://opendatacommunities.org/id/unitary-authority/warrington ,FWB,Older Peoples South Team,54421,Direct Payments,552000,14-Oct-15,1900184435,919,REDACTED PERSONAL DATA,461050
WARRINGTON BOROUGH COUNCIL,http://opendatacommunities.org/id/unitary-authority/warrington ,FWB,Care Purchase AMH,54135,Direct Payments,552000,14-Oct-15,1900184436,506,REDACTED PERSONAL DATA,461056
WARRINGTON BOROUGH COUNCIL,http://opendatacommunities.org/id/unitary-authority/warrington ,FWB,Care Purchase AMH,54135,Direct Payments,552000,14-Oct-15,1900184438,637,REDACTED PERSONAL DATA,461060
WARRINGTON BOROUGH COUNCIL,http://opendatacommunities.org/id/unitary-authority/warrington ,FWB,Care Purchase - PD,54440,Direct Payments,552000,14-Oct-15,1900184444,746,REDACTED PERSONAL DATA,461079
WARRINGTON BOROUGH COUNCIL,http://opendatacommunities.org/id/unitary-authority/warrington ,FWB,Care Purchase - PD,54440,Direct Payments,552000,14-Oct-15,1900184445,625,REDACTED PERSONAL DATA,461089
WARRINGTON BOROUGH COUNCIL,http://opendatacommunities.org/id/unitary-authority/warrington ,FWB,Older Peoples South Team,54421,Direct Payments,552000,14-Oct-15,1900184446,795,REDACTED PERSONAL DATA,461090
WARRINGTON BOROUGH COUNCIL,http://opendatacommunities.org/id/unitary-authority/warrington ,FWB,Older Peoples South Team,54421,Direct Payments,552000,14-Oct-15,1900184449,747,REDACTED PERSONAL DATA,461106
WARRINGTON BOROUGH COUNCIL,http://opendatacommunities.org/id/unitary-authority/warrington ,FWB,Care Purchase - Learning Disability,54450,Direct Payments,552000,14-Oct-15,1900184451,764,REDACTED PERSONAL DATA,461109
WARRINGTON BOROUGH COUNCIL,http://opendatacommunities.org/id/unitary-authority/warrington ,FWB,Older Peoples South Team,54421,Direct Payments,552000,14-Oct-15,1900184452,742,REDACTED PERSONAL DATA,461113
WARRINGTON BOROUGH COUNCIL,http://opendatacommunities.org/id/unitary-authority/warrington ,FWB,Older Peoples North Team,54422,CP - Cont Care - External,441350,14-Oct-15,1900184456,2016,REDACTED PERSONAL DATA,461124
WARRINGTON BOROUGH COUNCIL,http://opendatacommunities.org/id/unitary-authority/warrington ,FWB,Older Peoples North Team,54422,Direct Payments,552000,14-Oct-15,1900184456,2016,REDACTED PERSONAL DATA,461124
WARRINGTON BOROUGH COUNCIL,http://opendatacommunities.org/id/unitary-authority/warrington ,FWB,Care Purchase - PD,54440,Direct Payments,552000,14-Oct-15,1900184457,1188,REDACTED PERSONAL DATA,461125
WARRINGTON BOROUGH COUNCIL,http://opendatacommunities.org/id/unitary-authority/warrington ,FWB,Older Peoples South Team,54421,Direct Payments,552000,14-Oct-15,1900184458,646,REDACTED PERSONAL DATA,461126
WARRINGTON BOROUGH COUNCIL,http://opendatacommunities.org/id/unitary-authority/warrington ,FWB,Child Disability,32212,Direct Payments,552000,14-Oct-15,1900184459,792,REDACTED PERSONAL DATA,461127
WARRINGTON BOROUGH COUNCIL,http://opendatacommunities.org/id/unitary-authority/warrington ,FWB,Care Purchase AMH,54135,Direct Payments,552000,14-Oct-15,1900184460,1000,REDACTED PERSONAL DATA,461134
WARRINGTON BOROUGH COUNCIL,http://opendatacommunities.org/id/unitary-authority/warrington ,FWB,Care Purchase - PD,54440,Direct Payments,552000,14-Oct-15,1900184461,5658,REDACTED PERSONAL DATA,461139
WARRINGTON BOROUGH COUNCIL,http://opendatacommunities.org/id/unitary-authority/warrington ,FWB,Care Purchase - Learning Disability,54450,Direct Payments,552000,14-Oct-15,1900184462,1428,REDACTED PERSONAL DATA,461140
WARRINGTON BOROUGH COUNCIL,http://opendatacommunities.org/id/unitary-authority/warrington ,FWB,Care Purchase - PD,54440,Direct Payments,552000,14-Oct-15,1900184465,509,REDACTED PERSONAL DATA,461145
WARRINGTON BOROUGH COUNCIL,http://opendatacommunities.org/id/unitary-authority/warrington ,FWB,Older Peoples South Team,54421,Direct Payments,552000,14-Oct-15,1900184467,1122,REDACTED PERSONAL DATA,461147
WARRINGTON BOROUGH COUNCIL,http://opendatacommunities.org/id/unitary-authority/warrington ,FWB,Older Peoples South Team,54421,Direct Payments,552000,14-Oct-15,1900184468,989,REDACTED PERSONAL DATA,461148
WARRINGTON BOROUGH COUNCIL,http://opendatacommunities.org/id/unitary-authority/warrington ,FWB,Care Purchase - PD,54440,Direct Payments,552000,14-Oct-15,1900184469,1897,REDACTED PERSONAL DATA,461149
WARRINGTON BOROUGH COUNCIL,http://opendatacommunities.org/id/unitary-authority/warrington ,FWB,Care Purchase - Learning Disability,54450,Direct Payments,552000,14-Oct-15,1900184472,764,REDACTED PERSONAL DATA,461158
WARRINGTON BOROUGH COUNCIL,http://opendatacommunities.org/id/unitary-authority/warrington ,FWB,Care Purchase - PD,54440,Direct Payments,552000,14-Oct-15,1900184473,1358,REDACTED PERSONAL DATA,461164
WARRINGTON BOROUGH COUNCIL,http://opendatacommunities.org/id/unitary-authority/warrington ,FWB,Care Purchase - PD,54440,Direct Payments,552000,14-Oct-15,1900184475,849,REDACTED PERSONAL DATA,461168
WARRINGTON BOROUGH COUNCIL,http://opendatacommunities.org/id/unitary-authority/warrington ,FWB,Older Peoples North Team,54422,Direct Payments,552000,14-Oct-15,1900184476,543,REDACTED PERSONAL DATA,461170
WARRINGTON BOROUGH COUNCIL,http://opendatacommunities.org/id/unitary-authority/warrington ,FWB,Care Purchase - PD,54440,Direct Payments,552000,14-Oct-15,1900184477,921,REDACTED PERSONAL DATA,461172
WARRINGTON BOROUGH COUNCIL,http://opendatacommunities.org/id/unitary-authority/warrington ,FWB,Care Purchase - Learning Disability,54450,Direct Payments,552000,14-Oct-15,1900184478,574,REDACTED PERSONAL DATA,461173
WARRINGTON BOROUGH COUNCIL,http://opendatacommunities.org/id/unitary-authority/warrington ,FWB,Care Purchase AMH,54135,Direct Payments,552000,14-Oct-15,1900184480,607,REDACTED PERSONAL DATA,461180
WARRINGTON BOROUGH COUNCIL,http://opendatacommunities.org/id/unitary-authority/warrington ,FWB,Care Purchase - Learning Disability,54450,Direct Payments,552000,14-Oct-15,1900184481,1199,REDACTED PERSONAL DATA,461181
WARRINGTON BOROUGH COUNCIL,http://opendatacommunities.org/id/unitary-authority/warrington ,FWB,Care Purchase - PD,54440,Direct Payments,552000,14-Oct-15,1900184482,976,REDACTED PERSONAL DATA,461182
WARRINGTON BOROUGH COUNCIL,http://opendatacommunities.org/id/unitary-authority/warrington ,FWB,Older Peoples South Team,54421,Direct Payments,552000,14-Oct-15,1900184486,810,REDACTED PERSONAL DATA,461200
WARRINGTON BOROUGH COUNCIL,http://opendatacommunities.org/id/unitary-authority/warrington ,FWB,Care Purchase - Learning Disability,54450,Direct Payments,552000,14-Oct-15,1900184487,1090,REDACTED PERSONAL DATA,461202
WARRINGTON BOROUGH COUNCIL,http://opendatacommunities.org/id/unitary-authority/warrington ,FWB,Older Peoples North Team,54422,Direct Payments,552000,14-Oct-15,1900184490,1347,REDACTED PERSONAL DATA,461213
WARRINGTON BOROUGH COUNCIL,http://opendatacommunities.org/id/unitary-authority/warrington ,FWB,Child Disability,32212,Direct Payments,552000,14-Oct-15,1900184492,1080,REDACTED PERSONAL DATA,461215
WARRINGTON BOROUGH COUNCIL,http://opendatacommunities.org/id/unitary-authority/warrington ,FWB,Neighbourhood Co-o Central,51309,Payment of Grants,470050,14-Oct-15,1900184496,3012,Latchford Community Gym,114183
WARRINGTON BOROUGH COUNCIL,http://opendatacommunities.org/id/unitary-authority/warrington ,ENO,Housing Projects,82008,Safe & Secure Energy House Assistance,554100,14-Oct-15,1900184497,1345,Plumbking,114428
WARRINGTON BOROUGH COUNCIL,http://opendatacommunities.org/id/unitary-authority/warrington ,ENO,Housing Projects,82008,Disabled Persons Grant 1996,554000,14-Oct-15,1900184503,4309,Total Plumbing Solutions,102587
WARRINGTON BOROUGH COUNCIL,http://opendatacommunities.org/id/unitary-authority/warrington ,CYP,Childrens Other,81004,Specific Work,200200,14-Oct-15,1900184517,3663,A M V Playground Solutions,114824
WARRINGTON BOROUGH COUNCIL,http://opendatacommunities.org/id/unitary-authority/warrington ,RSC,CRB Checks,52122,CRB Checks,190050,14-Oct-15,1900184518,7392,Disclosure & Barring Service,440085
WARRINGTON BOROUGH COUNCIL,http://opendatacommunities.org/id/unitary-authority/warrington ,RSC,Managed Print Service,23080,ICT Comms - Device Usage,450500,14-Oct-15,1900184522,21653,Xerox Global Services,105611
WARRINGTON BOROUGH COUNCIL,http://opendatacommunities.org/id/unitary-authority/warrington ,RSC,ICT Centralised Budget,23100,Computer Software - Maintenance,450850,14-Oct-15,1900184523,955,Triscan,100881
WARRINGTON BOROUGH COUNCIL,http://opendatacommunities.org/id/unitary-authority/warrington ,CYP,Childrens Other,81004,Specific Work,200200,14-Oct-15,1900184529,9570,Ground Designs UK Limited,114418
WARRINGTON BOROUGH COUNCIL,http://opendatacommunities.org/id/unitary-authority/warrington ,CYP,Special,81003,Furniture & Fittings,400150,14-Oct-15,1900184532,2105,The School Furniture Company Ltd,110952
WARRINGTON BOROUGH COUNCIL,http://opendatacommunities.org/id/unitary-authority/warrington ,FWB,Neighbourhood Co-o Central,51309,Payment of Grants,470050,14-Oct-15,1900184536,1400,Sankey Bridges Community Associatio,107302
WARRINGTON BOROUGH COUNCIL,http://opendatacommunities.org/id/unitary-authority/warrington ,ENO,Housing Projects,82008,Disabled Facilities Safe & Secure Grants,554300,14-Oct-15,1900184537,4983,Mint Northwest Ltd,105390
WARRINGTON BOROUGH COUNCIL,http://opendatacommunities.org/id/unitary-authority/warrington ,ENO,Housing Projects,82008,Disabled Facilities Safe & Secure Grants,554300,14-Oct-15,1900184538,1843,A A Moving Solutions,100287
WARRINGTON BOROUGH COUNCIL,http://opendatacommunities.org/id/unitary-authority/warrington ,ENO,Housing Projects,82008,Disabled Persons Grant 1996,554000,14-Oct-15,1900184540,990,Crest Environmental Ltd,105340
WARRINGTON BOROUGH COUNCIL,http://opendatacommunities.org/id/unitary-authority/warrington ,CYP,Childrens Other,81004,ICT Comms - Equipment Purchase,450100,14-Oct-15,1900184541,20490,GBM Digital Technologies Ltd,110909
WARRINGTON BOROUGH COUNCIL,http://opendatacommunities.org/id/unitary-authority/warrington ,RSC,Coroners Service,11100,Consult.& Prof. Serv,440000,15-Oct-15,1900184544,827,Geoff Roberts Assoc Ltd,101833
WARRINGTON BOROUGH COUNCIL,http://opendatacommunities.org/id/unitary-authority/warrington ,RSC,Coroners Service,11100,Court Costs,460100,15-Oct-15,1900184546,1080,Cheshire East Council,410116
WARRINGTON BOROUGH COUNCIL,http://opendatacommunities.org/id/unitary-authority/warrington ,RSC,Coroners Service,11100,Post Mortem Fees-Rep,440250,15-Oct-15,1900184548,1044,Dr N Alash,100579
WARRINGTON BOROUGH COUNCIL,http://opendatacommunities.org/id/unitary-authority/warrington ,RSC,Coroners Service,11100,Post Mortem Fees-Rep,440250,15-Oct-15,1900184549,4627,Dr D Butterworth,100765
WARRINGTON BOROUGH COUNCIL,http://opendatacommunities.org/id/unitary-authority/warrington ,RSC,Coroners Service,11100,Post Mortem Fees-Rep,440250,15-Oct-15,1900184550,3072,Dr D Butterworth,100765
WARRINGTON BOROUGH COUNCIL,http://opendatacommunities.org/id/unitary-authority/warrington ,RSC,Coroners Service,11100,Consult.& Prof. Serv,440000,15-Oct-15,1900184552,922,Geoff Roberts Assoc Ltd,101833
WARRINGTON BOROUGH COUNCIL,http://opendatacommunities.org/id/unitary-authority/warrington ,RSC,Coroners Service,11100,Post Mortem Fees-Rep,440250,15-Oct-15,1900184554,596,Dr J E Medcalf,112248
WARRINGTON BOROUGH COUNCIL,http://opendatacommunities.org/id/unitary-authority/warrington ,RSC,Coroners Service,11100,Post Mortem Fees-Rep,440250,15-Oct-15,1900184555,596,Dr J E Medcalf,112248
WARRINGTON BOROUGH COUNCIL,http://opendatacommunities.org/id/unitary-authority/warrington ,RSC,Coroners Service,11100,Post Mortem Fees-Rep,440250,15-Oct-15,1900184556,958,Dr Jackie Elder,101240
WARRINGTON BOROUGH COUNCIL,http://opendatacommunities.org/id/unitary-authority/warrington ,RSC,Coroners Service,11100,Post Mortem Fees-Rep,440250,15-Oct-15,1900184557,1178,Dr J Krajacevic,100409
WARRINGTON BOROUGH COUNCIL,http://opendatacommunities.org/id/unitary-authority/warrington ,RSC,Coroners Service,11100,Post Mortem Fees-Rep,440250,15-Oct-15,1900184558,2925,Dr J.S Stafford,100426
WARRINGTON BOROUGH COUNCIL,http://opendatacommunities.org/id/unitary-authority/warrington ,RSC,Coroners Service,11100,Post Mortem Fees-Rep,440250,15-Oct-15,1900184559,609,Dr W E Kenyon,104851
WARRINGTON BOROUGH COUNCIL,http://opendatacommunities.org/id/unitary-authority/warrington ,RSC,Coroners Service,11100,Post Mortem Fees-Rep,440250,15-Oct-15,1900184560,581,Dr Michael Wall,107545
WARRINGTON BOROUGH COUNCIL,http://opendatacommunities.org/id/unitary-authority/warrington ,RSC,Coroners Service,11100,Post Mortem Fees-Rep,440250,15-Oct-15,1900184561,819,Dr C M Manson,100080
WARRINGTON BOROUGH COUNCIL,http://opendatacommunities.org/id/unitary-authority/warrington ,RSC,Coroners Service,11100,Post Mortem Fees-Rep,440250,15-Oct-15,1900184562,1366,Dr Natalie Meara,101727
WARRINGTON BOROUGH COUNCIL,http://opendatacommunities.org/id/unitary-authority/warrington ,RSC,Coroners Service,11100,Hire Of Mortuaries,220200,15-Oct-15,1900184571,20402,Countess Of Chester Hospital Nhs,440146
WARRINGTON BOROUGH COUNCIL,http://opendatacommunities.org/id/unitary-authority/warrington ,COR,Car Leasing Scheme - Salary Sacrifice,52126,Car Leasing Charges,350000,15-Oct-15,1900184573,2485,NHS Foundation Trust,110359
WARRINGTON BOROUGH COUNCIL,http://opendatacommunities.org/id/unitary-authority/warrington ,COR,Car Leasing Scheme - Salary Sacrifice,52126,Car Leasing Charges,350000,15-Oct-15,1900184573,739,NHS Foundation Trust,110359
WARRINGTON BOROUGH COUNCIL,http://opendatacommunities.org/id/unitary-authority/warrington ,COR,Car Leasing Scheme - Salary Sacrifice,52126,Car Leasing Charges,350000,15-Oct-15,1900184574,2656,NHS Foundation Trust,110359
WARRINGTON BOROUGH COUNCIL,http://opendatacommunities.org/id/unitary-authority/warrington ,COR,Car Leasing Scheme - Salary Sacrifice,52126,Car Leasing Charges,350000,15-Oct-15,1900184574,739,NHS Foundation Trust,110359
WARRINGTON BOROUGH COUNCIL,http://opendatacommunities.org/id/unitary-authority/warrington ,COR,Car Leasing Scheme - Salary Sacrifice,52126,Car Leasing Charges,350000,15-Oct-15,1900184575,2401,NHS Foundation Trust,110359
WARRINGTON BOROUGH COUNCIL,http://opendatacommunities.org/id/unitary-authority/warrington ,COR,Car Leasing Scheme - Salary Sacrifice,52126,Car Leasing Charges,350000,15-Oct-15,1900184575,739,NHS Foundation Trust,110359
WARRINGTON BOROUGH COUNCIL,http://opendatacommunities.org/id/unitary-authority/warrington ,COR,Car Leasing Scheme - Salary Sacrifice,52126,Car Leasing Charges,350000,15-Oct-15,1900184576,2408,NHS Foundation Trust,110359
WARRINGTON BOROUGH COUNCIL,http://opendatacommunities.org/id/unitary-authority/warrington ,COR,Car Leasing Scheme - Salary Sacrifice,52126,Car Leasing Charges,350000,15-Oct-15,1900184576,739,NHS Foundation Trust,110359
WARRINGTON BOROUGH COUNCIL,http://opendatacommunities.org/id/unitary-authority/warrington ,COR,Car Leasing Scheme - Salary Sacrifice,52126,Car Leasing Charges,350000,15-Oct-15,1900184577,4520,NHS Foundation Trust,110359
WARRINGTON BOROUGH COUNCIL,http://opendatacommunities.org/id/unitary-authority/warrington ,COR,Car Leasing Scheme - Salary Sacrifice,52126,Car Leasing Charges,350000,15-Oct-15,1900184577,739,NHS Foundation Trust,110359
WARRINGTON BOROUGH COUNCIL,http://opendatacommunities.org/id/unitary-authority/warrington ,RSC,Council Tax & Recovery,10320,Court Costs,460100,15-Oct-15,1900184578,2505,Hmcs North Cheshire Collections,102261
WARRINGTON BOROUGH COUNCIL,http://opendatacommunities.org/id/unitary-authority/warrington ,COR,Car Leasing Scheme - Salary Sacrifice,52126,Car Leasing Charges,350000,15-Oct-15,1900184579,2341,NHS Foundation Trust,110359
WARRINGTON BOROUGH COUNCIL,http://opendatacommunities.org/id/unitary-authority/warrington ,COR,Car Leasing Scheme - Salary Sacrifice,52126,Car Leasing Charges,350000,15-Oct-15,1900184579,739,NHS Foundation Trust,110359
WARRINGTON BOROUGH COUNCIL,http://opendatacommunities.org/id/unitary-authority/warrington ,COR,Car Leasing Scheme - Salary Sacrifice,52126,Car Leasing Charges,350000,15-Oct-15,1900184580,4387,NHS Foundation Trust,110359
WARRINGTON BOROUGH COUNCIL,http://opendatacommunities.org/id/unitary-authority/warrington ,COR,Car Leasing Scheme - Salary Sacrifice,52126,Car Leasing Charges,350000,15-Oct-15,1900184580,739,NHS Foundation Trust,110359
WARRINGTON BOROUGH COUNCIL,http://opendatacommunities.org/id/unitary-authority/warrington ,RSC,Coroners Service,11100,Reimbursement for Deputy Coroner,440400,15-Oct-15,1900184582,995,REDACTED PERSONAL DATA,111284
WARRINGTON BOROUGH COUNCIL,http://opendatacommunities.org/id/unitary-authority/warrington ,RSC,Coroners Service,11100,Consult.& Prof. Serv,440000,15-Oct-15,1900184587,2000,REDACTED PERSONAL DATA,102292
WARRINGTON BOROUGH COUNCIL,http://opendatacommunities.org/id/unitary-authority/warrington ,RSC,Coroners Service,11100,Removal Bodies & Exc,440350,15-Oct-15,1900184591,1231,Knox & Son Ltd,104857
WARRINGTON BOROUGH COUNCIL,http://opendatacommunities.org/id/unitary-authority/warrington ,RSC,Coroners Service,11100,Post Mortem Fees-Rep,440250,15-Oct-15,1900184594,2274,Mid Cheshire Hospitals,440149
WARRINGTON BOROUGH COUNCIL,http://opendatacommunities.org/id/unitary-authority/warrington ,RSC,Coroners Service,11100,Post Mortem Fees-Rep,440250,15-Oct-15,1900184594,1832,Mid Cheshire Hospitals,440149
WARRINGTON BOROUGH COUNCIL,http://opendatacommunities.org/id/unitary-authority/warrington ,COR,Car Leasing Scheme - Salary Sacrifice,52126,Car Leasing Charges,350000,15-Oct-15,1900184596,2159,NHS Foundation Trust,110359
WARRINGTON BOROUGH COUNCIL,http://opendatacommunities.org/id/unitary-authority/warrington ,COR,Car Leasing Scheme - Salary Sacrifice,52126,Car Leasing Charges,350000,15-Oct-15,1900184596,739,NHS Foundation Trust,110359
WARRINGTON BOROUGH COUNCIL,http://opendatacommunities.org/id/unitary-authority/warrington ,COR,Car Leasing Scheme - Salary Sacrifice,52126,Car Leasing Charges,350000,15-Oct-15,1900184597,3425,NHS Foundation Trust,110359
WARRINGTON BOROUGH COUNCIL,http://opendatacommunities.org/id/unitary-authority/warrington ,COR,Car Leasing Scheme - Salary Sacrifice,52126,Car Leasing Charges,350000,15-Oct-15,1900184597,739,NHS Foundation Trust,110359
WARRINGTON BOROUGH COUNCIL,http://opendatacommunities.org/id/unitary-authority/warrington ,RSC,Coroners Service,11100,Analysts Fees,440300,15-Oct-15,1900184601,4258,Roar Forensics Ltd,105295
WARRINGTON BOROUGH COUNCIL,http://opendatacommunities.org/id/unitary-authority/warrington ,RSC,Coroners Service,11100,Analysts Fees,440300,15-Oct-15,1900184602,1096,Roar Forensics Ltd,105295
WARRINGTON BOROUGH COUNCIL,http://opendatacommunities.org/id/unitary-authority/warrington ,RSC,Coroners Service,11100,Analysts Fees,440300,15-Oct-15,1900184603,5423,Roar Forensics Ltd,105295
WARRINGTON BOROUGH COUNCIL,http://opendatacommunities.org/id/unitary-authority/warrington ,FWB,Foster Allowances,31106,Fostering Allowance,550050,15-Oct-15,1900184605,1011,REDACTED PERSONAL DATA,460201
WARRINGTON BOROUGH COUNCIL,http://opendatacommunities.org/id/unitary-authority/warrington ,FWB,Legal Fees - Safeguarding,30100,Legal Costs Incurred,440200,15-Oct-15,1900184607,648,Foresight Clinical Services,110173
WARRINGTON BOROUGH COUNCIL,http://opendatacommunities.org/id/unitary-authority/warrington ,RSC,Coroners Service,11100,Post Mortem Fees-Rep,440250,15-Oct-15,1900184609,1151,Dr S A Hales,100988
WARRINGTON BOROUGH COUNCIL,http://opendatacommunities.org/id/unitary-authority/warrington ,FWB,Safeguarding Team 2,31002,Legal Costs Incurred,440200,15-Oct-15,1900184615,2500,ALL 4 Pets Ltd,104877
WARRINGTON BOROUGH COUNCIL,http://opendatacommunities.org/id/unitary-authority/warrington ,FWB,SLA - Grant Account,53920,Payment of Grants,470050,15-Oct-15,1900184623,9124,Halton Borough Council,410008
WARRINGTON BOROUGH COUNCIL,http://opendatacommunities.org/id/unitary-authority/warrington ,FWB,Homelessness,43650,B.& B.Allowances,525050,15-Oct-15,1900184624,1280,REDACTED PERSONAL DATA,110456
WARRINGTON BOROUGH COUNCIL,http://opendatacommunities.org/id/unitary-authority/warrington ,FWB,Care Purchase Budget,54490,CP ExternalOther Exp,440800,15-Oct-15,1900184628,5068,University Of East Anglia,113663
WARRINGTON BOROUGH COUNCIL,http://opendatacommunities.org/id/unitary-authority/warrington ,FWB,Housing Strategy,43620,Misc (Contingency),551250,16-Oct-15,1900184635,695,Complete Home Energy Systems,111861
WARRINGTON BOROUGH COUNCIL,http://opendatacommunities.org/id/unitary-authority/warrington ,CYP,Secondary,81002,Furniture & Fittings,400150,16-Oct-15,1900184637,4269,H Jenkinson + Co Ltd,104829
WARRINGTON BOROUGH COUNCIL,http://opendatacommunities.org/id/unitary-authority/warrington ,HOL,Single Billing Holding Account,91130,Non BMP General Repairs,200050,16-Oct-15,1900184639,4906,Manchester Working Limited,105646
WARRINGTON BOROUGH COUNCIL,http://opendatacommunities.org/id/unitary-authority/warrington ,FWB,DSG Hospital Education & Medical Tuition,32006,Materials,400500,16-Oct-15,1900184640,1190,Birchwood Community Academy,400276
WARRINGTON BOROUGH COUNCIL,http://opendatacommunities.org/id/unitary-authority/warrington ,CYP,Special,81003,Furniture & Fittings,400150,16-Oct-15,1900184641,4931,Proform Europe Ltd,114854
WARRINGTON BOROUGH COUNCIL,http://opendatacommunities.org/id/unitary-authority/warrington ,FWB,Neighbourhood Co-o Central,51309,Payment of Grants,470050,16-Oct-15,1900184642,1796,Blooming Art Approved Funding,114150
WARRINGTON BOROUGH COUNCIL,http://opendatacommunities.org/id/unitary-authority/warrington ,CYP,Special,81003,ICT Comms - Line Purchase,450150,16-Oct-15,1900184643,5320,School Furniture Direct,114855
WARRINGTON BOROUGH COUNCIL,http://opendatacommunities.org/id/unitary-authority/warrington ,CYP,Special,81003,Furniture & Fittings,400150,16-Oct-15,1900184644,2392,School Furniture Direct,114855
WARRINGTON BOROUGH COUNCIL,http://opendatacommunities.org/id/unitary-authority/warrington ,HOL,Single Billing Holding Account,91130,Specific Work,200200,16-Oct-15,1900184647,2264,Manchester Working Limited,105646
WARRINGTON BOROUGH COUNCIL,http://opendatacommunities.org/id/unitary-authority/warrington ,FWB,Orford Park Education Fund,32310,Computer Hardware - Maintenance,450750,16-Oct-15,1900184649,879,Warrington Collegiate,440101
WARRINGTON BOROUGH COUNCIL,http://opendatacommunities.org/id/unitary-authority/warrington ,ENP,Environment & Regeneration,82000,Consult.& Prof. Serv,440000,16-Oct-15,1900184654,625,ECS Consultants,114625
WARRINGTON BOROUGH COUNCIL,http://opendatacommunities.org/id/unitary-authority/warrington ,RSC,Coroners Service,11100,Post Mortem Fees-Rep,440250,16-Oct-15,1900184661,1197,Dr Cheng Li,107950
WARRINGTON BOROUGH COUNCIL,http://opendatacommunities.org/id/unitary-authority/warrington ,RSC,Reablement/ WP/ ASC Grant c/f,53700,Consult.& Prof. Serv,440000,16-Oct-15,1900184662,600,REDACTED PERSONAL DATA,111505
WARRINGTON BOROUGH COUNCIL,http://opendatacommunities.org/id/unitary-authority/warrington ,RSC,Coroners Service,11100,Consult.& Prof. Serv,440000,16-Oct-15,1900184663,1080,Dr D S Almond,101435
WARRINGTON BOROUGH COUNCIL,http://opendatacommunities.org/id/unitary-authority/warrington ,RSC,Coroners Service,11100,Analysts Fees,440300,16-Oct-15,1900184675,629,Roar Forensics Ltd,105295
WARRINGTON BOROUGH COUNCIL,http://opendatacommunities.org/id/unitary-authority/warrington ,RSC,Coroners Service,11100,Analysts Fees,440300,16-Oct-15,1900184676,765,Roar Forensics Ltd,105295
WARRINGTON BOROUGH COUNCIL,http://opendatacommunities.org/id/unitary-authority/warrington ,CYP,Special,81003,Furniture & Fittings,400150,16-Oct-15,1900184679,5910,Summit Chairs Ltd,114868
WARRINGTON BOROUGH COUNCIL,http://opendatacommunities.org/id/unitary-authority/warrington ,FWB,DSG Support for SEN,32013,Childrens Activities,492900,16-Oct-15,1900184680,7491,Bridgewater Community Healthcare,108932
WARRINGTON BOROUGH COUNCIL,http://opendatacommunities.org/id/unitary-authority/warrington ,FWB,DSG Support for SEN,32013,Childrens Activities,492900,16-Oct-15,1900184682,7491,Bridgewater Community Healthcare,108932
WARRINGTON BOROUGH COUNCIL,http://opendatacommunities.org/id/unitary-authority/warrington ,EE0,Site Management,43530,Fencing Vacant Sites,200800,16-Oct-15,1900184683,938,Anthony Dever Construction Ltd,114843
WARRINGTON BOROUGH COUNCIL,http://opendatacommunities.org/id/unitary-authority/warrington ,FWB,DSG Support for SEN,32013,Childrens Activities,492900,16-Oct-15,1900184684,7491,Bridgewater Community Healthcare,108932
WARRINGTON BOROUGH COUNCIL,http://opendatacommunities.org/id/unitary-authority/warrington ,FWB,DSG Support for SEN,32013,Childrens Activities,492900,16-Oct-15,1900184685,26000,Bridgewater Community Healthcare,108932
WARRINGTON BOROUGH COUNCIL,http://opendatacommunities.org/id/unitary-authority/warrington ,FWB,DSG Inter Authority Recoupment,32009,Recoupment Charges,490700,16-Oct-15,1900184686,4993,Cheshire West And Chester,103357
WARRINGTON BOROUGH COUNCIL,http://opendatacommunities.org/id/unitary-authority/warrington ,FWB,Home to School Transport,33210,Statemented - Special Unit Pupil Transpo,300750,19-Oct-15,1900184693,1170,Wolves Carz,106885
WARRINGTON BOROUGH COUNCIL,http://opendatacommunities.org/id/unitary-authority/warrington ,FWB,Halton Music Expenditure,32219,Consult.& Prof. Serv,440000,19-Oct-15,1900184699,533,REDACTED PERSONAL DATA,113675
WARRINGTON BOROUGH COUNCIL,http://opendatacommunities.org/id/unitary-authority/warrington ,FWB,Foster Allowances,31106,Fostering Allowance,550050,19-Oct-15,1900184702,1800,REDACTED PERSONAL DATA,461191
WARRINGTON BOROUGH COUNCIL,http://opendatacommunities.org/id/unitary-authority/warrington ,FWB,Care Purchase - PD,54440,Direct Payments,552000,19-Oct-15,1900184703,668,REDACTED PERSONAL DATA,101630
WARRINGTON BOROUGH COUNCIL,http://opendatacommunities.org/id/unitary-authority/warrington ,FWB,Older Peoples North Team,54422,Direct Payments,552000,19-Oct-15,1900184705,673,REDACTED PERSONAL DATA,460418
WARRINGTON BOROUGH COUNCIL,http://opendatacommunities.org/id/unitary-authority/warrington ,FWB,Older Peoples North Team,54422,Direct Payments,552000,19-Oct-15,1900184706,708,REDACTED PERSONAL DATA,461216
WARRINGTON BOROUGH COUNCIL,http://opendatacommunities.org/id/unitary-authority/warrington ,FWB,Care Matters / PEAs,31112,Looked after children in Warrington,301000,19-Oct-15,1900184707,4588,Welfare Call Lac Ltd,101721
WARRINGTON BOROUGH COUNCIL,http://opendatacommunities.org/id/unitary-authority/warrington ,FWB,Children with Disabilities,31005,Looked after children in Warrington,301000,19-Oct-15,1900184710,1000,Tesco Stores Ltd - Gift Card,106271
WARRINGTON BOROUGH COUNCIL,http://opendatacommunities.org/id/unitary-authority/warrington ,FWB,Service Manager - Intermediate Care,53200,Agency Supply - GF,180000,19-Oct-15,1900184716,1125,Baltimore Consulting Ltd,113735
WARRINGTON BOROUGH COUNCIL,http://opendatacommunities.org/id/unitary-authority/warrington ,EE0,Local Bus Contracts,44430,Payments To Operator,530150,19-Oct-15,1900184717,2500,Warrington Borough Transport Ltd,105226
WARRINGTON BOROUGH COUNCIL,http://opendatacommunities.org/id/unitary-authority/warrington ,EE0,Local Bus Contracts,44430,Payments To Operator,530150,19-Oct-15,1900184718,2500,Warrington Borough Transport Ltd,105226
WARRINGTON BOROUGH COUNCIL,http://opendatacommunities.org/id/unitary-authority/warrington ,FWB,Care Purchase - PD,54440,CP-Domicil.External,440950,19-Oct-15,1900184719,5865,Allied Healthcare Group Ltd,100796
WARRINGTON BOROUGH COUNCIL,http://opendatacommunities.org/id/unitary-authority/warrington ,FWB,Care Purchase - PD,54440,Supporting People - External,441250,19-Oct-15,1900184719,733,Allied Healthcare Group Ltd,100796
WARRINGTON BOROUGH COUNCIL,http://opendatacommunities.org/id/unitary-authority/warrington ,FWB,Older Peoples South Team,54421,CP-Domicil.External,440950,19-Oct-15,1900184720,7539,Allied Healthcare Group Ltd,100796
WARRINGTON BOROUGH COUNCIL,http://opendatacommunities.org/id/unitary-authority/warrington ,FWB,Older Peoples North Team,54422,CP-Domicil.External,440950,19-Oct-15,1900184720,6093,Allied Healthcare Group Ltd,100796
WARRINGTON BOROUGH COUNCIL,http://opendatacommunities.org/id/unitary-authority/warrington ,FWB,Care Purchase - Learning Disability,54450,CP-Domicil.External,440950,19-Oct-15,1900184720,570,Allied Healthcare Group Ltd,100796
WARRINGTON BOROUGH COUNCIL,http://opendatacommunities.org/id/unitary-authority/warrington ,FWB,Care Purchase - PD,54440,CP-Domicil.External,440950,19-Oct-15,1900184720,1839,Allied Healthcare Group Ltd,100796
WARRINGTON BOROUGH COUNCIL,http://opendatacommunities.org/id/unitary-authority/warrington ,FWB,Older Peoples South Team,54421,CP-Domicil.External,440950,19-Oct-15,1900184721,6255,Medico Nursing and Homecare,105063
WARRINGTON BOROUGH COUNCIL,http://opendatacommunities.org/id/unitary-authority/warrington ,FWB,Older Peoples North Team,54422,CP-Domicil.External,440950,19-Oct-15,1900184721,749,Medico Nursing and Homecare,105063
WARRINGTON BOROUGH COUNCIL,http://opendatacommunities.org/id/unitary-authority/warrington ,FWB,Care Purchase AMH,54135,CP-Domicil.External,440950,19-Oct-15,1900184721,1227,Medico Nursing and Homecare,105063
WARRINGTON BOROUGH COUNCIL,http://opendatacommunities.org/id/unitary-authority/warrington ,FWB,Care Purchase - PD,54440,CP-Domicil.External,440950,19-Oct-15,1900184721,3138,Medico Nursing and Homecare,105063
WARRINGTON BOROUGH COUNCIL,http://opendatacommunities.org/id/unitary-authority/warrington ,FWB,Care Purchase Budget,54490,CP ExternalOther Exp,440800,19-Oct-15,1900184722,14674,Ashberry Healthcare,101061
WARRINGTON BOROUGH COUNCIL,http://opendatacommunities.org/id/unitary-authority/warrington ,FWB,Care Purchase Budget,54490,CP ExternalOther Exp,440800,19-Oct-15,1900184723,11399,Ashberry Healthcare Ltd,104776
WARRINGTON BOROUGH COUNCIL,http://opendatacommunities.org/id/unitary-authority/warrington ,FWB,Care Purchase - Learning Disability,54450,CP-Domicil.External,440950,19-Oct-15,1900184724,5685,Autism Initiatives,104503
WARRINGTON BOROUGH COUNCIL,http://opendatacommunities.org/id/unitary-authority/warrington ,FWB,Care Purchase - Learning Disability,54450,CP-Domicil.External,440950,19-Oct-15,1900184725,4316,Autism Initiatives,104503
WARRINGTON BOROUGH COUNCIL,http://opendatacommunities.org/id/unitary-authority/warrington ,FWB,Care Purchase - Learning Disability,54450,CP-Domicil.External,440950,19-Oct-15,1900184726,8503,Autism Initiatives,104503
WARRINGTON BOROUGH COUNCIL,http://opendatacommunities.org/id/unitary-authority/warrington ,FWB,Care Purchase - Learning Disability,54450,CP-Domicil.External,440950,19-Oct-15,1900184727,1657,Autism Initiatives,104503
WARRINGTON BOROUGH COUNCIL,http://opendatacommunities.org/id/unitary-authority/warrington ,FWB,Care Purchase - Learning Disability,54450,CP-LongStayExternal,441150,19-Oct-15,1900184728,4496,Autism Initiatives,104503
WARRINGTON BOROUGH COUNCIL,http://opendatacommunities.org/id/unitary-authority/warrington ,FWB,Care Purchase - Learning Disability,54450,CP-Day Care-External,441100,19-Oct-15,1900184730,1980,Bridgewater Day Care Ltd,114638
WARRINGTON BOROUGH COUNCIL,http://opendatacommunities.org/id/unitary-authority/warrington ,FWB,Older Peoples North Team,54422,CP-Domicil.External,440950,19-Oct-15,1900184732,12590,Cherish UK Limited,113736
WARRINGTON BOROUGH COUNCIL,http://opendatacommunities.org/id/unitary-authority/warrington ,FWB,Older Peoples South Team,54421,CP-Domicil.External,440950,19-Oct-15,1900184732,3460,Cherish UK Limited,113736
WARRINGTON BOROUGH COUNCIL,http://opendatacommunities.org/id/unitary-authority/warrington ,FWB,Care Purchase - PD,54440,CP-Domicil.External,440950,19-Oct-15,1900184732,780,Cherish UK Limited,113736
WARRINGTON BOROUGH COUNCIL,http://opendatacommunities.org/id/unitary-authority/warrington ,FWB,Care Purchase AMH,54135,CP-LongStayExternal,441150,19-Oct-15,1900184733,6359,Church Walk Health Care Ltd,112505
WARRINGTON BOROUGH COUNCIL,http://opendatacommunities.org/id/unitary-authority/warrington ,FWB,Care Purchase AMH,54135,CP-LongStayExternal,441150,19-Oct-15,1900184734,6359,Church Walk Health Care Ltd,112505
WARRINGTON BOROUGH COUNCIL,http://opendatacommunities.org/id/unitary-authority/warrington ,FWB,Care Purchase - Learning Disability,54450,CP-LongStayExternal,441150,19-Oct-15,1900184735,6920,Clervaux Trust Ltd,110288
WARRINGTON BOROUGH COUNCIL,http://opendatacommunities.org/id/unitary-authority/warrington ,FWB,Older Peoples North Team,54422,CP-LongStayExternal,441150,19-Oct-15,1900184736,10093,Cls Care Services Ltd,104615
WARRINGTON BOROUGH COUNCIL,http://opendatacommunities.org/id/unitary-authority/warrington ,FWB,Older Peoples South Team,54421,CP-LongStayExternal,441150,19-Oct-15,1900184736,7737,Cls Care Services Ltd,104615
WARRINGTON BOROUGH COUNCIL,http://opendatacommunities.org/id/unitary-authority/warrington ,FWB,Older Peoples South Team,54421,CP-Nursing Care-External,441200,19-Oct-15,1900184736,3292,Cls Care Services Ltd,104615
WARRINGTON BOROUGH COUNCIL,http://opendatacommunities.org/id/unitary-authority/warrington ,FWB,Care Purchase Budget,54490,CP Free Nursing Care External,443500,19-Oct-15,1900184736,1344,Cls Care Services Ltd,104615
WARRINGTON BOROUGH COUNCIL,http://opendatacommunities.org/id/unitary-authority/warrington ,FWB,Care Purchase AMH,54135,CP-Domicil.External,440950,19-Oct-15,1900184738,2407,Community Integrated Care (Cic),100171
WARRINGTON BOROUGH COUNCIL,http://opendatacommunities.org/id/unitary-authority/warrington ,FWB,Care Purchase AMH,54135,CP-Domicil.External,440950,19-Oct-15,1900184743,5143,Community Integrated Care (Cic),100171
WARRINGTON BOROUGH COUNCIL,http://opendatacommunities.org/id/unitary-authority/warrington ,FWB,Care Purchase AMH,54135,CP-Domicil.External,440950,19-Oct-15,1900184745,9692,Continuum Support Ltd,112065
WARRINGTON BOROUGH COUNCIL,http://opendatacommunities.org/id/unitary-authority/warrington ,FWB,Care Purchase AMH,54135,CP-Domicil.External,440950,19-Oct-15,1900184746,9468,Continuum Support Ltd,112065
WARRINGTON BOROUGH COUNCIL,http://opendatacommunities.org/id/unitary-authority/warrington ,FWB,Care Purchase AMH,54135,CP-Domicil.External,440950,19-Oct-15,1900184747,11932,Continuum Support Ltd,112065
WARRINGTON BOROUGH COUNCIL,http://opendatacommunities.org/id/unitary-authority/warrington ,FWB,Care Purchase AMH,54135,CP-Domicil.External,440950,19-Oct-15,1900184748,11932,Continuum Support Ltd,112065
WARRINGTON BOROUGH COUNCIL,http://opendatacommunities.org/id/unitary-authority/warrington ,FWB,Care Purchase AMH,54135,CP-Domicil.External,440950,19-Oct-15,1900184749,6956,Continuum Support Ltd,112065
WARRINGTON BOROUGH COUNCIL,http://opendatacommunities.org/id/unitary-authority/warrington ,FWB,Care Purchase AMH,54135,CP-Domicil.External,440950,19-Oct-15,1900184750,4340,Continuum Support Ltd,112065
WARRINGTON BOROUGH COUNCIL,http://opendatacommunities.org/id/unitary-authority/warrington ,FWB,Care Purchase Budget,54490,CP ExternalOther Exp,440800,19-Oct-15,1900184751,10383,WCL - Warrington Community Living,105230
WARRINGTON BOROUGH COUNCIL,http://opendatacommunities.org/id/unitary-authority/warrington ,FWB,Care Purchase AMH,54135,CP-Domicil.External,440950,19-Oct-15,1900184754,517,Care Solution Trading as Together C,114526
WARRINGTON BOROUGH COUNCIL,http://opendatacommunities.org/id/unitary-authority/warrington ,FWB,Care Purchase Budget,54490,CP ExternalOther Exp,440800,19-Oct-15,1900184756,25488,Bondcare St Andrews,109634
WARRINGTON BOROUGH COUNCIL,http://opendatacommunities.org/id/unitary-authority/warrington ,FWB,Care Purchase - Learning Disability,54450,CP-Domicil.External,440950,19-Oct-15,1900184757,1485,WCL - Warrington Community Living,105230
WARRINGTON BOROUGH COUNCIL,http://opendatacommunities.org/id/unitary-authority/warrington ,FWB,Care Purchase - Learning Disability,54450,CP-Domicil.External,440950,19-Oct-15,1900184758,6997,WCL - Warrington Community Living,105230
WARRINGTON BOROUGH COUNCIL,http://opendatacommunities.org/id/unitary-authority/warrington ,FWB,Care Purchase Budget,54490,CP Free Nursing Care External,443500,19-Oct-15,1900184759,4512,Summerville Nursing Home -Private C,105162
WARRINGTON BOROUGH COUNCIL,http://opendatacommunities.org/id/unitary-authority/warrington ,FWB,Care Purchase - PD,54440,CP-LongStayExternal,441150,19-Oct-15,1900184760,7620,Spinal Unit Action Group,110574
WARRINGTON BOROUGH COUNCIL,http://opendatacommunities.org/id/unitary-authority/warrington ,FWB,Care Purchase - PD,54440,CP-LongStayExternal,441150,19-Oct-15,1900184761,2540,Spinal Unit Action Group,110574
WARRINGTON BOROUGH COUNCIL,http://opendatacommunities.org/id/unitary-authority/warrington ,FWB,Care Purchase - PD,54440,CP-LongStayExternal,441150,19-Oct-15,1900184762,2540,Spinal Unit Action Group,110574
WARRINGTON BOROUGH COUNCIL,http://opendatacommunities.org/id/unitary-authority/warrington ,FWB,Care Purchase AMH,54135,CP-Domicil.External,440950,19-Oct-15,1900184763,1150,Sanctuary Housing Association,114788
WARRINGTON BOROUGH COUNCIL,http://opendatacommunities.org/id/unitary-authority/warrington ,FWB,Care Purchase - Learning Disability,54450,CP-Domicil.External,440950,19-Oct-15,1900184764,600,Sanctuary Carr-Gomm,109157
WARRINGTON BOROUGH COUNCIL,http://opendatacommunities.org/id/unitary-authority/warrington ,FWB,Care Purchase AMH,54135,CP-Domicil.External,440950,19-Oct-15,1900184766,550,Sanctuary Carr-Gomm,109157
WARRINGTON BOROUGH COUNCIL,http://opendatacommunities.org/id/unitary-authority/warrington ,FWB,Older Peoples North Team,54422,CP-Domicil.External,440950,19-Oct-15,1900184767,14415,Safehands Network Ltd,103226
WARRINGTON BOROUGH COUNCIL,http://opendatacommunities.org/id/unitary-authority/warrington ,FWB,Older Peoples South Team,54421,CP-Domicil.External,440950,19-Oct-15,1900184767,13437,Safehands Network Ltd,103226
WARRINGTON BOROUGH COUNCIL,http://opendatacommunities.org/id/unitary-authority/warrington ,FWB,Care Purchase - PD,54440,CP-Domicil.External,440950,19-Oct-15,1900184767,1219,Safehands Network Ltd,103226
WARRINGTON BOROUGH COUNCIL,http://opendatacommunities.org/id/unitary-authority/warrington ,FWB,Care Purchase - Learning Disability,54450,CP-Domicil.External,440950,19-Oct-15,1900184768,650,P S S,105048
WARRINGTON BOROUGH COUNCIL,http://opendatacommunities.org/id/unitary-authority/warrington ,FWB,Older Peoples North Team,54422,CP-Nursing Care-External,441200,19-Oct-15,1900184769,565,Porthaven Care Homes LLP Prestbury,114834
WARRINGTON BOROUGH COUNCIL,http://opendatacommunities.org/id/unitary-authority/warrington ,FWB,Older Peoples North Team,54422,CP-Nursing Care-External,441200,19-Oct-15,1900184770,2188,Porthaven Care Homes LLP Prestbury,114834
WARRINGTON BOROUGH COUNCIL,http://opendatacommunities.org/id/unitary-authority/warrington ,FWB,Older Peoples North Team,54422,CP-Nursing Care-External,441200,19-Oct-15,1900184771,2188,Porthaven Care Homes LLP Prestbury,114834
WARRINGTON BOROUGH COUNCIL,http://opendatacommunities.org/id/unitary-authority/warrington ,FWB,Care Purchase - Learning Disability,54450,CP-LongStayExternal,441150,19-Oct-15,1900184772,3508,Potens Ltd TA Heath Lodge,102481
WARRINGTON BOROUGH COUNCIL,http://opendatacommunities.org/id/unitary-authority/warrington ,FWB,Older Peoples North Team,54422,CP-Domicil.External,440950,19-Oct-15,1900184773,14754,Nightingales Homecare Services Agen,104972
WARRINGTON BOROUGH COUNCIL,http://opendatacommunities.org/id/unitary-authority/warrington ,FWB,Older Peoples South Team,54421,CP-Domicil.External,440950,19-Oct-15,1900184773,12375,Nightingales Homecare Services Agen,104972
WARRINGTON BOROUGH COUNCIL,http://opendatacommunities.org/id/unitary-authority/warrington ,FWB,Care Purchase - Learning Disability,54450,CP-Domicil.External,440950,19-Oct-15,1900184773,4616,Nightingales Homecare Services Agen,104972
WARRINGTON BOROUGH COUNCIL,http://opendatacommunities.org/id/unitary-authority/warrington ,FWB,Care Purchase - PD,54440,CP-Domicil.External,440950,19-Oct-15,1900184773,7059,Nightingales Homecare Services Agen,104972
WARRINGTON BOROUGH COUNCIL,http://opendatacommunities.org/id/unitary-authority/warrington ,FWB,Older Peoples South Team,54421,CP-LongStayExternal,441150,19-Oct-15,1900184775,990,Morvern Care Centre,114831
WARRINGTON BOROUGH COUNCIL,http://opendatacommunities.org/id/unitary-authority/warrington ,FWB,Care Purchase Budget,54490,CP ExternalOther Exp,440800,19-Oct-15,1900184776,16370,Minster Care Management Ltd,105179
WARRINGTON BOROUGH COUNCIL,http://opendatacommunities.org/id/unitary-authority/warrington ,FWB,Care Purchase AMH,54135,CP-Domicil.External,440950,19-Oct-15,1900184777,2097,Making Space,104913
WARRINGTON BOROUGH COUNCIL,http://opendatacommunities.org/id/unitary-authority/warrington ,FWB,Care Purchase - Learning Disability,54450,CP Adult Placement,443450,19-Oct-15,1900184778,13354,Macintyre Care,104907
WARRINGTON BOROUGH COUNCIL,http://opendatacommunities.org/id/unitary-authority/warrington ,FWB,Care Purchase - Learning Disability,54450,CP-Domicil.External,440950,19-Oct-15,1900184779,1856,Macintyre Care,104907
WARRINGTON BOROUGH COUNCIL,http://opendatacommunities.org/id/unitary-authority/warrington ,FWB,Older Peoples North Team,54422,CP-Domicil.External,440950,19-Oct-15,1900184780,952,M-Power Activity Services Ltd,102186
WARRINGTON BOROUGH COUNCIL,http://opendatacommunities.org/id/unitary-authority/warrington ,FWB,Care Purchase - Learning Disability,54450,CP-Domicil.External,440950,19-Oct-15,1900184780,5526,M-Power Activity Services Ltd,102186
WARRINGTON BOROUGH COUNCIL,http://opendatacommunities.org/id/unitary-authority/warrington ,FWB,Care Purchase - Learning Disability,54450,CP-Domicil.External,440950,19-Oct-15,1900184781,582,M-Power Activity Services Ltd,102186
WARRINGTON BOROUGH COUNCIL,http://opendatacommunities.org/id/unitary-authority/warrington ,FWB,Older Peoples North Team,54422,CP-Domicil.External,440950,19-Oct-15,1900184782,952,M-Power Activity Services Ltd,102186
WARRINGTON BOROUGH COUNCIL,http://opendatacommunities.org/id/unitary-authority/warrington ,FWB,Care Purchase - Learning Disability,54450,CP-Domicil.External,440950,19-Oct-15,1900184782,4971,M-Power Activity Services Ltd,102186
WARRINGTON BOROUGH COUNCIL,http://opendatacommunities.org/id/unitary-authority/warrington ,FWB,Care Purchase AMH,54135,CP-Domicil.External,440950,19-Oct-15,1900184783,2227,Independent Living Alliance,100726
WARRINGTON BOROUGH COUNCIL,http://opendatacommunities.org/id/unitary-authority/warrington ,FWB,Care Purchase - ABI,54260,CP-Domicil.External,440950,19-Oct-15,1900184783,1605,Independent Living Alliance,100726
WARRINGTON BOROUGH COUNCIL,http://opendatacommunities.org/id/unitary-authority/warrington ,FWB,Care Purchase Budget,54490,CP ExternalOther Exp,440800,19-Oct-15,1900184784,19711,Leyton Healthcare Limited,108970
WARRINGTON BOROUGH COUNCIL,http://opendatacommunities.org/id/unitary-authority/warrington ,FWB,Care Purchase Budget,54490,CP ExternalOther Exp,440800,19-Oct-15,1900184785,1820,Wcl - Heathside Mews,101742
WARRINGTON BOROUGH COUNCIL,http://opendatacommunities.org/id/unitary-authority/warrington ,FWB,Care Purchase Budget,54490,CP ExternalOther Exp,440800,19-Oct-15,1900184786,11258,Heathside Elderly Persons Home,104777
WARRINGTON BOROUGH COUNCIL,http://opendatacommunities.org/id/unitary-authority/warrington ,FWB,Care Purchase Budget,54490,CP - Cont Care - External,441350,19-Oct-15,1900184787,2393,Extracare Charitable Trust Service,114725
WARRINGTON BOROUGH COUNCIL,http://opendatacommunities.org/id/unitary-authority/warrington ,FWB,Older Peoples South Team,54421,CP - Housing with Care - External,494450,19-Oct-15,1900184787,19209,Extracare Charitable Trust Service,114725
WARRINGTON BOROUGH COUNCIL,http://opendatacommunities.org/id/unitary-authority/warrington ,FWB,Care Purchase - PD,54440,CP - Housing with Care - External,494450,19-Oct-15,1900184787,1196,Extracare Charitable Trust Service,114725
WARRINGTON BOROUGH COUNCIL,http://opendatacommunities.org/id/unitary-authority/warrington ,FWB,Older Peoples South Team,54421,CP-Nursing Care-External,441200,19-Oct-15,1900184788,11662,East Dunbartonshire Council,410087
WARRINGTON BOROUGH COUNCIL,http://opendatacommunities.org/id/unitary-authority/warrington ,HOL,Single Billing Holding Account,91130,Electricity,210000,19-Oct-15,1900184790,10622,Npower Electricity,101884
WARRINGTON BOROUGH COUNCIL,http://opendatacommunities.org/id/unitary-authority/warrington ,HOL,Single Billing Holding Account,91130,Electricity,210000,19-Oct-15,1900184790,985,Npower Electricity,101884
WARRINGTON BOROUGH COUNCIL,http://opendatacommunities.org/id/unitary-authority/warrington ,HOL,Single Billing Holding Account,91130,Electricity,210000,19-Oct-15,1900184791,14608,Npower Electricity,101884
WARRINGTON BOROUGH COUNCIL,http://opendatacommunities.org/id/unitary-authority/warrington ,CYP,Secondary,81002,Specific Work,200200,19-Oct-15,1900184792,2400,Hub Security Systems Ltd,114852
WARRINGTON BOROUGH COUNCIL,http://opendatacommunities.org/id/unitary-authority/warrington ,RSC,Coroners Service,11100,Reimbursement for Deputy Coroner,440400,20-Oct-15,1900184794,5981,REDACTED PERSONAL DATA,111176
WARRINGTON BOROUGH COUNCIL,http://opendatacommunities.org/id/unitary-authority/warrington ,RSC,Coroners Service,11100,Post Mortem Fees-Rep,440250,20-Oct-15,1900184797,589,Dr D S Shareef,105121
WARRINGTON BOROUGH COUNCIL,http://opendatacommunities.org/id/unitary-authority/warrington ,RSC,Coroners Service,11100,Post Mortem Fees-Rep,440250,20-Oct-15,1900184798,4970,Dr A Nicol,104970
WARRINGTON BOROUGH COUNCIL,http://opendatacommunities.org/id/unitary-authority/warrington ,EE0,Hatters Row,43710,Security Systems,250000,20-Oct-15,1900184799,591,Chubb Fire and Security Ltd,105335
WARRINGTON BOROUGH COUNCIL,http://opendatacommunities.org/id/unitary-authority/warrington ,RSC,Housing Benefit,10340,Other Advertising & Publicity,450050,20-Oct-15,1900184800,7345,Bauer Radio Ltd,112532
WARRINGTON BOROUGH COUNCIL,http://opendatacommunities.org/id/unitary-authority/warrington ,RSC,Coroners Service,11100,Post Mortem Fees-Rep,440250,20-Oct-15,1900184803,596,Dr J E Medcalf,112248
WARRINGTON BOROUGH COUNCIL,http://opendatacommunities.org/id/unitary-authority/warrington ,RSC,Coroners Service,11100,Removal Bodies & Exc,440350,20-Oct-15,1900184805,642,Houghtons Funeral Directors Ltd,103735
WARRINGTON BOROUGH COUNCIL,http://opendatacommunities.org/id/unitary-authority/warrington ,RSC,Coroners Service,11100,Consult.& Prof. Serv,440000,20-Oct-15,1900184807,3550,REDACTED PERSONAL DATA,114863
WARRINGTON BOROUGH COUNCIL,http://opendatacommunities.org/id/unitary-authority/warrington ,RSC,Individual Electoral Registration,11660,Equipment Purchase & Contract,400000,20-Oct-15,1900184815,4803,Electoral Reform Services,101138
WARRINGTON BOROUGH COUNCIL,http://opendatacommunities.org/id/unitary-authority/warrington ,RSC,Individual Electoral Registration,11660,Postages,450000,20-Oct-15,1900184816,7960,Royal Mail,101445
WARRINGTON BOROUGH COUNCIL,http://opendatacommunities.org/id/unitary-authority/warrington ,ENO,Housing Projects,82008,Disabled Persons Grant 1996,554000,20-Oct-15,1900184818,1626,AMW Lift & Mobility Services Ltd,112766
WARRINGTON BOROUGH COUNCIL,http://opendatacommunities.org/id/unitary-authority/warrington ,FWB,Care Purchase Budget,54490,Direct Payments,552000,20-Oct-15,1900184821,535,Advanced Payment Solutions Limited,109731
WARRINGTON BOROUGH COUNCIL,http://opendatacommunities.org/id/unitary-authority/warrington ,FWB,Foster Allowances,31106,Fostering Allowance,550050,20-Oct-15,1900184822,636,REDACTED PERSONAL DATA,460145
WARRINGTON BOROUGH COUNCIL,http://opendatacommunities.org/id/unitary-authority/warrington ,FWB,Older Peoples North Team,54422,CP-Domicil.External,440950,20-Oct-15,1900184824,1817,Macintyre Care,104907
WARRINGTON BOROUGH COUNCIL,http://opendatacommunities.org/id/unitary-authority/warrington ,FWB,Care Purchase - Learning Disability,54450,CP-Domicil.External,440950,20-Oct-15,1900184824,111736,Macintyre Care,104907
WARRINGTON BOROUGH COUNCIL,http://opendatacommunities.org/id/unitary-authority/warrington ,FWB,Care Purchase - Learning Disability,54450,Supporting People - External,441250,20-Oct-15,1900184824,25780,Macintyre Care,104907
WARRINGTON BOROUGH COUNCIL,http://opendatacommunities.org/id/unitary-authority/warrington ,FWB,Care Purchase Budget,54490,Voids,515150,20-Oct-15,1900184824,2549,Macintyre Care,104907
WARRINGTON BOROUGH COUNCIL,http://opendatacommunities.org/id/unitary-authority/warrington ,FWB,Care Purchase - Learning Disability,54450,CP-LongStayExternal,441150,20-Oct-15,1900184825,5400,WCL - Warrington Community Living,105230
WARRINGTON BOROUGH COUNCIL,http://opendatacommunities.org/id/unitary-authority/warrington ,FWB,Care Purchase - Learning Disability,54450,CP-Nursing Care-External,441200,20-Oct-15,1900184825,36456,WCL - Warrington Community Living,105230
WARRINGTON BOROUGH COUNCIL,http://opendatacommunities.org/id/unitary-authority/warrington ,FWB,Care Purchase Budget,54490,CP Free Nursing Care External,443500,20-Oct-15,1900184825,3194,WCL - Warrington Community Living,105230
WARRINGTON BOROUGH COUNCIL,http://opendatacommunities.org/id/unitary-authority/warrington ,FWB,Care Purchase Budget,54490,Voids,515150,20-Oct-15,1900184825,9336,WCL - Warrington Community Living,105230
WARRINGTON BOROUGH COUNCIL,http://opendatacommunities.org/id/unitary-authority/warrington ,ENO,Housing Projects,82008,Disabled Persons Grant 1996,554000,20-Oct-15,1900184827,8706,Gt Builders,104761
WARRINGTON BOROUGH COUNCIL,http://opendatacommunities.org/id/unitary-authority/warrington ,FWB,Neighbourhood Co-o Central,51309,Payment of Grants,470050,20-Oct-15,1900184829,5000,Longbarn Residents Association,111888
WARRINGTON BOROUGH COUNCIL,http://opendatacommunities.org/id/unitary-authority/warrington ,ENO,Housing Projects,82008,Disabled Persons Grant 1996,554000,20-Oct-15,1900184833,3206,REDACTED PERSONAL DATA,102596
WARRINGTON BOROUGH COUNCIL,http://opendatacommunities.org/id/unitary-authority/warrington ,ENO,Housing Projects,82008,Disabled Persons Grant 1996,554000,20-Oct-15,1900184834,3842,Showering Solutions,105490
WARRINGTON BOROUGH COUNCIL,http://opendatacommunities.org/id/unitary-authority/warrington ,ENO,Housing Projects,82008,Disabled Persons Grant 1996,554000,20-Oct-15,1900184836,1940,ThyssenKrupp Encasa Ltd,105382
WARRINGTON BOROUGH COUNCIL,http://opendatacommunities.org/id/unitary-authority/warrington ,ENO,Housing Projects,82008,Disabled Persons Grant 1996,554000,20-Oct-15,1900184837,549,Warrington Housing Current Acc,101208
WARRINGTON BOROUGH COUNCIL,http://opendatacommunities.org/id/unitary-authority/warrington ,FWB,Equipment Store,54930,Minor Adaptations<750,400700,20-Oct-15,1900184838,3667,Warrington Housing Current Acc,101208
WARRINGTON BOROUGH COUNCIL,http://opendatacommunities.org/id/unitary-authority/warrington ,ENO,Highways LTP,82004,Consult.& Prof. Serv,440000,20-Oct-15,1900184839,11861,Urban Roots Planning Limited,113015
WARRINGTON BOROUGH COUNCIL,http://opendatacommunities.org/id/unitary-authority/warrington ,FWB,Care Purchase - PD,54440,Direct Payments,552000,21-Oct-15,1900184843,516,REDACTED PERSONAL DATA,100340
WARRINGTON BOROUGH COUNCIL,http://opendatacommunities.org/id/unitary-authority/warrington ,FWB,Care Purchase - Learning Disability,54450,Direct Payments,552000,21-Oct-15,1900184844,600,REDACTED PERSONAL DATA,101045
WARRINGTON BOROUGH COUNCIL,http://opendatacommunities.org/id/unitary-authority/warrington ,RSC,Head of Integrated Commissioning,53500,Training,190150,21-Oct-15,1900184846,25000,Warrington Housing Current Acc,101208
WARRINGTON BOROUGH COUNCIL,http://opendatacommunities.org/id/unitary-authority/warrington ,FWB,Care Purchase - PD,54440,CP-Domicil.External,440950,21-Oct-15,1900184849,5395,Bridgewater Home Care,113753
WARRINGTON BOROUGH COUNCIL,http://opendatacommunities.org/id/unitary-authority/warrington ,FWB,Care Purchase Budget,54490,CP ExternalOther Exp,440800,21-Oct-15,1900184850,1121,Heathfield Residental Home,100059
WARRINGTON BOROUGH COUNCIL,http://opendatacommunities.org/id/unitary-authority/warrington ,FWB,Care Purchase AMH,54135,CP-Domicil.External,440950,21-Oct-15,1900184851,13779,Independent Living Alliance,100726
WARRINGTON BOROUGH COUNCIL,http://opendatacommunities.org/id/unitary-authority/warrington ,FWB,Care Purchase AMH,54135,CP-Domicil.External,440950,21-Oct-15,1900184852,12350,Independent Living Alliance,100726
WARRINGTON BOROUGH COUNCIL,http://opendatacommunities.org/id/unitary-authority/warrington ,FWB,Care Purchase AMH,54135,Supporting People - External,441250,21-Oct-15,1900184852,1853,Independent Living Alliance,100726
WARRINGTON BOROUGH COUNCIL,http://opendatacommunities.org/id/unitary-authority/warrington ,FWB,Care Purchase AMH,54135,CP-Domicil.External,440950,21-Oct-15,1900184853,10257,Independent Living Alliance,100726
WARRINGTON BOROUGH COUNCIL,http://opendatacommunities.org/id/unitary-authority/warrington ,FWB,Care Purchase - PD,54440,CP-Domicil.External,440950,21-Oct-15,1900184853,4290,Independent Living Alliance,100726
WARRINGTON BOROUGH COUNCIL,http://opendatacommunities.org/id/unitary-authority/warrington ,FWB,Care Purchase AMH,54135,Supporting People - External,441250,21-Oct-15,1900184853,5453,Independent Living Alliance,100726
WARRINGTON BOROUGH COUNCIL,http://opendatacommunities.org/id/unitary-authority/warrington ,FWB,Care Purchase AMH,54135,CP-Domicil.External,440950,21-Oct-15,1900184854,3527,Independent Living Alliance,100726
WARRINGTON BOROUGH COUNCIL,http://opendatacommunities.org/id/unitary-authority/warrington ,FWB,Care Purchase - ABI,54260,CP-Domicil.External,440950,21-Oct-15,1900184854,2344,Independent Living Alliance,100726
WARRINGTON BOROUGH COUNCIL,http://opendatacommunities.org/id/unitary-authority/warrington ,FWB,Care Purchase AMH,54135,CP-LongStayExternal,441150,21-Oct-15,1900184855,1888,Linear Park (Housing With Care),100897
WARRINGTON BOROUGH COUNCIL,http://opendatacommunities.org/id/unitary-authority/warrington ,FWB,Care Purchase Budget,54490,CP ExternalOther Exp,440800,21-Oct-15,1900184856,10955,Summerville Nursing Home -Private C,105162
WARRINGTON BOROUGH COUNCIL,http://opendatacommunities.org/id/unitary-authority/warrington ,FWB,Care Purchase - Learning Disability,54450,CP-Day Care-External,441100,21-Oct-15,1900184857,1453,Wigan Council,410018
WARRINGTON BOROUGH COUNCIL,http://opendatacommunities.org/id/unitary-authority/warrington ,COR,Debt Management Expenses,62080,Consult.& Prof. Serv,440000,21-Oct-15,1900184859,116667,K&L Gates LLP,114762
WARRINGTON BOROUGH COUNCIL,http://opendatacommunities.org/id/unitary-authority/warrington ,ENO,Highways Other,82005,Consult.& Prof. Serv,440000,21-Oct-15,1900184861,6737,REDACTED PERSONAL DATA,100591
WARRINGTON BOROUGH COUNCIL,http://opendatacommunities.org/id/unitary-authority/warrington ,ENO,Highways Other,82005,Consult.& Prof. Serv,440000,21-Oct-15,1900184862,1750,REDACTED PERSONAL DATA,100591
WARRINGTON BOROUGH COUNCIL,http://opendatacommunities.org/id/unitary-authority/warrington ,FWB,DSG Independent School Fees,32011,Independent School Fees,490200,21-Oct-15,1900184863,13507,Tower College,400291
WARRINGTON BOROUGH COUNCIL,http://opendatacommunities.org/id/unitary-authority/warrington ,EE0,Estates & Valuation,43520,Agency Supply - GF,180000,21-Oct-15,1900184864,883,Macdonald And Company,100697
WARRINGTON BOROUGH COUNCIL,http://opendatacommunities.org/id/unitary-authority/warrington ,ENP,Environment & Regeneration,82000,Specific Work,200200,21-Oct-15,1900184867,222408,Cruden Construction Ltd,105341
WARRINGTON BOROUGH COUNCIL,http://opendatacommunities.org/id/unitary-authority/warrington ,FWB,Care Purchase - Learning Disability,54450,Direct Payments,552000,22-Oct-15,1900184870,1745,REDACTED PERSONAL DATA,101849
WARRINGTON BOROUGH COUNCIL,http://opendatacommunities.org/id/unitary-authority/warrington ,RSC,Borough Elections,11560,Rent Of Premises,220000,22-Oct-15,1900184871,2144,Livewire,110692
WARRINGTON BOROUGH COUNCIL,http://opendatacommunities.org/id/unitary-authority/warrington ,RSC,Borough Elections,11560,Rent Of Premises,220000,22-Oct-15,1900184871,1497,Livewire,110692
WARRINGTON BOROUGH COUNCIL,http://opendatacommunities.org/id/unitary-authority/warrington ,RSC,Parliamentary Elections,11540,Rent Of Premises,220000,22-Oct-15,1900184871,1430,Livewire,110692
WARRINGTON BOROUGH COUNCIL,http://opendatacommunities.org/id/unitary-authority/warrington ,RSC,Parliamentary Elections,11540,Rent Of Premises,220000,22-Oct-15,1900184871,998,Livewire,110692
WARRINGTON BOROUGH COUNCIL,http://opendatacommunities.org/id/unitary-authority/warrington ,RSC,Print Services (Enveloping etc),23090,Postages,450000,22-Oct-15,1900184875,2187,Royal Mail,101445
WARRINGTON BOROUGH COUNCIL,http://opendatacommunities.org/id/unitary-authority/warrington ,RSC,Print Services (Enveloping etc),23090,Postages,450000,22-Oct-15,1900184876,1123,Royal Mail,101445
WARRINGTON BOROUGH COUNCIL,http://opendatacommunities.org/id/unitary-authority/warrington ,RSC,Print Services (Enveloping etc),23090,Postages,450000,22-Oct-15,1900184877,1902,Royal Mail,101445
WARRINGTON BOROUGH COUNCIL,http://opendatacommunities.org/id/unitary-authority/warrington ,RSC,Print Services (Enveloping etc),23090,Postages,450000,22-Oct-15,1900184878,3338,Royal Mail,101445
WARRINGTON BOROUGH COUNCIL,http://opendatacommunities.org/id/unitary-authority/warrington ,RSC,Print Services (Enveloping etc),23090,Postages,450000,22-Oct-15,1900184879,1423,Royal Mail,101445
WARRINGTON BOROUGH COUNCIL,http://opendatacommunities.org/id/unitary-authority/warrington ,CYP,Childrens Other,81004,Specific Work,200200,22-Oct-15,1900184882,6000,Entrance Technology Services Ltd,105354
WARRINGTON BOROUGH COUNCIL,http://opendatacommunities.org/id/unitary-authority/warrington ,FWB,Contracts - SM Commissioning Team 2,55920,Public Health Contract Payments,540000,22-Oct-15,1900184893,130759,Bridgewater Community Healthcare,108932
WARRINGTON BOROUGH COUNCIL,http://opendatacommunities.org/id/unitary-authority/warrington ,FWB,Contracts - SM Commissioning Team 1,55910,Public Health Contract Payments,540000,22-Oct-15,1900184894,8374,Community Health Partnerships,113245
WARRINGTON BOROUGH COUNCIL,http://opendatacommunities.org/id/unitary-authority/warrington ,FWB,Contracts - SM Commissioning Team 1,55910,Public Health Contract Payments,540000,22-Oct-15,1900184895,2094,Community Health Partnerships,113245
WARRINGTON BOROUGH COUNCIL,http://opendatacommunities.org/id/unitary-authority/warrington ,FWB,Contracts - SM Health Protection,55930,Public Health Contract Payments,540000,22-Oct-15,1900184896,8333,Livewire,110692
WARRINGTON BOROUGH COUNCIL,http://opendatacommunities.org/id/unitary-authority/warrington ,FWB,Contracts - SM Commissioning Team 1,55910,Public Health Contract Payments,540000,22-Oct-15,1900184897,24720,Warrington And Halton Nhs Ft,440132
WARRINGTON BOROUGH COUNCIL,http://opendatacommunities.org/id/unitary-authority/warrington ,FWB,Contracts - SM Commissioning Team 1,55910,Public Health Contract Payments,540000,22-Oct-15,1900184898,27000,Warrington District CAB,440159
WARRINGTON BOROUGH COUNCIL,http://opendatacommunities.org/id/unitary-authority/warrington ,FWB,Foster Allowances,31106,Fostering Allowance,550050,22-Oct-15,1900184907,506,REDACTED PERSONAL DATA,461129
WARRINGTON BOROUGH COUNCIL,http://opendatacommunities.org/id/unitary-authority/warrington ,RSC,13-14 PCDL,22500,Learning Resources,400100,23-Oct-15,1900184920,14250,M.R.H.M.C.,440109
WARRINGTON BOROUGH COUNCIL,http://opendatacommunities.org/id/unitary-authority/warrington ,FWB,Foster Allowances,31106,Fostering Allowance,550050,23-Oct-15,1900184924,820,REDACTED PERSONAL DATA,460999
WARRINGTON BOROUGH COUNCIL,http://opendatacommunities.org/id/unitary-authority/warrington ,RSC,13-14 PCDL,22500,Learning Resources,400100,23-Oct-15,1900184925,1520,Wea North West Region,101623
WARRINGTON BOROUGH COUNCIL,http://opendatacommunities.org/id/unitary-authority/warrington ,FWB,Foster Allowances,31106,Fostering Allowance,550050,23-Oct-15,1900184926,548,REDACTED PERSONAL DATA,460039
WARRINGTON BOROUGH COUNCIL,http://opendatacommunities.org/id/unitary-authority/warrington ,ENO,Highways LTP,82004,Gen. Personal Needs,490850,23-Oct-15,1900184930,924,WBC One-Time Vendor,900001
WARRINGTON BOROUGH COUNCIL,http://opendatacommunities.org/id/unitary-authority/warrington ,HOL,Single Billing Holding Account,91130,Agency Supply - GF,180000,23-Oct-15,1900184931,967,Hays Specialist Recruitment Ltd,107512
WARRINGTON BOROUGH COUNCIL,http://opendatacommunities.org/id/unitary-authority/warrington ,FWB,Service Manager - Intermediate Care,53200,Agency Supply - GF,180000,23-Oct-15,1900184933,4050,Baltimore Consulting Ltd,113735
WARRINGTON BOROUGH COUNCIL,http://opendatacommunities.org/id/unitary-authority/warrington ,FWB,DSG Early Years PVI Settings,32417,Private & Voluntary 3 Year Olds,470100,25-Oct-15,1900184935,3141,Abc 123 Day Nursery Ltd,400152
WARRINGTON BOROUGH COUNCIL,http://opendatacommunities.org/id/unitary-authority/warrington ,FWB,DSG Early Years PVI Settings,32417,Private & Voluntary 3 Year Olds,470100,25-Oct-15,1900184936,3978,Abc Pre-School Limited,400009
WARRINGTON BOROUGH COUNCIL,http://opendatacommunities.org/id/unitary-authority/warrington ,FWB,DSG Early Years PVI Settings,32417,Private & Voluntary 3 Year Olds,470100,25-Oct-15,1900184940,2443,Appleton Thorn Pre School,400111
WARRINGTON BOROUGH COUNCIL,http://opendatacommunities.org/id/unitary-authority/warrington ,FWB,DSG Early Years PVI Settings,32417,Private & Voluntary 3 Year Olds,470100,25-Oct-15,1900184941,714,REDACTED PERSONAL DATA,111661
WARRINGTON BOROUGH COUNCIL,http://opendatacommunities.org/id/unitary-authority/warrington ,FWB,DSG Early Years PVI Settings,32417,Private & Voluntary 3 Year Olds,470100,25-Oct-15,1900184942,4326,Birch Grove Day Nursery Ltd,101367
WARRINGTON BOROUGH COUNCIL,http://opendatacommunities.org/id/unitary-authority/warrington ,FWB,DSG Early Years PVI Settings,32417,Private & Voluntary 3 Year Olds,470100,25-Oct-15,1900184943,898,Bloomings Pre-School Day Nursery,400114
WARRINGTON BOROUGH COUNCIL,http://opendatacommunities.org/id/unitary-authority/warrington ,FWB,DSG Early Years PVI Settings,32417,Private & Voluntary 3 Year Olds,470100,25-Oct-15,1900184944,5971,Bright Horizons Callands,400121
WARRINGTON BOROUGH COUNCIL,http://opendatacommunities.org/id/unitary-authority/warrington ,FWB,DSG Early Years PVI Settings,32417,Private & Voluntary 3 Year Olds,470100,25-Oct-15,1900184945,3045,Burnett Nursery,440143
WARRINGTON BOROUGH COUNCIL,http://opendatacommunities.org/id/unitary-authority/warrington ,FWB,DSG Early Years PVI Settings,32417,Private & Voluntary 3 Year Olds,470100,25-Oct-15,1900184946,7097,Busy 0 To 5S (St Nicolas House),400119
WARRINGTON BOROUGH COUNCIL,http://opendatacommunities.org/id/unitary-authority/warrington ,FWB,DSG Early Years PVI Settings,32417,Private & Voluntary 3 Year Olds,470100,25-Oct-15,1900184948,4070,Butterflys Nursery,107718
WARRINGTON BOROUGH COUNCIL,http://opendatacommunities.org/id/unitary-authority/warrington ,FWB,DSG Early Years PVI Settings,32417,Private & Voluntary 3 Year Olds,470100,25-Oct-15,1900184949,5457,Callands Pre-School,112850
WARRINGTON BOROUGH COUNCIL,http://opendatacommunities.org/id/unitary-authority/warrington ,FWB,DSG Early Years PVI Settings,32417,Private & Voluntary 3 Year Olds,470100,25-Oct-15,1900184951,4442,Chapel Road Day Nursery,109632
WARRINGTON BOROUGH COUNCIL,http://opendatacommunities.org/id/unitary-authority/warrington ,FWB,DSG Early Years PVI Settings,32417,Private & Voluntary 3 Year Olds,470100,25-Oct-15,1900184952,7303,Chapelford Village Nursery & Link C,400101
WARRINGTON BOROUGH COUNCIL,http://opendatacommunities.org/id/unitary-authority/warrington ,FWB,DSG Early Years PVI Settings,32417,Private & Voluntary 3 Year Olds,470100,25-Oct-15,1900184953,9604,Cheshire Day Nursery Guardian St,106265
WARRINGTON BOROUGH COUNCIL,http://opendatacommunities.org/id/unitary-authority/warrington ,FWB,DSG Early Years PVI Settings,32417,Private & Voluntary 3 Year Olds,470100,25-Oct-15,1900184954,7831,Kids on top t/a Cotton Tails Nurser,400137
WARRINGTON BOROUGH COUNCIL,http://opendatacommunities.org/id/unitary-authority/warrington ,FWB,DSG Early Years PVI Settings,32417,Private & Voluntary 3 Year Olds,470100,25-Oct-15,1900184955,1104,Croft Early Years Centre,105880
WARRINGTON BOROUGH COUNCIL,http://opendatacommunities.org/id/unitary-authority/warrington ,FWB,DSG Early Years PVI Settings,32417,Private & Voluntary 3 Year Olds,470100,25-Oct-15,1900184956,3640,Croft Village Pre School,109167
WARRINGTON BOROUGH COUNCIL,http://opendatacommunities.org/id/unitary-authority/warrington ,FWB,DSG Early Years PVI Settings,32417,Private & Voluntary 3 Year Olds,470100,25-Oct-15,1900184957,1793,Cromdale Way Preschool,400128
WARRINGTON BOROUGH COUNCIL,http://opendatacommunities.org/id/unitary-authority/warrington ,FWB,DSG Early Years PVI Settings,32417,Private & Voluntary 3 Year Olds,470100,25-Oct-15,1900184958,7741,Culcheth Day Nursery Ltd,400130
WARRINGTON BOROUGH COUNCIL,http://opendatacommunities.org/id/unitary-authority/warrington ,FWB,DSG Early Years PVI Settings,32417,Private & Voluntary 3 Year Olds,470100,25-Oct-15,1900184959,2400,Cupcakes Pre School Limited,400241
WARRINGTON BOROUGH COUNCIL,http://opendatacommunities.org/id/unitary-authority/warrington ,FWB,DSG Early Years PVI Settings,32417,Private & Voluntary 3 Year Olds,470100,25-Oct-15,1900184961,968,Fun 4 Kids,102275
WARRINGTON BOROUGH COUNCIL,http://opendatacommunities.org/id/unitary-authority/warrington ,FWB,DSG Early Years PVI Settings,32417,Private & Voluntary 3 Year Olds,470100,25-Oct-15,1900184962,1055,Glazebury Pre-School Playgroup,400132
WARRINGTON BOROUGH COUNCIL,http://opendatacommunities.org/id/unitary-authority/warrington ,FWB,DSG Early Years PVI Settings,32417,Private & Voluntary 3 Year Olds,470100,25-Oct-15,1900184963,2515,Grappenhall Pre-School,400134
WARRINGTON BOROUGH COUNCIL,http://opendatacommunities.org/id/unitary-authority/warrington ,FWB,DSG Early Years PVI Settings,32417,Private & Voluntary 3 Year Olds,470100,25-Oct-15,1900184964,5270,Green Park Nursery,400089
WARRINGTON BOROUGH COUNCIL,http://opendatacommunities.org/id/unitary-authority/warrington ,FWB,DSG Early Years PVI Settings,32417,Private & Voluntary 3 Year Olds,470100,25-Oct-15,1900184966,3694,Heathfield House Day Nursery,400138
WARRINGTON BOROUGH COUNCIL,http://opendatacommunities.org/id/unitary-authority/warrington ,FWB,DSG Early Years PVI Settings,32417,Private & Voluntary 3 Year Olds,470100,25-Oct-15,1900184968,2236,Holly Grange Montessori Nursery Ltd,400236
WARRINGTON BOROUGH COUNCIL,http://opendatacommunities.org/id/unitary-authority/warrington ,FWB,DSG Early Years PVI Settings,32417,Private & Voluntary 3 Year Olds,470100,25-Oct-15,1900184969,2080,Jack & Jill Pre School,400014
WARRINGTON BOROUGH COUNCIL,http://opendatacommunities.org/id/unitary-authority/warrington ,FWB,DSG Early Years PVI Settings,32417,Private & Voluntary 3 Year Olds,470100,25-Oct-15,1900184970,5470,Kalgarth Grange Nursery,400096
WARRINGTON BOROUGH COUNCIL,http://opendatacommunities.org/id/unitary-authority/warrington ,FWB,DSG Early Years PVI Settings,32417,Private & Voluntary 3 Year Olds,470100,25-Oct-15,1900184971,1273,Kids Planet Warrington,105710
WARRINGTON BOROUGH COUNCIL,http://opendatacommunities.org/id/unitary-authority/warrington ,FWB,DSG Early Years PVI Settings,32417,Private & Voluntary 3 Year Olds,470100,25-Oct-15,1900184972,1176,Kids Planet Warrington,105710
WARRINGTON BOROUGH COUNCIL,http://opendatacommunities.org/id/unitary-authority/warrington ,FWB,DSG Early Years PVI Settings,32417,Private & Voluntary 3 Year Olds,470100,25-Oct-15,1900184973,3990,Kids Planet Warrington,105710
WARRINGTON BOROUGH COUNCIL,http://opendatacommunities.org/id/unitary-authority/warrington ,FWB,DSG Early Years PVI Settings,32417,Private & Voluntary 3 Year Olds,470100,25-Oct-15,1900184975,10615,Little Acorns Day Nursery,400012
WARRINGTON BOROUGH COUNCIL,http://opendatacommunities.org/id/unitary-authority/warrington ,FWB,DSG Early Years PVI Settings,32417,Private & Voluntary 3 Year Olds,470100,25-Oct-15,1900184976,2566,Little Browsers Playgroup,400140
WARRINGTON BOROUGH COUNCIL,http://opendatacommunities.org/id/unitary-authority/warrington ,FWB,DSG Early Years PVI Settings,32417,Private & Voluntary 3 Year Olds,470100,25-Oct-15,1900184977,2740,Little Penguins Day Nursery,110768
WARRINGTON BOROUGH COUNCIL,http://opendatacommunities.org/id/unitary-authority/warrington ,FWB,DSG Early Years PVI Settings,32417,Private & Voluntary 3 Year Olds,470100,25-Oct-15,1900184978,4977,Little Treasures Nursery Ltd,400091
WARRINGTON BOROUGH COUNCIL,http://opendatacommunities.org/id/unitary-authority/warrington ,FWB,DSG Early Years PVI Settings,32417,Private & Voluntary 3 Year Olds,470100,25-Oct-15,1900184979,3798,Locking Stumps Day Nursery,400142
WARRINGTON BOROUGH COUNCIL,http://opendatacommunities.org/id/unitary-authority/warrington ,FWB,DSG Early Years PVI Settings,32417,Private & Voluntary 3 Year Olds,470100,25-Oct-15,1900184980,3181,Locking Stumps Pre School,400008
WARRINGTON BOROUGH COUNCIL,http://opendatacommunities.org/id/unitary-authority/warrington ,FWB,DSG Early Years PVI Settings,32417,Private & Voluntary 3 Year Olds,470100,25-Oct-15,1900184981,7390,Lymm Village Preschool,400146
WARRINGTON BOROUGH COUNCIL,http://opendatacommunities.org/id/unitary-authority/warrington ,FWB,DSG Early Years PVI Settings,32417,Private & Voluntary 3 Year Olds,470100,25-Oct-15,1900184984,1239,Lynton Private Day Nursery,400003
WARRINGTON BOROUGH COUNCIL,http://opendatacommunities.org/id/unitary-authority/warrington ,FWB,DSG Early Years PVI Settings,32417,Private & Voluntary 3 Year Olds,470100,25-Oct-15,1900184986,2323,Nest in the Woods,114678
WARRINGTON BOROUGH COUNCIL,http://opendatacommunities.org/id/unitary-authority/warrington ,FWB,DSG Early Years PVI Settings,32417,Private & Voluntary 3 Year Olds,470100,25-Oct-15,1900184987,2348,Newchurch Pre-School Limited,400148
WARRINGTON BOROUGH COUNCIL,http://opendatacommunities.org/id/unitary-authority/warrington ,FWB,DSG Early Years PVI Settings,32417,Private & Voluntary 3 Year Olds,470100,25-Oct-15,1900184988,6932,Old Hall Pre School,400017
WARRINGTON BOROUGH COUNCIL,http://opendatacommunities.org/id/unitary-authority/warrington ,FWB,DSG Early Years PVI Settings,32417,Private & Voluntary 3 Year Olds,470100,25-Oct-15,1900184989,3296,Oughtrington Pre-School,400044
WARRINGTON BOROUGH COUNCIL,http://opendatacommunities.org/id/unitary-authority/warrington ,FWB,DSG Early Years PVI Settings,32417,Private & Voluntary 3 Year Olds,470100,25-Oct-15,1900184990,1097,Wasps Nursery and Link Clubs,400087
WARRINGTON BOROUGH COUNCIL,http://opendatacommunities.org/id/unitary-authority/warrington ,FWB,DSG Early Years PVI Settings,32417,Private & Voluntary 3 Year Olds,470100,25-Oct-15,1900184991,4064,Play Days Pre-School,400016
WARRINGTON BOROUGH COUNCIL,http://opendatacommunities.org/id/unitary-authority/warrington ,FWB,DSG Early Years PVI Settings,32417,Private & Voluntary 3 Year Olds,470100,25-Oct-15,1900184992,3252,Puddleducks Day Nursery,400001
WARRINGTON BOROUGH COUNCIL,http://opendatacommunities.org/id/unitary-authority/warrington ,FWB,DSG Early Years PVI Settings,32417,Private & Voluntary 3 Year Olds,470100,25-Oct-15,1900184993,2886,Rainbow Day Nursery,400153
WARRINGTON BOROUGH COUNCIL,http://opendatacommunities.org/id/unitary-authority/warrington ,FWB,DSG Early Years PVI Settings,32417,Private & Voluntary 3 Year Olds,470100,25-Oct-15,1900184994,3047,Risley Day Nursery,400081
WARRINGTON BOROUGH COUNCIL,http://opendatacommunities.org/id/unitary-authority/warrington ,FWB,DSG Early Years PVI Settings,32417,Private & Voluntary 3 Year Olds,470100,25-Oct-15,1900184995,3994,Rixton With Glazebrook Pre-School,400080
WARRINGTON BOROUGH COUNCIL,http://opendatacommunities.org/id/unitary-authority/warrington ,FWB,DSG Early Years PVI Settings,32417,Private & Voluntary 3 Year Olds,470100,25-Oct-15,1900184996,6185,Rosebank Naturegarten,400154
WARRINGTON BOROUGH COUNCIL,http://opendatacommunities.org/id/unitary-authority/warrington ,FWB,DSG Early Years PVI Settings,32417,Private & Voluntary 3 Year Olds,470100,25-Oct-15,1900184999,1746,St Mary's Pre School,400159
WARRINGTON BOROUGH COUNCIL,http://opendatacommunities.org/id/unitary-authority/warrington ,FWB,DSG Early Years PVI Settings,32417,Private & Voluntary 3 Year Olds,470100,25-Oct-15,1900185000,2333,St Matthews Pre-School Group,400160
WARRINGTON BOROUGH COUNCIL,http://opendatacommunities.org/id/unitary-authority/warrington ,FWB,DSG Early Years PVI Settings,32417,Private & Voluntary 3 Year Olds,470100,25-Oct-15,1900185001,4307,St Monica's Pre School,103081
WARRINGTON BOROUGH COUNCIL,http://opendatacommunities.org/id/unitary-authority/warrington ,FWB,DSG Early Years PVI Settings,32417,Private & Voluntary 3 Year Olds,470100,25-Oct-15,1900185002,2434,St Oswald's Pre -School Nursery,400162
WARRINGTON BOROUGH COUNCIL,http://opendatacommunities.org/id/unitary-authority/warrington ,FWB,DSG Early Years PVI Settings,32417,Private & Voluntary 3 Year Olds,470100,25-Oct-15,1900185003,4074,St Philips Pre School,400163
WARRINGTON BOROUGH COUNCIL,http://opendatacommunities.org/id/unitary-authority/warrington ,FWB,DSG Early Years PVI Settings,32417,Private & Voluntary 3 Year Olds,470100,25-Oct-15,1900185004,6166,Statham Little Foxes Pre-School & L,400079
WARRINGTON BOROUGH COUNCIL,http://opendatacommunities.org/id/unitary-authority/warrington ,FWB,DSG Early Years PVI Settings,32417,Private & Voluntary 3 Year Olds,470100,25-Oct-15,1900185005,4167,Stepping Stones Nurseries (Lingley,400169
WARRINGTON BOROUGH COUNCIL,http://opendatacommunities.org/id/unitary-authority/warrington ,FWB,DSG Early Years PVI Settings,32417,Private & Voluntary 3 Year Olds,470100,25-Oct-15,1900185006,1510,Stepping Stones Child Care,400103
WARRINGTON BOROUGH COUNCIL,http://opendatacommunities.org/id/unitary-authority/warrington ,FWB,DSG Early Years PVI Settings,32417,Private & Voluntary 3 Year Olds,470100,25-Oct-15,1900185007,1832,Stepping Stone Day Nurse Stockton H,400043
WARRINGTON BOROUGH COUNCIL,http://opendatacommunities.org/id/unitary-authority/warrington ,FWB,DSG Early Years PVI Settings,32417,Private & Voluntary 3 Year Olds,470100,25-Oct-15,1900185008,2883,Stretton Day Nursery,400172
WARRINGTON BOROUGH COUNCIL,http://opendatacommunities.org/id/unitary-authority/warrington ,FWB,DSG Early Years PVI Settings,32417,Private & Voluntary 3 Year Olds,470100,25-Oct-15,1900185011,2548,The Cheshire Day Nursery,400296
WARRINGTON BOROUGH COUNCIL,http://opendatacommunities.org/id/unitary-authority/warrington ,FWB,DSG Early Years PVI Settings,32417,Private & Voluntary 3 Year Olds,470100,25-Oct-15,1900185012,3969,The Cheshire Day Nursery @ Winwick,114503
WARRINGTON BOROUGH COUNCIL,http://opendatacommunities.org/id/unitary-authority/warrington ,FWB,DSG Early Years PVI Settings,32417,Private & Voluntary 3 Year Olds,470100,25-Oct-15,1900185013,8032,Cheshire Day Nursery / The Kinderga,400013
WARRINGTON BOROUGH COUNCIL,http://opendatacommunities.org/id/unitary-authority/warrington ,FWB,DSG Early Years PVI Settings,32417,Private & Voluntary 3 Year Olds,470100,25-Oct-15,1900185014,11517,The Lakes Nursery,101036
WARRINGTON BOROUGH COUNCIL,http://opendatacommunities.org/id/unitary-authority/warrington ,FWB,DSG Early Years PVI Settings,32417,Private & Voluntary 3 Year Olds,470100,25-Oct-15,1900185015,4709,The Little Lot Nursery,400141
WARRINGTON BOROUGH COUNCIL,http://opendatacommunities.org/id/unitary-authority/warrington ,FWB,DSG Early Years PVI Settings,32417,Private & Voluntary 3 Year Olds,470100,25-Oct-15,1900185016,2312,The Old Vicarage,104991
WARRINGTON BOROUGH COUNCIL,http://opendatacommunities.org/id/unitary-authority/warrington ,FWB,DSG Early Years PVI Settings,32417,Private & Voluntary 3 Year Olds,470100,25-Oct-15,1900185017,2199,The Quays Day Nursery,105052
WARRINGTON BOROUGH COUNCIL,http://opendatacommunities.org/id/unitary-authority/warrington ,FWB,DSG Early Years PVI Settings,32417,Private & Voluntary 3 Year Olds,470100,25-Oct-15,1900185018,4583,The Village Pre-School,400174
WARRINGTON BOROUGH COUNCIL,http://opendatacommunities.org/id/unitary-authority/warrington ,FWB,DSG Early Years PVI Settings,32417,Private & Voluntary 3 Year Olds,470100,25-Oct-15,1900185019,1190,Thelwall Pre-School,400010
WARRINGTON BOROUGH COUNCIL,http://opendatacommunities.org/id/unitary-authority/warrington ,FWB,DSG Early Years PVI Settings,32417,Private & Voluntary 3 Year Olds,470100,25-Oct-15,1900185020,5444,Tiggy-Winkles Day Nursery,400082
WARRINGTON BOROUGH COUNCIL,http://opendatacommunities.org/id/unitary-authority/warrington ,FWB,DSG Early Years PVI Settings,32417,Private & Voluntary 3 Year Olds,470100,25-Oct-15,1900185022,2512,Tugboats Pre-School,400028
WARRINGTON BOROUGH COUNCIL,http://opendatacommunities.org/id/unitary-authority/warrington ,FWB,DSG Early Years PVI Settings,32417,Private & Voluntary 3 Year Olds,470100,25-Oct-15,1900185023,2444,University Of Chester Nursery Padga,400102
WARRINGTON BOROUGH COUNCIL,http://opendatacommunities.org/id/unitary-authority/warrington ,FWB,DSG Early Years PVI Settings,32417,Private & Voluntary 3 Year Olds,470100,25-Oct-15,1900185024,3197,Warren Pre-School Playgroup,400176
WARRINGTON BOROUGH COUNCIL,http://opendatacommunities.org/id/unitary-authority/warrington ,FWB,DSG Early Years PVI Settings,32417,Private & Voluntary 3 Year Olds,470100,25-Oct-15,1900185025,6343,Warrington Day Nursery,400002
WARRINGTON BOROUGH COUNCIL,http://opendatacommunities.org/id/unitary-authority/warrington ,FWB,DSG Early Years PVI Settings,32417,Private & Voluntary 3 Year Olds,470100,25-Oct-15,1900185026,3832,Willows Pre-School Nursery,400094
WARRINGTON BOROUGH COUNCIL,http://opendatacommunities.org/id/unitary-authority/warrington ,FWB,DSG Early Years PVI Settings,32417,Private & Voluntary 3 Year Olds,470100,25-Oct-15,1900185027,3683,Wind in the Willows,400168
WARRINGTON BOROUGH COUNCIL,http://opendatacommunities.org/id/unitary-authority/warrington ,FWB,DSG Early Years PVI Settings,32417,Private & Voluntary 3 Year Olds,470100,25-Oct-15,1900185028,1667,Wind in The Willows Childcare,112697
WARRINGTON BOROUGH COUNCIL,http://opendatacommunities.org/id/unitary-authority/warrington ,FWB,DSG Early Years PVI Settings,32417,Private & Voluntary 3 Year Olds,470100,25-Oct-15,1900185029,837,Winwick Pre-School Nursery,400181
WARRINGTON BOROUGH COUNCIL,http://opendatacommunities.org/id/unitary-authority/warrington ,FWB,DSG Early Years PVI Settings,32417,Private & Voluntary 4 Year Olds,470150,25-Oct-15,1900185031,561,Abc Pre-School Limited,400009
WARRINGTON BOROUGH COUNCIL,http://opendatacommunities.org/id/unitary-authority/warrington ,FWB,DSG Early Years PVI Settings,32417,Private & Voluntary 4 Year Olds,470150,25-Oct-15,1900185033,1652,Nest in the Woods,114678
WARRINGTON BOROUGH COUNCIL,http://opendatacommunities.org/id/unitary-authority/warrington ,FWB,DSG 2 Year Old Fund,31601,Payment of Grants,470050,25-Oct-15,1900185034,11766,Abc 123 Day Nursery Ltd,400152
WARRINGTON BOROUGH COUNCIL,http://opendatacommunities.org/id/unitary-authority/warrington ,FWB,DSG 2 Year Old Fund,31601,Payment of Grants,470050,25-Oct-15,1900185036,3056,A & J Tots to Teens Childcare,113264
WARRINGTON BOROUGH COUNCIL,http://opendatacommunities.org/id/unitary-authority/warrington ,FWB,DSG 2 Year Old Fund,31601,Payment of Grants,470050,25-Oct-15,1900185037,1018,REDACTED PERSONAL DATA,114601
WARRINGTON BOROUGH COUNCIL,http://opendatacommunities.org/id/unitary-authority/warrington ,FWB,DSG 2 Year Old Fund,31601,Payment of Grants,470050,25-Oct-15,1900185038,1273,REDACTED PERSONAL DATA,103019
WARRINGTON BOROUGH COUNCIL,http://opendatacommunities.org/id/unitary-authority/warrington ,FWB,DSG 2 Year Old Fund,31601,Payment of Grants,470050,25-Oct-15,1900185040,4811,Birch Grove Day Nursery Ltd,101367
WARRINGTON BOROUGH COUNCIL,http://opendatacommunities.org/id/unitary-authority/warrington ,FWB,DSG 2 Year Old Fund,31601,Payment of Grants,470050,25-Oct-15,1900185041,4838,Bloomings Pre-School Day Nursery,400114
WARRINGTON BOROUGH COUNCIL,http://opendatacommunities.org/id/unitary-authority/warrington ,FWB,DSG 2 Year Old Fund,31601,Payment of Grants,470050,25-Oct-15,1900185042,2037,Burnett Nursery,440143
WARRINGTON BOROUGH COUNCIL,http://opendatacommunities.org/id/unitary-authority/warrington ,FWB,DSG 2 Year Old Fund,31601,Payment of Grants,470050,25-Oct-15,1900185043,2437,Busy 0 To 5S (St Nicolas House),400119
WARRINGTON BOROUGH COUNCIL,http://opendatacommunities.org/id/unitary-authority/warrington ,FWB,DSG 2 Year Old Fund,31601,Payment of Grants,470050,25-Oct-15,1900185044,6853,Butterflys Nursery,107718
WARRINGTON BOROUGH COUNCIL,http://opendatacommunities.org/id/unitary-authority/warrington ,FWB,DSG 2 Year Old Fund,31601,Payment of Grants,470050,25-Oct-15,1900185045,1620,Callands Pre-School,112850
WARRINGTON BOROUGH COUNCIL,http://opendatacommunities.org/id/unitary-authority/warrington ,FWB,DSG 2 Year Old Fund,31601,Payment of Grants,470050,25-Oct-15,1900185046,5711,Chapel Road Day Nursery,109632
WARRINGTON BOROUGH COUNCIL,http://opendatacommunities.org/id/unitary-authority/warrington ,FWB,DSG 2 Year Old Fund,31601,Payment of Grants,470050,25-Oct-15,1900185047,1833,Chapelford Village Nursery & Link C,400101
WARRINGTON BOROUGH COUNCIL,http://opendatacommunities.org/id/unitary-authority/warrington ,FWB,DSG 2 Year Old Fund,31601,Payment of Grants,470050,25-Oct-15,1900185048,509,REDACTED PERSONAL DATA,112993
WARRINGTON BOROUGH COUNCIL,http://opendatacommunities.org/id/unitary-authority/warrington ,FWB,DSG 2 Year Old Fund,31601,Payment of Grants,470050,25-Oct-15,1900185049,873,REDACTED PERSONAL DATA,113528
WARRINGTON BOROUGH COUNCIL,http://opendatacommunities.org/id/unitary-authority/warrington ,FWB,DSG 2 Year Old Fund,31601,Payment of Grants,470050,25-Oct-15,1900185050,6402,Cheshire Day Nursery Guardian St,106265
WARRINGTON BOROUGH COUNCIL,http://opendatacommunities.org/id/unitary-authority/warrington ,FWB,DSG 2 Year Old Fund,31601,Payment of Grants,470050,25-Oct-15,1900185052,7166,Kids on top t/a Cotton Tails Nurser,400137
WARRINGTON BOROUGH COUNCIL,http://opendatacommunities.org/id/unitary-authority/warrington ,FWB,DSG 2 Year Old Fund,31601,Payment of Grants,470050,25-Oct-15,1900185053,1630,Croft Village Pre School,109167
WARRINGTON BOROUGH COUNCIL,http://opendatacommunities.org/id/unitary-authority/warrington ,FWB,DSG 2 Year Old Fund,31601,Payment of Grants,470050,25-Oct-15,1900185054,1942,Cromdale Way Preschool,400128
WARRINGTON BOROUGH COUNCIL,http://opendatacommunities.org/id/unitary-authority/warrington ,FWB,DSG 2 Year Old Fund,31601,Payment of Grants,470050,25-Oct-15,1900185055,2073,Culcheth Day Nursery Ltd,400130
WARRINGTON BOROUGH COUNCIL,http://opendatacommunities.org/id/unitary-authority/warrington ,FWB,DSG 2 Year Old Fund,31601,Payment of Grants,470050,25-Oct-15,1900185056,2801,Cupcakes Pre School Limited,400241
WARRINGTON BOROUGH COUNCIL,http://opendatacommunities.org/id/unitary-authority/warrington ,FWB,DSG 2 Year Old Fund,31601,Payment of Grants,470050,25-Oct-15,1900185057,1237,Dunky's Day Nursery (Gt Sankey),400306
WARRINGTON BOROUGH COUNCIL,http://opendatacommunities.org/id/unitary-authority/warrington ,FWB,DSG 2 Year Old Fund,31601,Payment of Grants,470050,25-Oct-15,1900185058,6504,Dunky's Day Nursery Warrington,113903
WARRINGTON BOROUGH COUNCIL,http://opendatacommunities.org/id/unitary-authority/warrington ,FWB,DSG 2 Year Old Fund,31601,Payment of Grants,470050,25-Oct-15,1900185059,509,Fun 4 Kids,102275
WARRINGTON BOROUGH COUNCIL,http://opendatacommunities.org/id/unitary-authority/warrington ,FWB,DSG 2 Year Old Fund,31601,Payment of Grants,470050,25-Oct-15,1900185060,1018,Glazebury Pre-School Playgroup,400132
WARRINGTON BOROUGH COUNCIL,http://opendatacommunities.org/id/unitary-authority/warrington ,FWB,DSG 2 Year Old Fund,31601,Payment of Grants,470050,25-Oct-15,1900185062,3492,Heathfield House Day Nursery,400138
WARRINGTON BOROUGH COUNCIL,http://opendatacommunities.org/id/unitary-authority/warrington ,FWB,DSG 2 Year Old Fund,31601,Payment of Grants,470050,25-Oct-15,1900185065,5468,Kalgarth Grange Nursery,400096
WARRINGTON BOROUGH COUNCIL,http://opendatacommunities.org/id/unitary-authority/warrington ,FWB,DSG 2 Year Old Fund,31601,Payment of Grants,470050,25-Oct-15,1900185066,7653,Kids Planet Warrington,105710
WARRINGTON BOROUGH COUNCIL,http://opendatacommunities.org/id/unitary-authority/warrington ,FWB,DSG 2 Year Old Fund,31601,Payment of Grants,470050,25-Oct-15,1900185067,1055,Kids Planet Warrington,105710
WARRINGTON BOROUGH COUNCIL,http://opendatacommunities.org/id/unitary-authority/warrington ,FWB,DSG 2 Year Old Fund,31601,Payment of Grants,470050,25-Oct-15,1900185068,12610,Kids Planet Warrington,105710
WARRINGTON BOROUGH COUNCIL,http://opendatacommunities.org/id/unitary-authority/warrington ,FWB,DSG 2 Year Old Fund,31601,Payment of Grants,470050,25-Oct-15,1900185069,5856,Wasps Nursery and Link Clubs,400087
WARRINGTON BOROUGH COUNCIL,http://opendatacommunities.org/id/unitary-authority/warrington ,FWB,DSG 2 Year Old Fund,31601,Payment of Grants,470050,25-Oct-15,1900185070,5262,Little Acorns Day Nursery,400012
WARRINGTON BOROUGH COUNCIL,http://opendatacommunities.org/id/unitary-authority/warrington ,FWB,DSG 2 Year Old Fund,31601,Payment of Grants,470050,25-Oct-15,1900185071,5755,Little Browsers Playgroup,400140
WARRINGTON BOROUGH COUNCIL,http://opendatacommunities.org/id/unitary-authority/warrington ,FWB,DSG 2 Year Old Fund,31601,Payment of Grants,470050,25-Oct-15,1900185072,9967,Little Treasures Nursery Ltd,400091
WARRINGTON BOROUGH COUNCIL,http://opendatacommunities.org/id/unitary-authority/warrington ,FWB,DSG 2 Year Old Fund,31601,Payment of Grants,470050,25-Oct-15,1900185073,2826,Locking Stumps Day Nursery,400142
WARRINGTON BOROUGH COUNCIL,http://opendatacommunities.org/id/unitary-authority/warrington ,FWB,DSG 2 Year Old Fund,31601,Payment of Grants,470050,25-Oct-15,1900185074,2372,Locking Stumps Pre School,400008
WARRINGTON BOROUGH COUNCIL,http://opendatacommunities.org/id/unitary-authority/warrington ,FWB,DSG 2 Year Old Fund,31601,Payment of Grants,470050,25-Oct-15,1900185075,1593,Lymm Village Preschool,400146
WARRINGTON BOROUGH COUNCIL,http://opendatacommunities.org/id/unitary-authority/warrington ,FWB,DSG 2 Year Old Fund,31601,Payment of Grants,470050,25-Oct-15,1900185076,815,Nest in the Woods,114678
WARRINGTON BOROUGH COUNCIL,http://opendatacommunities.org/id/unitary-authority/warrington ,FWB,DSG 2 Year Old Fund,31601,Payment of Grants,470050,25-Oct-15,1900185077,1044,Newchurch Pre-School Limited,400148
WARRINGTON BOROUGH COUNCIL,http://opendatacommunities.org/id/unitary-authority/warrington ,FWB,DSG 2 Year Old Fund,31601,Payment of Grants,470050,25-Oct-15,1900185078,3402,Old Hall Pre School,400017
WARRINGTON BOROUGH COUNCIL,http://opendatacommunities.org/id/unitary-authority/warrington ,FWB,DSG 2 Year Old Fund,31601,Payment of Grants,470050,25-Oct-15,1900185079,5151,Play Days Pre-School,400016
WARRINGTON BOROUGH COUNCIL,http://opendatacommunities.org/id/unitary-authority/warrington ,FWB,DSG 2 Year Old Fund,31601,Payment of Grants,470050,25-Oct-15,1900185080,3565,Puddleducks Day Nursery,400001
WARRINGTON BOROUGH COUNCIL,http://opendatacommunities.org/id/unitary-authority/warrington ,FWB,DSG 2 Year Old Fund,31601,Payment of Grants,470050,25-Oct-15,1900185081,1528,Rainbow Day Nursery,400153
WARRINGTON BOROUGH COUNCIL,http://opendatacommunities.org/id/unitary-authority/warrington ,FWB,DSG 2 Year Old Fund,31601,Payment of Grants,470050,25-Oct-15,1900185083,2110,Rixton With Glazebrook Pre-School,400080
WARRINGTON BOROUGH COUNCIL,http://opendatacommunities.org/id/unitary-authority/warrington ,FWB,DSG 2 Year Old Fund,31601,Payment of Grants,470050,25-Oct-15,1900185084,1445,Rosebank Naturegarten,400154
WARRINGTON BOROUGH COUNCIL,http://opendatacommunities.org/id/unitary-authority/warrington ,FWB,DSG 2 Year Old Fund,31601,Payment of Grants,470050,25-Oct-15,1900185085,2190,Statham Little Foxes Pre-School & L,400079
WARRINGTON BOROUGH COUNCIL,http://opendatacommunities.org/id/unitary-authority/warrington ,FWB,DSG 2 Year Old Fund,31601,Payment of Grants,470050,25-Oct-15,1900185086,3819,Stepping Stones Child Care,400103
WARRINGTON BOROUGH COUNCIL,http://opendatacommunities.org/id/unitary-authority/warrington ,FWB,DSG 2 Year Old Fund,31601,Payment of Grants,470050,25-Oct-15,1900185087,1018,Stepping Stone Day Nurse Stockton H,400043
WARRINGTON BOROUGH COUNCIL,http://opendatacommunities.org/id/unitary-authority/warrington ,FWB,DSG 2 Year Old Fund,31601,Payment of Grants,470050,25-Oct-15,1900185088,1273,Stretton Day Nursery,400172
WARRINGTON BOROUGH COUNCIL,http://opendatacommunities.org/id/unitary-authority/warrington ,FWB,DSG 2 Year Old Fund,31601,Payment of Grants,470050,25-Oct-15,1900185090,5602,Cheshire Day Nursery / The Kinderga,400013
WARRINGTON BOROUGH COUNCIL,http://opendatacommunities.org/id/unitary-authority/warrington ,FWB,DSG 2 Year Old Fund,31601,Payment of Grants,470050,25-Oct-15,1900185091,3056,The Cheshire Day Nursery,400296
WARRINGTON BOROUGH COUNCIL,http://opendatacommunities.org/id/unitary-authority/warrington ,FWB,DSG 2 Year Old Fund,31601,Payment of Grants,470050,25-Oct-15,1900185092,1528,The Cheshire Day Nursery @ Winwick,114503
WARRINGTON BOROUGH COUNCIL,http://opendatacommunities.org/id/unitary-authority/warrington ,FWB,DSG 2 Year Old Fund,31601,Payment of Grants,470050,25-Oct-15,1900185093,20816,The Lakes Nursery,101036
WARRINGTON BOROUGH COUNCIL,http://opendatacommunities.org/id/unitary-authority/warrington ,FWB,DSG 2 Year Old Fund,31601,Payment of Grants,470050,25-Oct-15,1900185094,1964,The Little Lot Nursery,400141
WARRINGTON BOROUGH COUNCIL,http://opendatacommunities.org/id/unitary-authority/warrington ,FWB,DSG 2 Year Old Fund,31601,Payment of Grants,470050,25-Oct-15,1900185095,509,The Old Vicarage,104991
WARRINGTON BOROUGH COUNCIL,http://opendatacommunities.org/id/unitary-authority/warrington ,FWB,DSG 2 Year Old Fund,31601,Payment of Grants,470050,25-Oct-15,1900185096,3310,The Quays Day Nursery,105052
WARRINGTON BOROUGH COUNCIL,http://opendatacommunities.org/id/unitary-authority/warrington ,FWB,DSG 2 Year Old Fund,31601,Payment of Grants,470050,25-Oct-15,1900185097,3056,Rosebank Naturegarten,400154
WARRINGTON BOROUGH COUNCIL,http://opendatacommunities.org/id/unitary-authority/warrington ,FWB,DSG 2 Year Old Fund,31601,Payment of Grants,470050,25-Oct-15,1900185098,1120,The Village Pre-School,400174
WARRINGTON BOROUGH COUNCIL,http://opendatacommunities.org/id/unitary-authority/warrington ,FWB,DSG 2 Year Old Fund,31601,Payment of Grants,470050,25-Oct-15,1900185100,7069,Tiggy-Winkles Day Nursery,400082
WARRINGTON BOROUGH COUNCIL,http://opendatacommunities.org/id/unitary-authority/warrington ,FWB,DSG 2 Year Old Fund,31601,Payment of Grants,470050,25-Oct-15,1900185101,778,Tugboats Pre-School,400028
WARRINGTON BOROUGH COUNCIL,http://opendatacommunities.org/id/unitary-authority/warrington ,FWB,DSG 2 Year Old Fund,31601,Payment of Grants,470050,25-Oct-15,1900185102,2098,University Of Chester Nursery Padga,400102
WARRINGTON BOROUGH COUNCIL,http://opendatacommunities.org/id/unitary-authority/warrington ,FWB,DSG 2 Year Old Fund,31601,Payment of Grants,470050,25-Oct-15,1900185104,3106,Warren Pre-School Playgroup,400176
WARRINGTON BOROUGH COUNCIL,http://opendatacommunities.org/id/unitary-authority/warrington ,FWB,DSG 2 Year Old Fund,31601,Payment of Grants,470050,25-Oct-15,1900185105,2971,Warrington Day Nursery,400002
WARRINGTON BOROUGH COUNCIL,http://opendatacommunities.org/id/unitary-authority/warrington ,FWB,DSG 2 Year Old Fund,31601,Payment of Grants,470050,25-Oct-15,1900185106,5274,Willows Pre-School Nursery,400094
WARRINGTON BOROUGH COUNCIL,http://opendatacommunities.org/id/unitary-authority/warrington ,FWB,DSG 2 Year Old Fund,31601,Payment of Grants,470050,25-Oct-15,1900185107,2292,Wind in the Willows,400168
WARRINGTON BOROUGH COUNCIL,http://opendatacommunities.org/id/unitary-authority/warrington ,FWB,DSG 2 Year Old Fund,31601,Payment of Grants,470050,25-Oct-15,1900185108,5893,Wind in The Willows Childcare,112697
WARRINGTON BOROUGH COUNCIL,http://opendatacommunities.org/id/unitary-authority/warrington ,FWB,Older Peoples South Team,54421,CP-LongStayExternal,441150,26-Oct-15,1900185121,1796,Barchester Healthcare Brookfield,104548
WARRINGTON BOROUGH COUNCIL,http://opendatacommunities.org/id/unitary-authority/warrington ,FWB,Care Purchase Budget,54490,CP ExternalOther Exp,440800,26-Oct-15,1900185122,25822,Bupa Care Homes,104572
WARRINGTON BOROUGH COUNCIL,http://opendatacommunities.org/id/unitary-authority/warrington ,FWB,Older Peoples South Team,54421,CP-Domicil.External,440950,26-Oct-15,1900185123,1344,Caring Hands,102486
WARRINGTON BOROUGH COUNCIL,http://opendatacommunities.org/id/unitary-authority/warrington ,FWB,Care Purchase - Learning Disability,54450,CP-LongStayExternal,441150,26-Oct-15,1900185124,14271,The David Lewis Centre,104879
WARRINGTON BOROUGH COUNCIL,http://opendatacommunities.org/id/unitary-authority/warrington ,FWB,Care Purchase - Learning Disability,54450,CP-LongStayExternal,441150,26-Oct-15,1900185125,9448,The David Lewis Centre,104879
WARRINGTON BOROUGH COUNCIL,http://opendatacommunities.org/id/unitary-authority/warrington ,FWB,Care Purchase - Learning Disability,54450,CP-Day Care-External,441100,26-Oct-15,1900185126,520,Days Together Ltd,109116
WARRINGTON BOROUGH COUNCIL,http://opendatacommunities.org/id/unitary-authority/warrington ,FWB,Care Purchase Budget,54490,CP - Cont Care - External,441350,26-Oct-15,1900185128,1197,Extracare Charitable Trust Service,114725
WARRINGTON BOROUGH COUNCIL,http://opendatacommunities.org/id/unitary-authority/warrington ,FWB,Older Peoples South Team,54421,CP - Housing with Care - External,494450,26-Oct-15,1900185128,9257,Extracare Charitable Trust Service,114725
WARRINGTON BOROUGH COUNCIL,http://opendatacommunities.org/id/unitary-authority/warrington ,FWB,Care Purchase - PD,54440,CP - Housing with Care - External,494450,26-Oct-15,1900185128,598,Extracare Charitable Trust Service,114725
WARRINGTON BOROUGH COUNCIL,http://opendatacommunities.org/id/unitary-authority/warrington ,FWB,Care Purchase - Learning Disability,54450,CP-Domicil.External,440950,26-Oct-15,1900185129,6371,Future Directions Community Interes,111498
WARRINGTON BOROUGH COUNCIL,http://opendatacommunities.org/id/unitary-authority/warrington ,FWB,Care Purchase - ABI,54260,CP-Domicil.External,440950,26-Oct-15,1900185129,1554,Future Directions Community Interes,111498
WARRINGTON BOROUGH COUNCIL,http://opendatacommunities.org/id/unitary-authority/warrington ,FWB,Care Purchase - Learning Disability,54450,CP-Domicil.External,440950,26-Oct-15,1900185130,699,Future Directions Community Interes,111498
WARRINGTON BOROUGH COUNCIL,http://opendatacommunities.org/id/unitary-authority/warrington ,FWB,Older Peoples North Team,54422,CP-Domicil.External,440950,26-Oct-15,1900185131,5734,Hannahs Homecare Ltd,114443
WARRINGTON BOROUGH COUNCIL,http://opendatacommunities.org/id/unitary-authority/warrington ,FWB,Older Peoples South Team,54421,CP-Domicil.External,440950,26-Oct-15,1900185131,2006,Hannahs Homecare Ltd,114443
WARRINGTON BOROUGH COUNCIL,http://opendatacommunities.org/id/unitary-authority/warrington ,FWB,Care Purchase - PD,54440,CP-Domicil.External,440950,26-Oct-15,1900185131,6510,Hannahs Homecare Ltd,114443
WARRINGTON BOROUGH COUNCIL,http://opendatacommunities.org/id/unitary-authority/warrington ,FWB,Care Purchase Budget,54490,CP ExternalOther Exp,440800,26-Oct-15,1900185132,31677,Harbour Healthcare 1 Ltd,110527
WARRINGTON BOROUGH COUNCIL,http://opendatacommunities.org/id/unitary-authority/warrington ,FWB,Care Purchase AMH,54135,CP-LongStayExternal,441150,26-Oct-15,1900185134,6381,HWCGS Care Ltd,108619
WARRINGTON BOROUGH COUNCIL,http://opendatacommunities.org/id/unitary-authority/warrington ,FWB,Care Purchase - Learning Disability,54450,CP-LongStayExternal,441150,26-Oct-15,1900185135,6649,HWCGS Care Ltd,108619
WARRINGTON BOROUGH COUNCIL,http://opendatacommunities.org/id/unitary-authority/warrington ,FWB,Care Purchase AMH,54135,CP-LongStayExternal,441150,26-Oct-15,1900185136,2593,Ley Community Drug Services,107958
WARRINGTON BOROUGH COUNCIL,http://opendatacommunities.org/id/unitary-authority/warrington ,FWB,Care Purchase AMH,54135,CP-LongStayExternal,441150,26-Oct-15,1900185137,700,Ley Community Drug Services,107958
WARRINGTON BOROUGH COUNCIL,http://opendatacommunities.org/id/unitary-authority/warrington ,FWB,Care Purchase AMH,54135,CP-Domicil.External,440950,26-Oct-15,1900185138,2035,Autism Initiatives,104503
WARRINGTON BOROUGH COUNCIL,http://opendatacommunities.org/id/unitary-authority/warrington ,FWB,Care Purchase Budget,54490,CP ExternalOther Exp,440800,26-Oct-15,1900185139,47539,Leyton Healthcare,102517
WARRINGTON BOROUGH COUNCIL,http://opendatacommunities.org/id/unitary-authority/warrington ,FWB,Older Peoples South Team,54421,CP-LongStayExternal,441150,26-Oct-15,1900185140,1796,Barchester Healthcare Brookfield,104548
WARRINGTON BOROUGH COUNCIL,http://opendatacommunities.org/id/unitary-authority/warrington ,FWB,Care Purchase Budget,54490,CP ExternalOther Exp,440800,26-Oct-15,1900185141,15737,London & Manchester Healthcare Ltd,109185
WARRINGTON BOROUGH COUNCIL,http://opendatacommunities.org/id/unitary-authority/warrington ,FWB,Care Purchase Budget,54490,CP ExternalOther Exp,440800,26-Oct-15,1900185142,18070,HC-One Limited Callands,109640
WARRINGTON BOROUGH COUNCIL,http://opendatacommunities.org/id/unitary-authority/warrington ,FWB,Care Purchase - Learning Disability,54450,CP-Day Care-External,441100,26-Oct-15,1900185143,16423,Macintyre Care,104907
WARRINGTON BOROUGH COUNCIL,http://opendatacommunities.org/id/unitary-authority/warrington ,FWB,Care Purchase - Learning Disability,54450,CP-Domicil.External,440950,26-Oct-15,1900185145,33390,Charnat Care Ltd,114888
WARRINGTON BOROUGH COUNCIL,http://opendatacommunities.org/id/unitary-authority/warrington ,FWB,Care Purchase - Learning Disability,54450,CP-Day Care-External,441100,26-Oct-15,1900185146,2160,Midstream West Lanc Ltd,108365
WARRINGTON BOROUGH COUNCIL,http://opendatacommunities.org/id/unitary-authority/warrington ,FWB,Care Purchase - Learning Disability,54450,CP-Nursing Care-External,441200,26-Oct-15,1900185147,10016,The David Lewis Centre,104879
WARRINGTON BOROUGH COUNCIL,http://opendatacommunities.org/id/unitary-authority/warrington ,FWB,Care Purchase Budget,54490,CP ExternalOther Exp,440800,26-Oct-15,1900185151,3883,Old Rectory Private Nursing Home,104990
WARRINGTON BOROUGH COUNCIL,http://opendatacommunities.org/id/unitary-authority/warrington ,FWB,Older Peoples North Team,54422,CP-Nursing Care-External,441200,26-Oct-15,1900185153,1411,Porthaven Care Homes LLP Prestbury,114834
WARRINGTON BOROUGH COUNCIL,http://opendatacommunities.org/id/unitary-authority/warrington ,FWB,Care Purchase AMH,54135,CP-Domicil.External,440950,26-Oct-15,1900185154,1150,Sanctuary Housing Association,114788
WARRINGTON BOROUGH COUNCIL,http://opendatacommunities.org/id/unitary-authority/warrington ,FWB,Care Purchase - Learning Disability,54450,CP-Domicil.External,440950,26-Oct-15,1900185155,600,Sanctuary Carr-Gomm,109157
WARRINGTON BOROUGH COUNCIL,http://opendatacommunities.org/id/unitary-authority/warrington ,FWB,Care Purchase Budget,54490,CP ExternalOther Exp,440800,26-Oct-15,1900185157,8936,St Marys Care Centre,101503
WARRINGTON BOROUGH COUNCIL,http://opendatacommunities.org/id/unitary-authority/warrington ,FWB,Care Purchase Budget,54490,CP Free Nursing Care External,443500,26-Oct-15,1900185158,544,St Marys Care Centre,101503
WARRINGTON BOROUGH COUNCIL,http://opendatacommunities.org/id/unitary-authority/warrington ,FWB,Older Peoples South Team,54421,CP-Domicil.External,440950,26-Oct-15,1900185159,3654,St Monica Trust,104021
WARRINGTON BOROUGH COUNCIL,http://opendatacommunities.org/id/unitary-authority/warrington ,FWB,Older Peoples South Team,54421,CP-Nursing Care-External,441200,26-Oct-15,1900185160,2064,St Monica Trust,104021
WARRINGTON BOROUGH COUNCIL,http://opendatacommunities.org/id/unitary-authority/warrington ,FWB,Care Purchase Budget,54490,CP ExternalOther Exp,440800,26-Oct-15,1900185161,2111,Thelwall Grange Nursing Home,105174
WARRINGTON BOROUGH COUNCIL,http://opendatacommunities.org/id/unitary-authority/warrington ,FWB,Older Peoples North Team,54422,CP-LongStayExternal,441150,26-Oct-15,1900185162,1700,Orchard Care Homes,102524
WARRINGTON BOROUGH COUNCIL,http://opendatacommunities.org/id/unitary-authority/warrington ,FWB,Older Peoples North Team,54422,CP-Domicil.External,440950,26-Oct-15,1900185163,539,Care Solution Trading as Together C,114526
WARRINGTON BOROUGH COUNCIL,http://opendatacommunities.org/id/unitary-authority/warrington ,FWB,Care Purchase - Learning Disability,54450,CP ExternalOther Exp,440800,26-Oct-15,1900185164,900,Walton Lea Project,102953
WARRINGTON BOROUGH COUNCIL,http://opendatacommunities.org/id/unitary-authority/warrington ,FWB,Care Purchase - Learning Disability,54450,CP-Day Care-External,441100,26-Oct-15,1900185164,25939,Walton Lea Project,102953
WARRINGTON BOROUGH COUNCIL,http://opendatacommunities.org/id/unitary-authority/warrington ,COR,Car Leasing Scheme - Salary Sacrifice,52126,Car Leasing Charges,350000,26-Oct-15,1900185165,3677,NHS Foundation Trust,110359
WARRINGTON BOROUGH COUNCIL,http://opendatacommunities.org/id/unitary-authority/warrington ,COR,Car Leasing Scheme - Salary Sacrifice,52126,Car Leasing Charges,350000,26-Oct-15,1900185165,739,NHS Foundation Trust,110359
WARRINGTON BOROUGH COUNCIL,http://opendatacommunities.org/id/unitary-authority/warrington ,COR,Car Leasing Scheme - Salary Sacrifice,52126,Car Leasing Charges,350000,26-Oct-15,1900185166,3053,NHS Foundation Trust,110359
WARRINGTON BOROUGH COUNCIL,http://opendatacommunities.org/id/unitary-authority/warrington ,COR,Car Leasing Scheme - Salary Sacrifice,52126,Car Leasing Charges,350000,26-Oct-15,1900185166,739,NHS Foundation Trust,110359
WARRINGTON BOROUGH COUNCIL,http://opendatacommunities.org/id/unitary-authority/warrington ,COR,Car Leasing Scheme - Salary Sacrifice,52126,Car Leasing Charges,350000,26-Oct-15,1900185167,2947,NHS Foundation Trust,110359
WARRINGTON BOROUGH COUNCIL,http://opendatacommunities.org/id/unitary-authority/warrington ,COR,Car Leasing Scheme - Salary Sacrifice,52126,Car Leasing Charges,350000,26-Oct-15,1900185167,739,NHS Foundation Trust,110359
WARRINGTON BOROUGH COUNCIL,http://opendatacommunities.org/id/unitary-authority/warrington ,COR,Car Leasing Scheme - Salary Sacrifice,52126,Car Leasing Charges,350000,26-Oct-15,1900185168,2793,NHS Foundation Trust,110359
WARRINGTON BOROUGH COUNCIL,http://opendatacommunities.org/id/unitary-authority/warrington ,COR,Car Leasing Scheme - Salary Sacrifice,52126,Car Leasing Charges,350000,26-Oct-15,1900185168,795,NHS Foundation Trust,110359
WARRINGTON BOROUGH COUNCIL,http://opendatacommunities.org/id/unitary-authority/warrington ,COR,Car Leasing Scheme - Salary Sacrifice,52126,Car Leasing Charges,350000,26-Oct-15,1900185169,2990,NHS Foundation Trust,110359
WARRINGTON BOROUGH COUNCIL,http://opendatacommunities.org/id/unitary-authority/warrington ,COR,Car Leasing Scheme - Salary Sacrifice,52126,Car Leasing Charges,350000,26-Oct-15,1900185169,739,NHS Foundation Trust,110359
WARRINGTON BOROUGH COUNCIL,http://opendatacommunities.org/id/unitary-authority/warrington ,COR,Car Leasing Scheme - Salary Sacrifice,52126,Car Leasing Charges,350000,26-Oct-15,1900185170,2670,NHS Foundation Trust,110359
WARRINGTON BOROUGH COUNCIL,http://opendatacommunities.org/id/unitary-authority/warrington ,COR,Car Leasing Scheme - Salary Sacrifice,52126,Car Leasing Charges,350000,26-Oct-15,1900185170,739,NHS Foundation Trust,110359
